{"text_format":"3","workbook":"xlsx","n_sheets":6,"sheets":["README","All OESs","Air Annual Firefighting","Air Annual Demo","Air Annual Disposal Machinery","Deposition Annual"],"not_rendered":{"charts":10,"defined_names":5,"pivot_tables":6},"read":"whole","date_system":"1900"}

{"sheet":"README","index":0,"n_rows":42,"n_cols":3,"rows_kept":42,"merged":[[1,0,1,2],[2,2,6,2],[7,2,9,2],[11,0,11,1],[24,0,24,1],[28,0,28,1],[40,0,40,1]]}
["PUBLIC RELEASE DRAFT - November 2024"]
["Overall steps to obtain ambient air exposure concentrations and risk calculations:"]
["Step 1","Obtain Toxics Release Inventory (TRI) and National Emissions Inventory (NEI) data","Occupational Engineer is responsible for these steps"]
["Step 2","Map TRI and NEI data to occupations exposure scenarios (OES)"]
["Step 3","Estimate the number of releases days for each OES"]
["Step 4","Estimate air emissions for OES with no TRI or NEI data"]
["Step 5","Prepare air emission summary for ambient air exposure modeling, see Air Release Assessment for Legacy Asbestos_3.27.2023.xlsx"]
["Step 6","Specific facilities: EPA modeled exposure concentrations on a facility-by-facility basis, building out a series of facility specific exposure scenarios based on the release data provided by Step 1-5. EPA modeled exposure concentrations at 8 finite distances from a releasing facility (10, 30, 60, 100, 1,000 2,500, 5,000 and 10,000 meters) in a series of concentric rings around the facility","Exposure Assessors are responsible for these steps"]
["Step 7","Generic facilities: Represent additional unknown facilities, EPA developed generic TRI facilities with ranges of emission rates"]
["Step 8","Estimate air concentrations and deposition resulting from air releases of asbestos, modeled at general-population and co-located receptors surrounding the release sources using American Meteorological Society/Environmental Protection Agency Regulatory Model (AERMOD)"]
[]
["Specific Facilities AERMOD approaches to estimate air concentrations and deposition resulting from air releases of asbestos"]
["Specific facilities meteorological data","Utilized the same AERMOD-ready meteorological data that EPA’s Risk and Technology Review (RTR) program uses for risk modeling in review of National Emission Standards for Hazardous Air Pollutants (NESHAP).  The RTR data cover hourly stations in the 50 states, District of Columbia, and Puerto Rico. The meteorological dataset that the RTR program currently uses, includes 838 stations with data mostly from the year 2019—for 47 stations (mainly in Alaska and West Virginia). EPA utilized data from 2016, 2017, or 2018 to fill notable spatial gaps. The RTR 2019 meteorological dataset was used to model emission years 2018 and 2019. Meteorological data from 2016 was used for emission years 2014–2017, covering 824 stations, which the RTR program used prior to the updates to the 2019 dataset. The 2019 and 2016 datasets are available in the links below."]
["RTR page: ","https://www.epa.gov/stationary-sources-air-pollution/risk-and-technology-review-national-emissions-standards-hazardous "]
["2016 meteorological data: see the HEM3 section of ","https://www.epa.gov/fera/download-human-exposure-model-hem "]
["2019 meteorological data: see the HEM4 section","https://www.epa.gov/fera/download-human-exposure-model-hem "]
["Urban and rural populations","facilities were not set as urban unless they met one of the EPA-recommended definitions of an urban area—specifically, we considered a facility to be in an urban area if it had a population density greater than 750 people per square kilometer (km) within a 3-km radius"]
["Source specifications TRI faclilities","Assumed all emissions were centered on one location. EPA set the same default physical parameters as in IIOAC, stack emissions released from a point source at 10 meters (m) above ground from a 2-m inside diameter, with an exit gas temperature of 300 Kelvin and an exit gas velocity of 5 m per second (see Table 6 of the IIOAC User Guide), and fugitive emissions released at 3.05 m above ground from a square area source 10 m on a side (see Table 7 of the IIOAC User Guide)."]
["IIOAC page:","https://www.epa.gov/tsca-screening-tools/iioac-integrated-indoor-outdoor-air-calculator"]
["Source specifications NEI faclilities","Assumed all emissions were centered on one location. When the site-specific parameter values were available, EPA utilized them in the modeling as it was done for TRI facilities. When parameters were not available or had values outside of normal bounds, EPA replaced the values based on the procedures used in AirToxScreen (see Section 2.1.3 of the AirToxScreen technical support document). More details provided in Appendix H Air Section."]
["EPA 2018 AirToxScreen Technical Support Document","https://www.epa.gov/system/files/documents/2023-02/AirToxScreen_2018%20TSD.pdf"]
[]
[]
[]
["Generic TRI Facilities AERMOD approaches to estimate air concentrations and deposition resulting from air releases of asbestos"]
["Generic TRI facilities meteorological data","Modeled twice with two different meteorological stations. EPA’s Integrated Indoor-Outdoor Air Calculator (IIOAC)utilized a meteorological station for each region of the country and from this dataset it was determined that meteorological conditions from Sioux Falls, SD led to central-tendency modeled concentrations and particle deposition, and those from Lake Charles, LA led to higher-end modeled concentrations, relative to the other regional stations (see Sections 5.4 and 5.7.4 of the IIOAC User Guide for more information on the stations)."]
["Urban and rural populations","Urban/rural designations of the area around a facility are relevant when considering possible boundary layer effects on concentrations. Air emissions taking place in an urbanized area are subject to the effects of urban heat islands, particularly at night. When sources are set as urban in AERMOD, the model will modify the boundary layer to enhance nighttime turbulence, often leading to higher nighttime air concentrations. AERMOD uses urban-area population as a proxy for the intensity of this effect."]
[]
["AERMOD approaches to estimate air concentrations and deposition resulting from air releases of asbestos"]
["Temporal emission patterns","The Air Release Assessment for Legacy Asbestos_3.27.2023.xlsx spreadsheet available in the occupational exposure assessment (Appendix XX) contain information on temporal emission patterns such as release duration (across the hours of a day, or intraday) and release pattern (across the days of a year, or interday), by OES. The hours shown conform to AERMOD’s notation scheme of using hours 1–24, where hour 1 is the hour ending at 1 am and hour 24 is the final hour of the same day ending at midnight. Assumed that emissions took place every day of the year, and then turned emissions off for certain days of the year as needed to achieve the desired number of emission days, such as no emissions on Saturday and Sunday, and major holidays."]
["Emission rates","The Air Release Assessment for Legacy Asbestos_3.27.2023.xlsx spreadsheet available in the occupational exposure assessment (Appendix XX) contain emission rates (kilograms per year) for each facility, for total fugitive emissions and total stack emissions. A central-tendency value and a high-end value was provided for generic TRI facilities and was used to obtain total fugitive and stack emissions. EPA modeled lower- and higher-end emission scenarios separately. The rates were converted to grams [g] per second for stack sources; g per second per m2 for fugitive sources. The conversion from per-hour to per-second utilized the number of emitting hours per year based on the assumed temporal release patterns, and the conversion to per m2 for fugitive sources utilized the final length and width values decided based on the procedures by the physical specifications. "]
["Deposition parameters","Used method_1 option in AERMOD, which is recommended when the particle-size distribution is well known or when at least 10% of particles (by mass) are 10 micrometers (µm) or larger.  Asbestos fibers are not spheres and AERMOD assumes spheres in the deposition calculations which affects settling velocity.  EPA calculated the potential sphericity of asbestos particles. The average diameter, aspect ratio, and percent by size bin in Table 3 of Wilson et al. (2008) provided a particle size distribution guideline and it was assumed fibers are cylindrical in order to calculate fiber length (diameter*aspect ratio) and volume fraction (mass fraction).  The fiber size was calculated using this equation: (diameter2/length*diameter)1/3, and the equivalent spherical diameter of each size was calculated using this equation: 2*[(length/2)2*sphericity]1/2. As a conservative setting, the high value of specific gravity provided for crocidolite fibers from Virta (2004)"]
["Wilson et al., 2008","Wilson, R, McConnell, EE, Ross, M, Axten, CW, Nolan, RP. (2008). Risk assessment due to environmental exposures to fibrous particulates associated with taconite ore. Regulatory Toxicology and Pharmacology. 52:S232–S245. 10.1016/j.yrtph.2007.11.005."]
["Virta, 2004","Virta, RL. (2004). Asbestos. In: Kirk-Othmer Encyclopedia of Chemical Technology, 5th ed., Editor-in chief Seidel, A, Publisher Wiley-Interscience. 3:288–319. ISBN: 0-471-48494-6."]
["Populations impacted","All modeling scenarios utilized a region of gridded receptors and several rings/radials of receptors. The rings had receptors placed every 22.5 degrees (starting due north of the facility) for distances 10, 30, and 60 m from the source for co-located receptors and 100, 1,000, 2,500, 5,000, and 10,000 m from the source for general-population receptors. Between 100 m and 1,000 m from the source—an area termed “community” in IIOAC. All receptors were at 1.8 m above ground, as a proxy for breathing height for concentration estimates. A duplicate set of receptors was at ground level (0 m) for deposition estimations."]
["Output converstion factors","EPA converted AERMOD concentration output units of micrograms (µg) per m3 to fibers per cubic centimeter (cm3), using the “European Community Directive 72/217/EEC” conversion factor in Dodič-Fikfak (2007)  (i.e., 0.1 milligrams per m3 = 2 fibers/cm3, or 1 µg/m3 = 0.02 fibers/cm3; one of the higher [more conservative] values cited in that study, but not the highest). That same conversion factor was used to convert AERMOD deposition units of g per m2 to fibers per m2 (i.e., 1 g per m2 = 2x1010 fibers per m2)."]
["Dodič-Fikfak (2007)","Dodič-Fikfak, M. (2007). An experiment to develop conversion factors to standardise measurements of airborne asbestos. Archives of Industrial Hygiene and Toxicology. 58(2):179–185. 10.2478/v10004-007-0003-9. "]
["Daily and annual outputs","Assumed flat terrain for all modeling scenarios. Daily- and period-average outputs for every run, where the period was 1 year for real facilities and 5 years for generic TRI facilities."]
[]
[]
["About the Outputs"]
["High-End and central tendency","The Generic facilities outputs have central tendency and high-end tendency runs and within each of those stats are calculated.  The asbestos ambient air analysis will use the outputs labeled as Central Tendency and High-End in Run ID column."]

{"sheet":"All OESs","index":1,"n_rows":225,"n_cols":26,"rows_kept":225}
[null,"Run ID","Facility","OES","Source Type","Urban / Rural","MET","Avg Period","Distance","CONC | mean f/cc","CONC | percentile_10 f/cc","CONC | percentile_50 f/cc","CONC | percentile_95 f/cc","CONC | Range f/cc","CONC | std f/cc",null,"Average of CONC | mean f/cc","Column Labels"]
[8,"Central Tendency","3_Handling Asbestos-Containing Building Materials During Firefighting or Other Disaster Response Activities","Handling Asbestos-Containing Building Materials During Firefighting or Other Disaster Response Activities","Fugitive","Rural","MetCT","5 years",10,{"v":3.36E-6,"d":"3.36E-06"},{"v":5.23e-09,"d":"5.23E-09"},{"v":3.33e-06,"d":"3.33E-06"},{"v":8.86e-06,"d":"8.86E-06"},"0.00e+00 - 1.09e-05",{"v":3.1E-6,"d":"3.10E-06"},null,"Row Labels",10,30,60,100,1000,2500,5000,10000,"Grand Total"]
[9,"Central Tendency","3_Handling Asbestos-Containing Building Materials During Firefighting or Other Disaster Response Activities","Handling Asbestos-Containing Building Materials During Firefighting or Other Disaster Response Activities","Fugitive","Rural","MetCT","5 years",30,{"v":1.04E-6,"d":"1.04E-06"},null,{"v":6.25e-07,"d":"6.25E-07"},{"v":3.17e-06,"d":"3.17E-06"},"0.00e+00 - 3.18e-06",{"v":1.15E-6,"d":"1.15E-06"},null,"Central Tendency",{"v":7.63e-06,"d":"7.63E-06"},{"v":1.5879166666666666E-6,"d":"1.59E-06"},{"v":4.2116666666666663E-7,"d":"4.21E-07"},{"v":1.32425E-7,"d":"1.32E-07"},{"v":4.2275e-09,"d":"4.23E-09"},{"v":1.5090833333333333E-10,"d":"1.51E-10"},{"v":4.945e-11,"d":"4.95E-11"},{"v":1.8366666666666665E-11,"d":"1.84E-11"},{"v":1.2219943197916666E-6,"d":"1.22E-06"}]
[10,"Central Tendency","3_Handling Asbestos-Containing Building Materials During Firefighting or Other Disaster Response Activities","Handling Asbestos-Containing Building Materials During Firefighting or Other Disaster Response Activities","Fugitive","Rural","MetCT","5 years",60,{"v":3.26e-07,"d":"3.26E-07"},null,{"v":1.34e-07,"d":"1.34E-07"},{"v":1.06E-6,"d":"1.06E-06"},"0.00e+00 - 1.34e-06",{"v":4.16e-07,"d":"4.16E-07"},null,"Handling Asbestos-Containing Building Materials During Firefighting or Other Disaster Response Activities",{"v":4.1775e-06,"d":"4.18E-06"},{"v":1.0562499999999998E-6,"d":"1.06E-06"},{"v":3.0674999999999996E-7,"d":"3.07E-07"},{"v":9.9949999999999992E-8,"d":"1.00E-07"},{"v":3.3100000000000004E-9,"d":"3.31E-09"},{"v":1.035E-10,"d":"1.04E-10"},{"v":3.0900000000000004E-11,"d":"3.09E-11"},{"v":1.145E-11,"d":"1.15E-11"},{"v":7.0548823125e-07,"d":"7.05E-07"}]
[11,"Central Tendency","3_Handling Asbestos-Containing Building Materials During Firefighting or Other Disaster Response Activities","Handling Asbestos-Containing Building Materials During Firefighting or Other Disaster Response Activities","Fugitive","Rural","MetCT","5 years",100,{"v":1.1e-07,"d":"1.10E-07"},null,{"v":2.72e-08,"d":"2.72E-08"},{"v":3.91e-07,"d":"3.91E-07"},"0.00e+00 - 5.20e-07",{"v":1.55E-7,"d":"1.55E-07"},null,"Fugitive",{"v":4.1775e-06,"d":"4.18E-06"},{"v":1.0562499999999998E-6,"d":"1.06E-06"},{"v":3.0674999999999996E-7,"d":"3.07E-07"},{"v":9.9949999999999992E-8,"d":"1.00E-07"},{"v":3.3100000000000004E-9,"d":"3.31E-09"},{"v":1.035E-10,"d":"1.04E-10"},{"v":3.0900000000000004E-11,"d":"3.09E-11"},{"v":1.145E-11,"d":"1.15E-11"},{"v":7.0548823125e-07,"d":"7.05E-07"}]
[12,"Central Tendency","3_Handling Asbestos-Containing Building Materials During Firefighting or Other Disaster Response Activities","Handling Asbestos-Containing Building Materials During Firefighting or Other Disaster Response Activities","Fugitive","Rural","MetCT","5 years",1000,{"v":3.6E-9,"d":"3.60E-09"},null,{"v":4.77e-11,"d":"4.77E-11"},{"v":1.55E-8,"d":"1.55E-08"},"0.00e+00 - 1.34e-07",{"v":1.25e-08,"d":"1.25E-08"},null,"Rural",{"v":4.14e-06,"d":"4.14E-06"},{"v":1.07e-06,"d":"1.07E-06"},{"v":3.1249999999999997E-7,"d":"3.13E-07"},{"v":1.021e-07,"d":"1.02E-07"},{"v":3.415e-09,"d":"3.42E-09"},1.05E-10,{"v":2.99e-11,"d":"2.99E-11"},{"v":1.0885E-11,"d":"1.09E-11"},{"v":7.0352009812499991E-7,"d":"7.04E-07"}]
[13,"Central Tendency","3_Handling Asbestos-Containing Building Materials During Firefighting or Other Disaster Response Activities","Handling Asbestos-Containing Building Materials During Firefighting or Other Disaster Response Activities","Fugitive","Rural","MetCT","5 years",2500,{"v":1.07e-10,"d":"1.07E-10"},null,null,4.35E-10,"0.00e+00 - 8.01e-10",{"v":2.12e-10,"d":"2.12E-10"},null,"Urban",{"v":4.215e-06,"d":"4.22E-06"},{"v":1.0425000000000002E-6,"d":"1.04E-06"},{"v":3.01e-07,"d":"3.01E-07"},{"v":9.78e-08,"d":"9.78E-08"},{"v":3.205E-9,"d":"3.21E-09"},1.02E-10,{"v":3.19e-11,"d":"3.19E-11"},{"v":1.2015E-11,"d":"1.20E-11"},{"v":7.0745636437500012E-7,"d":"7.07E-07"}]
[14,"Central Tendency","3_Handling Asbestos-Containing Building Materials During Firefighting or Other Disaster Response Activities","Handling Asbestos-Containing Building Materials During Firefighting or Other Disaster Response Activities","Fugitive","Rural","MetCT","5 years",5000,{"v":2.54e-11,"d":"2.54E-11"},null,null,1.16E-10,"0.00e+00 - 2.10e-10",{"v":5.53e-11,"d":"5.53E-11"},null,"Handling Asbestos-Containing Building Materials During Maintenance, Renovation, and Demolition Activities",{"v":5.5875e-06,"d":"5.59E-06"},{"v":1.1325000000000002E-6,"d":"1.13E-06"},{"v":2.9725e-07,"d":"2.97E-07"},{"v":9.3325e-08,"d":"9.33E-08"},{"v":2.915E-9,"d":"2.92E-09"},{"v":1.10475E-10,"d":"1.10E-10"},{"v":3.6224999999999996E-11,"d":"3.62E-11"},1.33E-11,{"v":8.8920625e-07,"d":"8.89E-07"}]
[15,"Central Tendency","3_Handling Asbestos-Containing Building Materials During Firefighting or Other Disaster Response Activities","Handling Asbestos-Containing Building Materials During Firefighting or Other Disaster Response Activities","Fugitive","Rural","MetCT","5 years",10000,{"v":6.47e-12,"d":"6.47E-12"},null,null,{"v":3.35e-11,"d":"3.35E-11"},"0.00e+00 - 6.50e-11",{"v":1.67e-11,"d":"1.67E-11"},null,"Fugitive",{"v":5.5875e-06,"d":"5.59E-06"},{"v":1.1325000000000002E-6,"d":"1.13E-06"},{"v":2.9725e-07,"d":"2.97E-07"},{"v":9.3325e-08,"d":"9.33E-08"},{"v":2.915E-9,"d":"2.92E-09"},{"v":1.10475E-10,"d":"1.10E-10"},{"v":3.6224999999999996E-11,"d":"3.62E-11"},1.33E-11,{"v":8.8920625e-07,"d":"8.89E-07"}]
[8,"High-End","4_Handling Asbestos-Containing Building Materials During Firefighting or Other Disaster Response Activities","Handling Asbestos-Containing Building Materials During Firefighting or Other Disaster Response Activities","Fugitive","Rural","MetCT","5 years",10,{"v":0.000672,"d":"6.72E-04"},{"v":1.05e-06,"d":"1.05E-06"},{"v":0.000665,"d":"6.65E-04"},{"v":0.00177,"d":"1.77E-03"},"0.00e+00 - 2.19e-03",{"v":0.000619,"d":"6.19E-04"},null,"Rural",{"v":5.645e-06,"d":"5.65E-06"},{"v":1.14e-06,"d":"1.14E-06"},{"v":3.045e-07,"d":"3.05E-07"},{"v":9.6350000000000012E-8,"d":"9.64E-08"},{"v":3.04e-09,"d":"3.04E-09"},{"v":1.183e-10,"d":"1.18E-10"},{"v":3.745e-11,"d":"3.75E-11"},{"v":1.3550000000000001E-11,"d":"1.36E-11"},{"v":8.9863241250000006E-7,"d":"8.99E-07"}]
[9,"High-End","4_Handling Asbestos-Containing Building Materials During Firefighting or Other Disaster Response Activities","Handling Asbestos-Containing Building Materials During Firefighting or Other Disaster Response Activities","Fugitive","Rural","MetCT","5 years",30,{"v":0.000207,"d":"2.07E-04"},null,{"v":1.25E-4,"d":"1.25E-04"},{"v":0.000633,"d":"6.33E-04"},"0.00e+00 - 6.37e-04",{"v":2.31E-4,"d":"2.31E-04"},null,"Urban",{"v":5.5299999999999996E-6,"d":"5.53E-06"},{"v":1.125E-6,"d":"1.13E-06"},{"v":2.9e-07,"d":"2.90E-07"},{"v":9.0300000000000008E-8,"d":"9.03E-08"},{"v":2.7899999999999997E-9,"d":"2.79E-09"},{"v":1.0265E-10,"d":"1.03E-10"},{"v":3.4999999999999995E-11,"d":"3.50E-11"},{"v":1.305E-11,"d":"1.31E-11"},{"v":8.797800875e-07,"d":"8.80E-07"}]
[10,"High-End","4_Handling Asbestos-Containing Building Materials During Firefighting or Other Disaster Response Activities","Handling Asbestos-Containing Building Materials During Firefighting or Other Disaster Response Activities","Fugitive","Rural","MetCT","5 years",60,{"v":6.53e-05,"d":"6.53E-05"},null,{"v":2.67e-05,"d":"2.67E-05"},{"v":2.12E-4,"d":"2.12E-04"},"0.00e+00 - 2.69e-04",{"v":8.32e-05,"d":"8.32E-05"},null,"Use, Repair, or Disposal of Industrial and Commercial Appliances or Machinery Containing Asbestos",{"v":1.3125e-05,"d":"1.31E-05"},{"v":2.575e-06,"d":"2.58E-06"},{"v":6.595E-7,"d":"6.60E-07"},{"v":2.04E-7,"d":"2.04E-07"},{"v":6.4575e-09,"d":"6.46E-09"},{"v":2.3875e-10,"d":"2.39E-10"},{"v":8.1225e-11,"d":"8.12E-11"},{"v":3.0350000000000004E-11,"d":"3.04E-11"},{"v":2.071288478125e-06,"d":"2.07E-06"}]
[11,"High-End","4_Handling Asbestos-Containing Building Materials During Firefighting or Other Disaster Response Activities","Handling Asbestos-Containing Building Materials During Firefighting or Other Disaster Response Activities","Fugitive","Rural","MetCT","5 years",100,{"v":2.2e-05,"d":"2.20E-05"},null,{"v":5.44e-06,"d":"5.44E-06"},{"v":7.83e-05,"d":"7.83E-05"},"0.00e+00 - 1.04e-04",{"v":3.1e-05,"d":"3.10E-05"},null,"Fugitive",{"v":1.3125e-05,"d":"1.31E-05"},{"v":2.575e-06,"d":"2.58E-06"},{"v":6.595E-7,"d":"6.60E-07"},{"v":2.04E-7,"d":"2.04E-07"},{"v":6.4575e-09,"d":"6.46E-09"},{"v":2.3875e-10,"d":"2.39E-10"},{"v":8.1225e-11,"d":"8.12E-11"},{"v":3.0350000000000004E-11,"d":"3.04E-11"},{"v":2.071288478125e-06,"d":"2.07E-06"}]
[12,"High-End","4_Handling Asbestos-Containing Building Materials During Firefighting or Other Disaster Response Activities","Handling Asbestos-Containing Building Materials During Firefighting or Other Disaster Response Activities","Fugitive","Rural","MetCT","5 years",1000,{"v":7.21e-07,"d":"7.21E-07"},null,{"v":9.53E-9,"d":"9.53E-09"},{"v":3.11e-06,"d":"3.11E-06"},"0.00e+00 - 2.68e-05",{"v":2.49e-06,"d":"2.49E-06"},null,"Rural",{"v":1.325E-5,"d":"1.33E-05"},{"v":2.5999999999999997E-6,"d":"2.60E-06"},{"v":6.745e-07,"d":"6.75E-07"},{"v":2.0950000000000002E-7,"d":"2.10E-07"},{"v":6.72E-9,"d":"6.72E-09"},{"v":2.5199999999999996E-10,"d":"2.52E-10"},{"v":8.385E-11,"d":"8.39E-11"},{"v":3.11e-11,"d":"3.11E-11"},{"v":2.09263586875E-6,"d":"2.09E-06"}]
[13,"High-End","4_Handling Asbestos-Containing Building Materials During Firefighting or Other Disaster Response Activities","Handling Asbestos-Containing Building Materials During Firefighting or Other Disaster Response Activities","Fugitive","Rural","MetCT","5 years",2500,{"v":2.14E-8,"d":"2.14E-08"},null,null,{"v":8.7e-08,"d":"8.70E-08"},"0.00e+00 - 1.60e-07",{"v":4.25e-08,"d":"4.25E-08"},null,"Urban",{"v":1.3000000000000001E-5,"d":"1.30E-05"},{"v":2.55e-06,"d":"2.55E-06"},{"v":6.4449999999999993E-7,"d":"6.45E-07"},{"v":1.9849999999999998E-7,"d":"1.99E-07"},{"v":6.195e-09,"d":"6.20E-09"},{"v":2.255E-10,"d":"2.26E-10"},{"v":7.859999999999999e-11,"d":"7.86E-11"},2.96E-11,{"v":2.0499410875e-06,"d":"2.05E-06"}]
[14,"High-End","4_Handling Asbestos-Containing Building Materials During Firefighting or Other Disaster Response Activities","Handling Asbestos-Containing Building Materials During Firefighting or Other Disaster Response Activities","Fugitive","Rural","MetCT","5 years",5000,{"v":5.08e-09,"d":"5.08E-09"},null,null,{"v":2.33E-8,"d":"2.33E-08"},"0.00e+00 - 4.21e-08",{"v":1.11E-8,"d":"1.11E-08"},null,"High-End",{"v":0.004194062535325001,"d":"4.19E-03"},{"v":0.00083375191625,"d":"8.34E-04"},{"v":2.1583300625000002E-4,"d":"2.16E-04"},{"v":6.7183281250000025E-5,"d":"6.72E-05"},{"v":2.1312056250000004E-6,"d":"2.13E-06"},{"v":7.786525e-08,"d":"7.79E-08"},{"v":2.6218837499999998E-8,"d":"2.62E-08"},{"v":9.7759687500000018E-9,"d":"9.78E-09"},{"v":6.6413447559453135E-4,"d":"6.64E-04"}]
[15,"High-End","4_Handling Asbestos-Containing Building Materials During Firefighting or Other Disaster Response Activities","Handling Asbestos-Containing Building Materials During Firefighting or Other Disaster Response Activities","Fugitive","Rural","MetCT","5 years",10000,{"v":1.29e-09,"d":"1.29E-09"},null,null,{"v":6.71e-09,"d":"6.71E-09"},"0.00e+00 - 1.30e-08",{"v":3.35e-09,"d":"3.35E-09"},null,"Handling Asbestos-Containing Building Materials During Firefighting or Other Disaster Response Activities",{"v":0.00083525,"d":"8.35E-04"},{"v":0.0002115,"d":"2.12E-04"},{"v":6.135E-5,"d":"6.14E-05"},{"v":1.9999999999999998E-5,"d":"2.00E-05"},{"v":6.62e-07,"d":"6.62E-07"},{"v":2.07E-8,"d":"2.07E-08"},{"v":6.1774999999999994E-9,"d":"6.18E-09"},{"v":2.2875e-09,"d":"2.29E-09"},{"v":1.4109889562499998E-4,"d":"1.41E-04"}]
[8,"Central Tendency","3_Handling Asbestos-Containing Building Materials During Firefighting or Other Disaster Response Activities","Handling Asbestos-Containing Building Materials During Firefighting or Other Disaster Response Activities","Fugitive","Rural","MetHIGH","5 years",10,{"v":4.92e-06,"d":"4.92E-06"},{"v":7.88e-07,"d":"7.88E-07"},{"v":3.47e-06,"d":"3.47E-06"},{"v":1.25e-05,"d":"1.25E-05"},"2.84e-07 - 1.32e-05",{"v":4.25E-6,"d":"4.25E-06"},null,"Fugitive",{"v":0.00083525,"d":"8.35E-04"},{"v":0.0002115,"d":"2.12E-04"},{"v":6.135E-5,"d":"6.14E-05"},{"v":1.9999999999999998E-5,"d":"2.00E-05"},{"v":6.62e-07,"d":"6.62E-07"},{"v":2.07E-8,"d":"2.07E-08"},{"v":6.1774999999999994E-9,"d":"6.18E-09"},{"v":2.2875e-09,"d":"2.29E-09"},{"v":1.4109889562499998E-4,"d":"1.41E-04"}]
[9,"Central Tendency","3_Handling Asbestos-Containing Building Materials During Firefighting or Other Disaster Response Activities","Handling Asbestos-Containing Building Materials During Firefighting or Other Disaster Response Activities","Fugitive","Rural","MetHIGH","5 years",30,{"v":1.1e-06,"d":"1.10E-06"},{"v":8.27e-09,"d":"8.27E-09"},{"v":6.77e-07,"d":"6.77E-07"},{"v":3.22e-06,"d":"3.22E-06"},"1.44e-09 - 3.45e-06",{"v":1.16e-06,"d":"1.16E-06"},null,"Rural",{"v":0.000828,"d":"8.28E-04"},{"v":2.14E-4,"d":"2.14E-04"},{"v":6.255e-05,"d":"6.26E-05"},{"v":2.04e-05,"d":"2.04E-05"},{"v":6.83e-07,"d":"6.83E-07"},{"v":2.1e-08,"d":"2.10E-08"},{"v":5.98e-09,"d":"5.98E-09"},{"v":2.175E-9,"d":"2.18E-09"},{"v":1.4070776937499997E-4,"d":"1.41E-04"}]
[10,"Central Tendency","3_Handling Asbestos-Containing Building Materials During Firefighting or Other Disaster Response Activities","Handling Asbestos-Containing Building Materials During Firefighting or Other Disaster Response Activities","Fugitive","Rural","MetHIGH","5 years",60,{"v":2.99e-07,"d":"2.99E-07"},{"v":7.06e-10,"d":"7.06E-10"},{"v":1.32e-07,"d":"1.32E-07"},{"v":9.34e-07,"d":"9.34E-07"},"9.07e-11 - 9.37e-07",{"v":3.42e-07,"d":"3.42E-07"},null,"Urban",{"v":8.4249999999999993E-4,"d":"8.43E-04"},{"v":2.0899999999999998E-4,"d":"2.09E-04"},{"v":6.015e-05,"d":"6.02E-05"},{"v":1.9600000000000002E-5,"d":"1.96E-05"},{"v":6.41e-07,"d":"6.41E-07"},{"v":2.04e-08,"d":"2.04E-08"},{"v":6.375E-9,"d":"6.38E-09"},{"v":2.4E-9,"d":"2.40E-09"},{"v":1.41490021875E-4,"d":"1.41E-04"}]
[11,"Central Tendency","3_Handling Asbestos-Containing Building Materials During Firefighting or Other Disaster Response Activities","Handling Asbestos-Containing Building Materials During Firefighting or Other Disaster Response Activities","Fugitive","Rural","MetHIGH","5 years",100,{"v":9.42e-08,"d":"9.42E-08"},{"v":6.99e-11,"d":"6.99E-11"},{"v":3.34e-08,"d":"3.34E-08"},{"v":2.94e-07,"d":"2.94E-07"},"0.00e+00 - 3.07e-07",{"v":1.14E-7,"d":"1.14E-07"},null,"Handling Asbestos-Containing Building Materials During Maintenance, Renovation, and Demolition Activities",{"v":1.116E-3,"d":"1.12E-03"},{"v":2.2600000000000002E-4,"d":"2.26E-04"},{"v":5.9425e-05,"d":"5.94E-05"},{"v":1.865e-05,"d":"1.87E-05"},{"v":5.835E-7,"d":"5.84E-07"},{"v":2.2074999999999997E-8,"d":"2.21E-08"},{"v":7.2350000000000008E-9,"d":"7.24E-09"},{"v":2.6674999999999997E-9,"d":"2.67E-09"},{"v":1.7758630968749999E-4,"d":"1.78E-04"}]
[12,"Central Tendency","3_Handling Asbestos-Containing Building Materials During Firefighting or Other Disaster Response Activities","Handling Asbestos-Containing Building Materials During Firefighting or Other Disaster Response Activities","Fugitive","Rural","MetHIGH","5 years",1000,{"v":3.23e-09,"d":"3.23E-09"},null,{"v":5.44e-10,"d":"5.44E-10"},{"v":1.13E-8,"d":"1.13E-08"},"0.00e+00 - 1.37e-07",{"v":1.15E-8,"d":"1.15E-08"},null,"Fugitive",{"v":1.116E-3,"d":"1.12E-03"},{"v":2.2600000000000002E-4,"d":"2.26E-04"},{"v":5.9425e-05,"d":"5.94E-05"},{"v":1.865e-05,"d":"1.87E-05"},{"v":5.835E-7,"d":"5.84E-07"},{"v":2.2074999999999997E-8,"d":"2.21E-08"},{"v":7.2350000000000008E-9,"d":"7.24E-09"},{"v":2.6674999999999997E-9,"d":"2.67E-09"},{"v":1.7758630968749999E-4,"d":"1.78E-04"}]
[13,"Central Tendency","3_Handling Asbestos-Containing Building Materials During Firefighting or Other Disaster Response Activities","Handling Asbestos-Containing Building Materials During Firefighting or Other Disaster Response Activities","Fugitive","Rural","MetHIGH","5 years",2500,{"v":1.03e-10,"d":"1.03E-10"},null,2.27E-11,{"v":3.5e-10,"d":"3.50E-10"},"0.00e+00 - 3.59e-10",{"v":1.39e-10,"d":"1.39E-10"},null,"Rural",{"v":1.1250000000000001E-3,"d":"1.13E-03"},{"v":2.275E-4,"d":"2.28E-04"},{"v":6.085e-05,"d":"6.09E-05"},{"v":1.925E-5,"d":"1.93E-05"},{"v":6.085e-07,"d":"6.09E-07"},{"v":2.36E-8,"d":"2.36E-08"},{"v":7.48e-09,"d":"7.48E-09"},{"v":2.7199999999999997E-9,"d":"2.72E-09"},{"v":1.7915528749999998E-4,"d":"1.79E-04"}]
[14,"Central Tendency","3_Handling Asbestos-Containing Building Materials During Firefighting or Other Disaster Response Activities","Handling Asbestos-Containing Building Materials During Firefighting or Other Disaster Response Activities","Fugitive","Rural","MetHIGH","5 years",5000,{"v":3.44e-11,"d":"3.44E-11"},null,{"v":7.27e-12,"d":"7.27E-12"},1.15E-10,"0.00e+00 - 1.46e-10",{"v":4.57e-11,"d":"4.57E-11"},null,"Urban",{"v":0.001107,"d":"1.11E-03"},{"v":0.0002245,"d":"2.25E-04"},{"v":5.8E-5,"d":"5.80E-05"},{"v":1.8049999999999998E-5,"d":"1.81E-05"},{"v":5.585e-07,"d":"5.59E-07"},{"v":2.0550000000000002E-8,"d":"2.06E-08"},{"v":6.99e-09,"d":"6.99E-09"},{"v":2.6149999999999998E-9,"d":"2.62E-09"},{"v":0.000176017331875,"d":"1.76E-04"}]
[15,"Central Tendency","3_Handling Asbestos-Containing Building Materials During Firefighting or Other Disaster Response Activities","Handling Asbestos-Containing Building Materials During Firefighting or Other Disaster Response Activities","Fugitive","Rural","MetHIGH","5 years",10000,{"v":1.53e-11,"d":"1.53E-11"},null,1.27E-12,{"v":5.34e-11,"d":"5.34E-11"},"0.00e+00 - 7.92e-11",{"v":2.26e-11,"d":"2.26E-11"},null,"Use, Repair, or Disposal of Industrial and Commercial Appliances or Machinery Containing Asbestos",{"v":0.007412500070650001,"d":"7.41E-03"},{"v":1.4487538324999998E-3,"d":"1.45E-03"},{"v":0.0003712785125,"d":"3.71E-04"},{"v":1.150415625E-4,"d":"1.15E-04"},{"v":3.63966125e-06,"d":"3.64E-06"},{"v":1.34343E-7,"d":"1.34E-07"},{"v":4.5731425e-08,"d":"4.57E-08"},{"v":1.70744375E-8,"d":"1.71E-08"},{"v":1.1689263485328127E-3,"d":"1.17E-03"}]
[8,"High-End","4_Handling Asbestos-Containing Building Materials During Firefighting or Other Disaster Response Activities","Handling Asbestos-Containing Building Materials During Firefighting or Other Disaster Response Activities","Fugitive","Rural","MetHIGH","5 years",10,{"v":0.000984,"d":"9.84E-04"},{"v":0.000158,"d":"1.58E-04"},{"v":0.000694,"d":"6.94E-04"},{"v":2.49E-3,"d":"2.49E-03"},"5.68e-05 - 2.64e-03",{"v":0.00085,"d":"8.50E-04"},null,"Fugitive",{"v":0.014825000000000001,"d":"1.48E-02"},{"v":0.0028975,"d":"2.90E-03"},{"v":7.425000000000001E-4,"d":"7.43E-04"},{"v":0.00023,"d":"2.30E-04"},{"v":7.2725e-06,"d":"7.27E-06"},{"v":2.685E-7,"d":"2.69E-07"},{"v":9.1400000000000011E-8,"d":"9.14E-08"},{"v":3.4124999999999996E-8,"d":"3.41E-08"},{"v":0.002337833315625,"d":"2.34E-03"}]
[9,"High-End","4_Handling Asbestos-Containing Building Materials During Firefighting or Other Disaster Response Activities","Handling Asbestos-Containing Building Materials During Firefighting or Other Disaster Response Activities","Fugitive","Rural","MetHIGH","5 years",30,{"v":0.000221,"d":"2.21E-04"},{"v":1.65e-06,"d":"1.65E-06"},{"v":1.35E-4,"d":"1.35E-04"},{"v":0.000644,"d":"6.44E-04"},"2.88e-07 - 6.90e-04",{"v":2.32E-4,"d":"2.32E-04"},null,"Rural",{"v":0.015,"d":"1.50E-02"},{"v":0.002925,"d":"2.93E-03"},{"v":0.0007595,"d":"7.60E-04"},{"v":0.000236,"d":"2.36E-04"},{"v":7.57e-06,"d":"7.57E-06"},{"v":2.835e-07,"d":"2.84E-07"},{"v":9.43e-08,"d":"9.43E-08"},{"v":3.4950000000000005E-8,"d":"3.50E-08"},{"v":0.00236606034375,"d":"2.37E-03"}]
[10,"High-End","4_Handling Asbestos-Containing Building Materials During Firefighting or Other Disaster Response Activities","Handling Asbestos-Containing Building Materials During Firefighting or Other Disaster Response Activities","Fugitive","Rural","MetHIGH","5 years",60,{"v":5.98e-05,"d":"5.98E-05"},{"v":1.41e-07,"d":"1.41E-07"},{"v":2.63e-05,"d":"2.63E-05"},{"v":0.000187,"d":"1.87E-04"},"1.81e-08 - 1.87e-04",{"v":6.83e-05,"d":"6.83E-05"},null,"Urban",{"v":0.01465,"d":"1.47E-02"},{"v":0.00287,"d":"2.87E-03"},{"v":0.0007255,"d":"7.26E-04"},{"v":2.2400000000000002E-4,"d":"2.24E-04"},{"v":6.975e-06,"d":"6.98E-06"},{"v":2.535e-07,"d":"2.54E-07"},{"v":8.85e-08,"d":"8.85E-08"},{"v":3.33E-8,"d":"3.33E-08"},{"v":2.3096062875000004E-3,"d":"2.31E-03"}]
[11,"High-End","4_Handling Asbestos-Containing Building Materials During Firefighting or Other Disaster Response Activities","Handling Asbestos-Containing Building Materials During Firefighting or Other Disaster Response Activities","Fugitive","Rural","MetHIGH","5 years",100,{"v":1.88E-5,"d":"1.88E-05"},{"v":1.4E-8,"d":"1.40E-08"},{"v":6.67e-06,"d":"6.67E-06"},{"v":5.88e-05,"d":"5.88E-05"},"0.00e+00 - 6.14e-05",{"v":2.27E-5,"d":"2.27E-05"},null,"Stack",{"v":1.4130000000000002E-10,"d":"1.41E-10"},{"v":7.665e-09,"d":"7.67E-09"},{"v":5.7024999999999996E-8,"d":"5.70E-08"},{"v":8.3125e-08,"d":"8.31E-08"},{"v":6.8224999999999995E-9,"d":"6.82E-09"},{"v":1.8600000000000003E-10,"d":"1.86E-10"},{"v":6.285e-11,"d":"6.29E-11"},{"v":2.3875e-11,"d":"2.39E-11"},{"v":1.9381440624999997E-8,"d":"1.94E-08"}]
[12,"High-End","4_Handling Asbestos-Containing Building Materials During Firefighting or Other Disaster Response Activities","Handling Asbestos-Containing Building Materials During Firefighting or Other Disaster Response Activities","Fugitive","Rural","MetHIGH","5 years",1000,{"v":6.45e-07,"d":"6.45E-07"},null,{"v":1.09E-7,"d":"1.09E-07"},{"v":2.26E-6,"d":"2.26E-06"},"0.00e+00 - 2.74e-05",{"v":2.3E-6,"d":"2.30E-06"},null,"Rural",{"v":5.26e-11,"d":"5.26E-11"},{"v":5.5699999999999996E-9,"d":"5.57E-09"},{"v":5.1549999999999995E-8,"d":"5.16E-08"},{"v":7.99e-08,"d":"7.99E-08"},{"v":7e-09,"d":"7.00E-09"},{"v":1.915e-10,"d":"1.92E-10"},{"v":6.44e-11,"d":"6.44E-11"},{"v":2.465E-11,"d":"2.47E-11"},{"v":1.8044143749999998E-8,"d":"1.80E-08"}]
[13,"High-End","4_Handling Asbestos-Containing Building Materials During Firefighting or Other Disaster Response Activities","Handling Asbestos-Containing Building Materials During Firefighting or Other Disaster Response Activities","Fugitive","Rural","MetHIGH","5 years",2500,{"v":2.06e-08,"d":"2.06E-08"},null,{"v":4.54e-09,"d":"4.54E-09"},{"v":6.99e-08,"d":"6.99E-08"},"0.00e+00 - 7.18e-08",{"v":2.79e-08,"d":"2.79E-08"},null,"Urban",{"v":2.3e-10,"d":"2.30E-10"},{"v":9.76e-09,"d":"9.76E-09"},{"v":6.250000000000001E-8,"d":"6.25E-08"},{"v":8.635e-08,"d":"8.64E-08"},{"v":6.645e-09,"d":"6.65E-09"},{"v":1.805E-10,"d":"1.81E-10"},{"v":6.13e-11,"d":"6.13E-11"},2.31E-11,{"v":2.07187375e-08,"d":"2.07E-08"}]
[14,"High-End","4_Handling Asbestos-Containing Building Materials During Firefighting or Other Disaster Response Activities","Handling Asbestos-Containing Building Materials During Firefighting or Other Disaster Response Activities","Fugitive","Rural","MetHIGH","5 years",5000,{"v":6.88e-09,"d":"6.88E-09"},null,{"v":1.45E-9,"d":"1.45E-09"},{"v":2.3e-08,"d":"2.30E-08"},"0.00e+00 - 2.91e-08",{"v":9.13e-09,"d":"9.13E-09"},null,"Grand Total",{"v":2.3998771630428573E-3,"d":"2.40E-03"},{"v":4.7711020214285708E-4,"d":"4.77E-04"},{"v":1.2351364642857143E-4,"d":"1.24E-04"},{"v":3.8447200000000007E-5,"d":"3.84E-05"},{"v":1.2196435714285717E-6,"d":"1.22E-06"},{"v":4.4559103571428575E-8,"d":"4.46E-08"},{"v":1.5003385714285715E-8,"d":"1.50E-08"},{"v":5.5941392857142873E-9,"d":"5.59E-09"},{"v":3.8002912647678574E-4,"d":"3.80E-04"}]
[15,"High-End","4_Handling Asbestos-Containing Building Materials During Firefighting or Other Disaster Response Activities","Handling Asbestos-Containing Building Materials During Firefighting or Other Disaster Response Activities","Fugitive","Rural","MetHIGH","5 years",10000,{"v":3.06e-09,"d":"3.06E-09"},null,{"v":2.53e-10,"d":"2.53E-10"},{"v":1.07E-8,"d":"1.07E-08"},"0.00e+00 - 1.58e-08",{"v":4.53e-09,"d":"4.53E-09"}]
[24,"Central Tendency","3_Handling Asbestos-Containing Building Materials During Firefighting or Other Disaster Response Activities","Handling Asbestos-Containing Building Materials During Firefighting or Other Disaster Response Activities","Fugitive","Urban","MetCT","5 years",10,{"v":3.5e-06,"d":"3.50E-06"},{"v":1.88E-8,"d":"1.88E-08"},{"v":3.71e-06,"d":"3.71E-06"},{"v":8.13e-06,"d":"8.13E-06"},"2.92e-12 - 9.65e-06",{"v":2.84e-06,"d":"2.84E-06"}]
[25,"Central Tendency","3_Handling Asbestos-Containing Building Materials During Firefighting or Other Disaster Response Activities","Handling Asbestos-Containing Building Materials During Firefighting or Other Disaster Response Activities","Fugitive","Urban","MetCT","5 years",30,{"v":9.85e-07,"d":"9.85E-07"},null,{"v":7.94e-07,"d":"7.94E-07"},{"v":2.61E-6,"d":"2.61E-06"},"0.00e+00 - 3.00e-06",{"v":9.63e-07,"d":"9.63E-07"}]
[26,"Central Tendency","3_Handling Asbestos-Containing Building Materials During Firefighting or Other Disaster Response Activities","Handling Asbestos-Containing Building Materials During Firefighting or Other Disaster Response Activities","Fugitive","Urban","MetCT","5 years",60,{"v":3.04e-07,"d":"3.04E-07"},null,{"v":2.21e-07,"d":"2.21E-07"},{"v":8.53e-07,"d":"8.53E-07"},"0.00e+00 - 1.23e-06",{"v":3.47e-07,"d":"3.47E-07"},null,null,10,30,60,100,1000,2500,5000,10000]
[27,"Central Tendency","3_Handling Asbestos-Containing Building Materials During Firefighting or Other Disaster Response Activities","Handling Asbestos-Containing Building Materials During Firefighting or Other Disaster Response Activities","Fugitive","Urban","MetCT","5 years",100,{"v":1.02E-7,"d":"1.02E-07"},null,{"v":6.06E-8,"d":"6.06E-08"},{"v":3.11e-07,"d":"3.11E-07"},"0.00e+00 - 4.64e-07",{"v":1.29E-7,"d":"1.29E-07"},null,"Central Tendency"]
[28,"Central Tendency","3_Handling Asbestos-Containing Building Materials During Firefighting or Other Disaster Response Activities","Handling Asbestos-Containing Building Materials During Firefighting or Other Disaster Response Activities","Fugitive","Urban","MetCT","5 years",1000,{"v":3.22E-9,"d":"3.22E-09"},null,{"v":2.71e-10,"d":"2.71E-10"},{"v":1.4E-8,"d":"1.40E-08"},"0.00e+00 - 1.13e-07",{"v":1.06e-08,"d":"1.06E-08"},null,"Use, Repair, or Disposal of Industrial and Commercial Appliances or Machinery Containing Asbestos Rural Fugitive",{"v":1.325E-5,"d":"1.33E-05"},{"v":2.5999999999999997E-6,"d":"2.60E-06"},{"v":6.745e-07,"d":"6.75E-07"},{"v":2.0950000000000002E-7,"d":"2.10E-07"},{"v":6.72E-9,"d":"6.72E-09"},{"v":2.5199999999999996E-10,"d":"2.52E-10"},{"v":8.385E-11,"d":"8.39E-11"},{"v":3.11e-11,"d":"3.11E-11"}]
[29,"Central Tendency","3_Handling Asbestos-Containing Building Materials During Firefighting or Other Disaster Response Activities","Handling Asbestos-Containing Building Materials During Firefighting or Other Disaster Response Activities","Fugitive","Urban","MetCT","5 years",2500,1.02E-10,null,{"v":4.98e-12,"d":"4.98E-12"},{"v":3.69e-10,"d":"3.69E-10"},"0.00e+00 - 6.22e-10",1.73E-10,null,"Use, Repair, or Disposal of Industrial and Commercial Appliances or Machinery Containing Asbestos Urban Fugitive",{"v":1.3000000000000001E-5,"d":"1.30E-05"},{"v":2.55e-06,"d":"2.55E-06"},{"v":6.4449999999999993E-7,"d":"6.45E-07"},{"v":1.9849999999999998E-7,"d":"1.99E-07"},{"v":6.195e-09,"d":"6.20E-09"},{"v":2.255E-10,"d":"2.26E-10"},{"v":7.859999999999999e-11,"d":"7.86E-11"},2.96E-11]
[30,"Central Tendency","3_Handling Asbestos-Containing Building Materials During Firefighting or Other Disaster Response Activities","Handling Asbestos-Containing Building Materials During Firefighting or Other Disaster Response Activities","Fugitive","Urban","MetCT","5 years",5000,{"v":2.95e-11,"d":"2.95E-11"},null,2.14E-13,1.02E-10,"0.00e+00 - 1.67e-10",{"v":4.91e-11,"d":"4.91E-11"},null,"Handling Asbestos-Containing Building Materials During Maintenance, Renovation, and Demolition Activities Rural Fugitive",{"v":5.645e-06,"d":"5.65E-06"},{"v":1.14e-06,"d":"1.14E-06"},{"v":3.045e-07,"d":"3.05E-07"},{"v":9.6350000000000012E-8,"d":"9.64E-08"},{"v":3.04e-09,"d":"3.04E-09"},{"v":1.183e-10,"d":"1.18E-10"},{"v":3.745e-11,"d":"3.75E-11"},{"v":1.3550000000000001E-11,"d":"1.36E-11"}]
[31,"Central Tendency","3_Handling Asbestos-Containing Building Materials During Firefighting or Other Disaster Response Activities","Handling Asbestos-Containing Building Materials During Firefighting or Other Disaster Response Activities","Fugitive","Urban","MetCT","5 years",10000,{"v":8.53e-12,"d":"8.53E-12"},null,null,{"v":3.18e-11,"d":"3.18E-11"},"0.00e+00 - 5.93e-11",{"v":1.61e-11,"d":"1.61E-11"},null,"Handling Asbestos-Containing Building Materials During Maintenance, Renovation, and Demolition Activities Urban Fugitive",{"v":5.5299999999999996E-6,"d":"5.53E-06"},{"v":1.125E-6,"d":"1.13E-06"},{"v":2.9e-07,"d":"2.90E-07"},{"v":9.0300000000000008E-8,"d":"9.03E-08"},{"v":2.7899999999999997E-9,"d":"2.79E-09"},{"v":1.0265E-10,"d":"1.03E-10"},{"v":3.4999999999999995E-11,"d":"3.50E-11"},{"v":1.305E-11,"d":"1.31E-11"}]
[24,"High-End","4_Handling Asbestos-Containing Building Materials During Firefighting or Other Disaster Response Activities","Handling Asbestos-Containing Building Materials During Firefighting or Other Disaster Response Activities","Fugitive","Urban","MetCT","5 years",10,{"v":0.000699,"d":"6.99E-04"},{"v":3.76E-6,"d":"3.76E-06"},{"v":0.000742,"d":"7.42E-04"},{"v":0.00163,"d":"1.63E-03"},"5.84e-10 - 1.93e-03",{"v":0.000568,"d":"5.68E-04"},null,"Handling Asbestos-Containing Building Materials During Firefighting or Other Disaster Response Activities Urban Fugitive",{"v":4.215e-06,"d":"4.22E-06"},{"v":1.0425000000000002E-6,"d":"1.04E-06"},{"v":3.01e-07,"d":"3.01E-07"},{"v":9.78e-08,"d":"9.78E-08"},{"v":3.205E-9,"d":"3.21E-09"},1.02E-10,{"v":3.19e-11,"d":"3.19E-11"},{"v":1.2015E-11,"d":"1.20E-11"}]
[25,"High-End","4_Handling Asbestos-Containing Building Materials During Firefighting or Other Disaster Response Activities","Handling Asbestos-Containing Building Materials During Firefighting or Other Disaster Response Activities","Fugitive","Urban","MetCT","5 years",30,{"v":0.000197,"d":"1.97E-04"},null,{"v":0.000159,"d":"1.59E-04"},{"v":5.22E-4,"d":"5.22E-04"},"0.00e+00 - 5.99e-04",{"v":1.93E-4,"d":"1.93E-04"},null,"Handling Asbestos-Containing Building Materials During Firefighting or Other Disaster Response Activities Rural Fugitive",{"v":4.14e-06,"d":"4.14E-06"},{"v":1.07e-06,"d":"1.07E-06"},{"v":3.1249999999999997E-7,"d":"3.13E-07"},{"v":1.021e-07,"d":"1.02E-07"},{"v":3.415e-09,"d":"3.42E-09"},1.05E-10,{"v":2.99e-11,"d":"2.99E-11"},{"v":1.0885E-11,"d":"1.09E-11"}]
[26,"High-End","4_Handling Asbestos-Containing Building Materials During Firefighting or Other Disaster Response Activities","Handling Asbestos-Containing Building Materials During Firefighting or Other Disaster Response Activities","Fugitive","Urban","MetCT","5 years",60,{"v":6.08e-05,"d":"6.08E-05"},null,{"v":4.41e-05,"d":"4.41E-05"},{"v":0.000171,"d":"1.71E-04"},"0.00e+00 - 2.45e-04",{"v":6.94e-05,"d":"6.94E-05"},null,"Use, Repair, or Disposal of Industrial and Commercial Appliances or Machinery Containing Asbestos Urban Stack",{"v":2.3e-10,"d":"2.30E-10"},{"v":9.76e-09,"d":"9.76E-09"},{"v":6.250000000000001E-8,"d":"6.25E-08"},{"v":8.635e-08,"d":"8.64E-08"},{"v":6.645e-09,"d":"6.65E-09"},{"v":1.805E-10,"d":"1.81E-10"},{"v":6.13e-11,"d":"6.13E-11"},2.31E-11]
[27,"High-End","4_Handling Asbestos-Containing Building Materials During Firefighting or Other Disaster Response Activities","Handling Asbestos-Containing Building Materials During Firefighting or Other Disaster Response Activities","Fugitive","Urban","MetCT","5 years",100,{"v":2.05E-5,"d":"2.05E-05"},null,{"v":1.21e-05,"d":"1.21E-05"},{"v":6.22e-05,"d":"6.22E-05"},"0.00e+00 - 9.27e-05",{"v":2.58E-5,"d":"2.58E-05"},null,"Use, Repair, or Disposal of Industrial and Commercial Appliances or Machinery Containing Asbestos Rural Stack",{"v":5.26e-11,"d":"5.26E-11"},{"v":5.5699999999999996E-9,"d":"5.57E-09"},{"v":5.1549999999999995E-8,"d":"5.16E-08"},{"v":7.99e-08,"d":"7.99E-08"},{"v":7e-09,"d":"7.00E-09"},{"v":1.915e-10,"d":"1.92E-10"},{"v":6.44e-11,"d":"6.44E-11"},{"v":2.465E-11,"d":"2.47E-11"}]
[28,"High-End","4_Handling Asbestos-Containing Building Materials During Firefighting or Other Disaster Response Activities","Handling Asbestos-Containing Building Materials During Firefighting or Other Disaster Response Activities","Fugitive","Urban","MetCT","5 years",1000,{"v":6.44E-7,"d":"6.44E-07"},null,{"v":5.43e-08,"d":"5.43E-08"},{"v":2.8e-06,"d":"2.80E-06"},"0.00e+00 - 2.25e-05",{"v":2.12E-6,"d":"2.12E-06"},null,"High-End"]
[29,"High-End","4_Handling Asbestos-Containing Building Materials During Firefighting or Other Disaster Response Activities","Handling Asbestos-Containing Building Materials During Firefighting or Other Disaster Response Activities","Fugitive","Urban","MetCT","5 years",2500,{"v":2.04e-08,"d":"2.04E-08"},null,{"v":9.96e-10,"d":"9.96E-10"},{"v":7.39e-08,"d":"7.39E-08"},"0.00e+00 - 1.24e-07",{"v":3.45e-08,"d":"3.45E-08"},null,"Use, Repair, or Disposal of Industrial and Commercial Appliances or Machinery Containing Asbestos Rural Fugitive",{"v":0.015,"d":"1.50E-02"},{"v":0.002925,"d":"2.93E-03"},{"v":0.0007595,"d":"7.60E-04"},{"v":0.000236,"d":"2.36E-04"},{"v":7.57e-06,"d":"7.57E-06"},{"v":2.835e-07,"d":"2.84E-07"},{"v":9.43e-08,"d":"9.43E-08"},{"v":3.4950000000000005E-8,"d":"3.50E-08"}]
[30,"High-End","4_Handling Asbestos-Containing Building Materials During Firefighting or Other Disaster Response Activities","Handling Asbestos-Containing Building Materials During Firefighting or Other Disaster Response Activities","Fugitive","Urban","MetCT","5 years",5000,{"v":5.89e-09,"d":"5.89E-09"},null,{"v":4.28e-11,"d":"4.28E-11"},{"v":2.04e-08,"d":"2.04E-08"},"0.00e+00 - 3.35e-08",{"v":9.82e-09,"d":"9.82E-09"},null,"Use, Repair, or Disposal of Industrial and Commercial Appliances or Machinery Containing Asbestos Urban Fugitive",{"v":0.01465,"d":"1.47E-02"},{"v":0.00287,"d":"2.87E-03"},{"v":0.0007255,"d":"7.26E-04"},{"v":2.2400000000000002E-4,"d":"2.24E-04"},{"v":6.975e-06,"d":"6.98E-06"},{"v":2.535e-07,"d":"2.54E-07"},{"v":8.85e-08,"d":"8.85E-08"},{"v":3.33E-8,"d":"3.33E-08"}]
[31,"High-End","4_Handling Asbestos-Containing Building Materials During Firefighting or Other Disaster Response Activities","Handling Asbestos-Containing Building Materials During Firefighting or Other Disaster Response Activities","Fugitive","Urban","MetCT","5 years",10000,{"v":1.71e-09,"d":"1.71E-09"},null,null,{"v":6.35e-09,"d":"6.35E-09"},"0.00e+00 - 1.19e-08",{"v":3.21e-09,"d":"3.21E-09"},null,"Handling Asbestos-Containing Building Materials During Maintenance, Renovation, and Demolition Activities Rural Fugitive",{"v":1.1250000000000001E-3,"d":"1.13E-03"},{"v":2.275E-4,"d":"2.28E-04"},{"v":6.085e-05,"d":"6.09E-05"},{"v":1.925E-5,"d":"1.93E-05"},{"v":6.085e-07,"d":"6.09E-07"},{"v":2.36E-8,"d":"2.36E-08"},{"v":7.48e-09,"d":"7.48E-09"},{"v":2.7199999999999997E-9,"d":"2.72E-09"}]
[24,"Central Tendency","3_Handling Asbestos-Containing Building Materials During Firefighting or Other Disaster Response Activities","Handling Asbestos-Containing Building Materials During Firefighting or Other Disaster Response Activities","Fugitive","Urban","MetHIGH","5 years",10,{"v":4.93e-06,"d":"4.93E-06"},{"v":8.11e-07,"d":"8.11E-07"},{"v":3.47e-06,"d":"3.47E-06"},{"v":1.25e-05,"d":"1.25E-05"},"3.07e-07 - 1.32e-05",{"v":4.24e-06,"d":"4.24E-06"},null,"Handling Asbestos-Containing Building Materials During Maintenance, Renovation, and Demolition Activities Urban Fugitive",{"v":0.001107,"d":"1.11E-03"},{"v":0.0002245,"d":"2.25E-04"},{"v":5.8E-5,"d":"5.80E-05"},{"v":1.8049999999999998E-5,"d":"1.81E-05"},{"v":5.585e-07,"d":"5.59E-07"},{"v":2.0550000000000002E-8,"d":"2.06E-08"},{"v":6.99e-09,"d":"6.99E-09"},{"v":2.6149999999999998E-9,"d":"2.62E-09"}]
[25,"Central Tendency","3_Handling Asbestos-Containing Building Materials During Firefighting or Other Disaster Response Activities","Handling Asbestos-Containing Building Materials During Firefighting or Other Disaster Response Activities","Fugitive","Urban","MetHIGH","5 years",30,{"v":1.1e-06,"d":"1.10E-06"},{"v":8.73e-09,"d":"8.73E-09"},{"v":6.77e-07,"d":"6.77E-07"},{"v":3.22e-06,"d":"3.22E-06"},"1.45e-09 - 3.45e-06",{"v":1.16e-06,"d":"1.16E-06"},null,"Handling Asbestos-Containing Building Materials During Firefighting or Other Disaster Response Activities Urban Fugitive",{"v":8.4249999999999993E-4,"d":"8.43E-04"},{"v":2.0899999999999998E-4,"d":"2.09E-04"},{"v":6.015e-05,"d":"6.02E-05"},{"v":1.9600000000000002E-5,"d":"1.96E-05"},{"v":6.41e-07,"d":"6.41E-07"},{"v":2.04e-08,"d":"2.04E-08"},{"v":6.375E-9,"d":"6.38E-09"},{"v":2.4E-9,"d":"2.40E-09"}]
[26,"Central Tendency","3_Handling Asbestos-Containing Building Materials During Firefighting or Other Disaster Response Activities","Handling Asbestos-Containing Building Materials During Firefighting or Other Disaster Response Activities","Fugitive","Urban","MetHIGH","5 years",60,{"v":2.98e-07,"d":"2.98E-07"},{"v":7.43e-10,"d":"7.43E-10"},{"v":1.32e-07,"d":"1.32E-07"},{"v":9.34e-07,"d":"9.34E-07"},"9.07e-11 - 9.37e-07",{"v":3.38e-07,"d":"3.38E-07"},null,"Handling Asbestos-Containing Building Materials During Firefighting or Other Disaster Response Activities Rural Fugitive",{"v":0.000828,"d":"8.28E-04"},{"v":2.14E-4,"d":"2.14E-04"},{"v":6.255e-05,"d":"6.26E-05"},{"v":2.04e-05,"d":"2.04E-05"},{"v":6.83e-07,"d":"6.83E-07"},{"v":2.1e-08,"d":"2.10E-08"},{"v":5.98e-09,"d":"5.98E-09"},{"v":2.175E-9,"d":"2.18E-09"}]
[27,"Central Tendency","3_Handling Asbestos-Containing Building Materials During Firefighting or Other Disaster Response Activities","Handling Asbestos-Containing Building Materials During Firefighting or Other Disaster Response Activities","Fugitive","Urban","MetHIGH","5 years",100,{"v":9.36e-08,"d":"9.36E-08"},{"v":6.99e-11,"d":"6.99E-11"},{"v":3.34e-08,"d":"3.34E-08"},{"v":2.94e-07,"d":"2.94E-07"},"0.00e+00 - 3.07e-07",{"v":1.12E-7,"d":"1.12E-07"}]
[28,"Central Tendency","3_Handling Asbestos-Containing Building Materials During Firefighting or Other Disaster Response Activities","Handling Asbestos-Containing Building Materials During Firefighting or Other Disaster Response Activities","Fugitive","Urban","MetHIGH","5 years",1000,{"v":3.19e-09,"d":"3.19E-09"},null,{"v":5.46e-10,"d":"5.46E-10"},{"v":1.13E-8,"d":"1.13E-08"},"0.00e+00 - 1.37e-07",{"v":1.12e-08,"d":"1.12E-08"}]
[29,"Central Tendency","3_Handling Asbestos-Containing Building Materials During Firefighting or Other Disaster Response Activities","Handling Asbestos-Containing Building Materials During Firefighting or Other Disaster Response Activities","Fugitive","Urban","MetHIGH","5 years",2500,1.02E-10,null,2.27E-11,{"v":3.5e-10,"d":"3.50E-10"},"0.00e+00 - 3.59e-10",{"v":1.38e-10,"d":"1.38E-10"}]
[30,"Central Tendency","3_Handling Asbestos-Containing Building Materials During Firefighting or Other Disaster Response Activities","Handling Asbestos-Containing Building Materials During Firefighting or Other Disaster Response Activities","Fugitive","Urban","MetHIGH","5 years",5000,3.43E-11,null,{"v":7.27e-12,"d":"7.27E-12"},1.15E-10,"0.00e+00 - 1.46e-10",{"v":4.56e-11,"d":"4.56E-11"}]
[31,"Central Tendency","3_Handling Asbestos-Containing Building Materials During Firefighting or Other Disaster Response Activities","Handling Asbestos-Containing Building Materials During Firefighting or Other Disaster Response Activities","Fugitive","Urban","MetHIGH","5 years",10000,{"v":1.55e-11,"d":"1.55E-11"},null,1.27E-12,{"v":5.34e-11,"d":"5.34E-11"},"0.00e+00 - 7.92e-11",2.27E-11]
[24,"High-End","4_Handling Asbestos-Containing Building Materials During Firefighting or Other Disaster Response Activities","Handling Asbestos-Containing Building Materials During Firefighting or Other Disaster Response Activities","Fugitive","Urban","MetHIGH","5 years",10,{"v":0.000986,"d":"9.86E-04"},{"v":0.000162,"d":"1.62E-04"},{"v":0.000694,"d":"6.94E-04"},{"v":2.49E-3,"d":"2.49E-03"},"6.15e-05 - 2.64e-03",{"v":0.000848,"d":"8.48E-04"}]
[25,"High-End","4_Handling Asbestos-Containing Building Materials During Firefighting or Other Disaster Response Activities","Handling Asbestos-Containing Building Materials During Firefighting or Other Disaster Response Activities","Fugitive","Urban","MetHIGH","5 years",30,{"v":0.000221,"d":"2.21E-04"},{"v":1.75E-6,"d":"1.75E-06"},{"v":1.35E-4,"d":"1.35E-04"},{"v":0.000644,"d":"6.44E-04"},"2.90e-07 - 6.90e-04",{"v":2.31E-4,"d":"2.31E-04"}]
[26,"High-End","4_Handling Asbestos-Containing Building Materials During Firefighting or Other Disaster Response Activities","Handling Asbestos-Containing Building Materials During Firefighting or Other Disaster Response Activities","Fugitive","Urban","MetHIGH","5 years",60,{"v":5.95e-05,"d":"5.95E-05"},{"v":1.49E-7,"d":"1.49E-07"},{"v":2.63e-05,"d":"2.63E-05"},{"v":0.000187,"d":"1.87E-04"},"1.81e-08 - 1.87e-04",{"v":6.77e-05,"d":"6.77E-05"}]
[27,"High-End","4_Handling Asbestos-Containing Building Materials During Firefighting or Other Disaster Response Activities","Handling Asbestos-Containing Building Materials During Firefighting or Other Disaster Response Activities","Fugitive","Urban","MetHIGH","5 years",100,{"v":1.87e-05,"d":"1.87E-05"},{"v":1.4E-8,"d":"1.40E-08"},{"v":6.67e-06,"d":"6.67E-06"},{"v":5.88e-05,"d":"5.88E-05"},"0.00e+00 - 6.14e-05",{"v":2.24e-05,"d":"2.24E-05"}]
[28,"High-End","4_Handling Asbestos-Containing Building Materials During Firefighting or Other Disaster Response Activities","Handling Asbestos-Containing Building Materials During Firefighting or Other Disaster Response Activities","Fugitive","Urban","MetHIGH","5 years",1000,{"v":6.38e-07,"d":"6.38E-07"},null,{"v":1.09E-7,"d":"1.09E-07"},{"v":2.26E-6,"d":"2.26E-06"},"0.00e+00 - 2.74e-05",{"v":2.25e-06,"d":"2.25E-06"}]
[29,"High-End","4_Handling Asbestos-Containing Building Materials During Firefighting or Other Disaster Response Activities","Handling Asbestos-Containing Building Materials During Firefighting or Other Disaster Response Activities","Fugitive","Urban","MetHIGH","5 years",2500,{"v":2.04e-08,"d":"2.04E-08"},null,{"v":4.54e-09,"d":"4.54E-09"},{"v":6.99e-08,"d":"6.99E-08"},"0.00e+00 - 7.18e-08",{"v":2.75e-08,"d":"2.75E-08"}]
[30,"High-End","4_Handling Asbestos-Containing Building Materials During Firefighting or Other Disaster Response Activities","Handling Asbestos-Containing Building Materials During Firefighting or Other Disaster Response Activities","Fugitive","Urban","MetHIGH","5 years",5000,{"v":6.86e-09,"d":"6.86E-09"},null,{"v":1.45E-9,"d":"1.45E-09"},{"v":2.3e-08,"d":"2.30E-08"},"0.00e+00 - 2.91e-08",{"v":9.11e-09,"d":"9.11E-09"}]
[31,"High-End","4_Handling Asbestos-Containing Building Materials During Firefighting or Other Disaster Response Activities","Handling Asbestos-Containing Building Materials During Firefighting or Other Disaster Response Activities","Fugitive","Urban","MetHIGH","5 years",10000,{"v":3.09e-09,"d":"3.09E-09"},null,{"v":2.53e-10,"d":"2.53E-10"},{"v":1.07E-8,"d":"1.07E-08"},"0.00e+00 - 1.58e-08",{"v":4.53e-09,"d":"4.53E-09"}]
[8,"Central Tendency","1_Handling Asbestos-Containing Building Materials During Maintenance, Renovation, and Demolition Activities","Handling Asbestos-Containing Building Materials During Maintenance, Renovation, and Demolition Activities","Fugitive","Rural","MetCT","5 years",10,{"v":5.12e-06,"d":"5.12E-06"},{"v":3.12e-06,"d":"3.12E-06"},{"v":5.24e-06,"d":"5.24E-06"},{"v":6.65e-06,"d":"6.65E-06"},"2.45e-06 - 6.79e-06",{"v":1.37E-6,"d":"1.37E-06"}]
[9,"Central Tendency","1_Handling Asbestos-Containing Building Materials During Maintenance, Renovation, and Demolition Activities","Handling Asbestos-Containing Building Materials During Maintenance, Renovation, and Demolition Activities","Fugitive","Rural","MetCT","5 years",30,{"v":1.11E-6,"d":"1.11E-06"},{"v":5.51E-7,"d":"5.51E-07"},{"v":1.23e-06,"d":"1.23E-06"},{"v":1.56e-06,"d":"1.56E-06"},"2.77e-07 - 1.58e-06",{"v":3.9e-07,"d":"3.90E-07"}]
[10,"Central Tendency","1_Handling Asbestos-Containing Building Materials During Maintenance, Renovation, and Demolition Activities","Handling Asbestos-Containing Building Materials During Maintenance, Renovation, and Demolition Activities","Fugitive","Rural","MetCT","5 years",60,{"v":3.24e-07,"d":"3.24E-07"},{"v":1.38e-07,"d":"1.38E-07"},{"v":3.45e-07,"d":"3.45E-07"},{"v":4.86e-07,"d":"4.86E-07"},"5.68e-08 - 5.05e-07",{"v":1.39e-07,"d":"1.39E-07"}]
[11,"Central Tendency","1_Handling Asbestos-Containing Building Materials During Maintenance, Renovation, and Demolition Activities","Handling Asbestos-Containing Building Materials During Maintenance, Renovation, and Demolition Activities","Fugitive","Rural","MetCT","5 years",100,{"v":1.07e-07,"d":"1.07E-07"},{"v":4.4e-08,"d":"4.40E-08"},{"v":1.08E-7,"d":"1.08E-07"},{"v":1.72E-7,"d":"1.72E-07"},"1.58e-08 - 1.74e-07",{"v":5.01e-08,"d":"5.01E-08"}]
[12,"Central Tendency","1_Handling Asbestos-Containing Building Materials During Maintenance, Renovation, and Demolition Activities","Handling Asbestos-Containing Building Materials During Maintenance, Renovation, and Demolition Activities","Fugitive","Rural","MetCT","5 years",1000,{"v":3.47e-09,"d":"3.47E-09"},{"v":4.76e-10,"d":"4.76E-10"},{"v":1.58e-09,"d":"1.58E-09"},{"v":1.38e-08,"d":"1.38E-08"},"9.59e-11 - 7.12e-08",{"v":6.55e-09,"d":"6.55E-09"}]
[13,"Central Tendency","1_Handling Asbestos-Containing Building Materials During Maintenance, Renovation, and Demolition Activities","Handling Asbestos-Containing Building Materials During Maintenance, Renovation, and Demolition Activities","Fugitive","Rural","MetCT","5 years",2500,{"v":1.45e-10,"d":"1.45E-10"},{"v":5.41e-11,"d":"5.41E-11"},1.49E-10,2.69E-10,"2.78e-11 - 2.73e-10",{"v":7.97e-11,"d":"7.97E-11"}]
[14,"Central Tendency","1_Handling Asbestos-Containing Building Materials During Maintenance, Renovation, and Demolition Activities","Handling Asbestos-Containing Building Materials During Maintenance, Renovation, and Demolition Activities","Fugitive","Rural","MetCT","5 years",5000,{"v":4.36e-11,"d":"4.36E-11"},{"v":1.51e-11,"d":"1.51E-11"},4.22E-11,7.93E-11,"1.18e-11 - 7.98e-11",2.19E-11]
[15,"Central Tendency","1_Handling Asbestos-Containing Building Materials During Maintenance, Renovation, and Demolition Activities","Handling Asbestos-Containing Building Materials During Maintenance, Renovation, and Demolition Activities","Fugitive","Rural","MetCT","5 years",10000,1.46E-11,{"v":4.54e-12,"d":"4.54E-12"},{"v":1.5E-11,"d":"1.50E-11"},{"v":2.42e-11,"d":"2.42E-11"},"3.54e-12 - 2.58e-11",{"v":6.86e-12,"d":"6.86E-12"}]
[8,"High-End","2_Handling Asbestos-Containing Building Materials During Maintenance, Renovation, and Demolition Activities","Handling Asbestos-Containing Building Materials During Maintenance, Renovation, and Demolition Activities","Fugitive","Rural","MetCT","5 years",10,{"v":0.00102,"d":"1.02E-03"},{"v":0.000625,"d":"6.25E-04"},{"v":0.00105,"d":"1.05E-03"},{"v":1.33E-3,"d":"1.33E-03"},"4.90e-04 - 1.36e-03",{"v":0.000274,"d":"2.74E-04"}]
[9,"High-End","2_Handling Asbestos-Containing Building Materials During Maintenance, Renovation, and Demolition Activities","Handling Asbestos-Containing Building Materials During Maintenance, Renovation, and Demolition Activities","Fugitive","Rural","MetCT","5 years",30,{"v":0.000221,"d":"2.21E-04"},{"v":1.1E-4,"d":"1.10E-04"},{"v":0.000246,"d":"2.46E-04"},{"v":0.000313,"d":"3.13E-04"},"5.54e-05 - 3.15e-04",{"v":7.79e-05,"d":"7.79E-05"}]
[10,"High-End","2_Handling Asbestos-Containing Building Materials During Maintenance, Renovation, and Demolition Activities","Handling Asbestos-Containing Building Materials During Maintenance, Renovation, and Demolition Activities","Fugitive","Rural","MetCT","5 years",60,{"v":6.48e-05,"d":"6.48E-05"},{"v":2.76E-5,"d":"2.76E-05"},{"v":6.9e-05,"d":"6.90E-05"},{"v":9.71e-05,"d":"9.71E-05"},"1.14e-05 - 1.01e-04",{"v":2.77e-05,"d":"2.77E-05"}]
[11,"High-End","2_Handling Asbestos-Containing Building Materials During Maintenance, Renovation, and Demolition Activities","Handling Asbestos-Containing Building Materials During Maintenance, Renovation, and Demolition Activities","Fugitive","Rural","MetCT","5 years",100,{"v":2.14e-05,"d":"2.14E-05"},{"v":8.8e-06,"d":"8.80E-06"},{"v":2.16E-5,"d":"2.16E-05"},{"v":3.45e-05,"d":"3.45E-05"},"3.15e-06 - 3.49e-05",{"v":1e-05,"d":"1.00E-05"}]
[12,"High-End","2_Handling Asbestos-Containing Building Materials During Maintenance, Renovation, and Demolition Activities","Handling Asbestos-Containing Building Materials During Maintenance, Renovation, and Demolition Activities","Fugitive","Rural","MetCT","5 years",1000,{"v":6.94e-07,"d":"6.94E-07"},{"v":9.53E-8,"d":"9.53E-08"},{"v":3.17e-07,"d":"3.17E-07"},{"v":2.76e-06,"d":"2.76E-06"},"1.92e-08 - 1.42e-05",{"v":1.31E-6,"d":"1.31E-06"}]
[13,"High-End","2_Handling Asbestos-Containing Building Materials During Maintenance, Renovation, and Demolition Activities","Handling Asbestos-Containing Building Materials During Maintenance, Renovation, and Demolition Activities","Fugitive","Rural","MetCT","5 years",2500,{"v":2.89e-08,"d":"2.89E-08"},{"v":1.08e-08,"d":"1.08E-08"},{"v":2.97e-08,"d":"2.97E-08"},{"v":5.39E-8,"d":"5.39E-08"},"5.55e-09 - 5.47e-08",{"v":1.59E-8,"d":"1.59E-08"}]
[14,"High-End","2_Handling Asbestos-Containing Building Materials During Maintenance, Renovation, and Demolition Activities","Handling Asbestos-Containing Building Materials During Maintenance, Renovation, and Demolition Activities","Fugitive","Rural","MetCT","5 years",5000,{"v":8.71e-09,"d":"8.71E-09"},{"v":3.01e-09,"d":"3.01E-09"},{"v":8.44e-09,"d":"8.44E-09"},{"v":1.59E-8,"d":"1.59E-08"},"2.36e-09 - 1.60e-08",{"v":4.39e-09,"d":"4.39E-09"}]
[15,"High-End","2_Handling Asbestos-Containing Building Materials During Maintenance, Renovation, and Demolition Activities","Handling Asbestos-Containing Building Materials During Maintenance, Renovation, and Demolition Activities","Fugitive","Rural","MetCT","5 years",10000,{"v":2.93E-9,"d":"2.93E-09"},{"v":9.08e-10,"d":"9.08E-10"},{"v":3E-9,"d":"3.00E-09"},{"v":4.84e-09,"d":"4.84E-09"},"7.08e-10 - 5.16e-09",{"v":1.37E-9,"d":"1.37E-09"}]
[8,"Central Tendency","1_Handling Asbestos-Containing Building Materials During Maintenance, Renovation, and Demolition Activities","Handling Asbestos-Containing Building Materials During Maintenance, Renovation, and Demolition Activities","Fugitive","Rural","MetHIGH","5 years",10,{"v":6.17e-06,"d":"6.17E-06"},{"v":4.17e-06,"d":"4.17E-06"},{"v":5.59e-06,"d":"5.59E-06"},{"v":1.01E-5,"d":"1.01E-05"},"4.10e-06 - 1.03e-05",{"v":1.92e-06,"d":"1.92E-06"}]
[9,"Central Tendency","1_Handling Asbestos-Containing Building Materials During Maintenance, Renovation, and Demolition Activities","Handling Asbestos-Containing Building Materials During Maintenance, Renovation, and Demolition Activities","Fugitive","Rural","MetHIGH","5 years",30,{"v":1.17E-6,"d":"1.17E-06"},{"v":6.46e-07,"d":"6.46E-07"},{"v":1.15E-6,"d":"1.15E-06"},{"v":2.12E-6,"d":"2.12E-06"},"5.65e-07 - 2.24e-06",{"v":4.73e-07,"d":"4.73E-07"}]
[10,"Central Tendency","1_Handling Asbestos-Containing Building Materials During Maintenance, Renovation, and Demolition Activities","Handling Asbestos-Containing Building Materials During Maintenance, Renovation, and Demolition Activities","Fugitive","Rural","MetHIGH","5 years",60,{"v":2.85e-07,"d":"2.85E-07"},{"v":1.29E-7,"d":"1.29E-07"},{"v":2.85e-07,"d":"2.85E-07"},{"v":5.41e-07,"d":"5.41E-07"},"1.11e-07 - 5.64e-07",{"v":1.29E-7,"d":"1.29E-07"}]
[11,"Central Tendency","1_Handling Asbestos-Containing Building Materials During Maintenance, Renovation, and Demolition Activities","Handling Asbestos-Containing Building Materials During Maintenance, Renovation, and Demolition Activities","Fugitive","Rural","MetHIGH","5 years",100,{"v":8.57e-08,"d":"8.57E-08"},{"v":3.55E-8,"d":"3.55E-08"},{"v":8.48e-08,"d":"8.48E-08"},{"v":1.68E-7,"d":"1.68E-07"},"3.10e-08 - 1.74e-07",{"v":4.14E-8,"d":"4.14E-08"}]
[12,"Central Tendency","1_Handling Asbestos-Containing Building Materials During Maintenance, Renovation, and Demolition Activities","Handling Asbestos-Containing Building Materials During Maintenance, Renovation, and Demolition Activities","Fugitive","Rural","MetHIGH","5 years",1000,{"v":2.61e-09,"d":"2.61E-09"},4.04E-10,{"v":1.06e-09,"d":"1.06E-09"},{"v":8.57E-9,"d":"8.57E-09"},"2.23e-10 - 3.76e-08",{"v":5.07e-09,"d":"5.07E-09"}]
[13,"Central Tendency","1_Handling Asbestos-Containing Building Materials During Maintenance, Renovation, and Demolition Activities","Handling Asbestos-Containing Building Materials During Maintenance, Renovation, and Demolition Activities","Fugitive","Rural","MetHIGH","5 years",2500,{"v":9.16e-11,"d":"9.16E-11"},{"v":3.82e-11,"d":"3.82E-11"},{"v":8.62e-11,"d":"8.62E-11"},1.86E-10,"3.68e-11 - 2.34e-10",{"v":5.4e-11,"d":"5.40E-11"}]
[14,"Central Tendency","1_Handling Asbestos-Containing Building Materials During Maintenance, Renovation, and Demolition Activities","Handling Asbestos-Containing Building Materials During Maintenance, Renovation, and Demolition Activities","Fugitive","Rural","MetHIGH","5 years",5000,{"v":3.13e-11,"d":"3.13E-11"},1.46E-11,{"v":2.95e-11,"d":"2.95E-11"},{"v":6.08e-11,"d":"6.08E-11"},"1.20e-11 - 8.53e-11",{"v":1.88e-11,"d":"1.88E-11"}]
[15,"Central Tendency","1_Handling Asbestos-Containing Building Materials During Maintenance, Renovation, and Demolition Activities","Handling Asbestos-Containing Building Materials During Maintenance, Renovation, and Demolition Activities","Fugitive","Rural","MetHIGH","5 years",10000,1.25E-11,{"v":5.6e-12,"d":"5.60E-12"},{"v":1.17e-11,"d":"1.17E-11"},{"v":2.59e-11,"d":"2.59E-11"},"4.90e-12 - 3.60e-11",{"v":8.07e-12,"d":"8.07E-12"}]
[8,"High-End","2_Handling Asbestos-Containing Building Materials During Maintenance, Renovation, and Demolition Activities","Handling Asbestos-Containing Building Materials During Maintenance, Renovation, and Demolition Activities","Fugitive","Rural","MetHIGH","5 years",10,{"v":1.23E-3,"d":"1.23E-03"},{"v":0.000833,"d":"8.33E-04"},{"v":0.00112,"d":"1.12E-03"},{"v":0.00201,"d":"2.01E-03"},"8.20e-04 - 2.06e-03",{"v":0.000383,"d":"3.83E-04"}]
[9,"High-End","2_Handling Asbestos-Containing Building Materials During Maintenance, Renovation, and Demolition Activities","Handling Asbestos-Containing Building Materials During Maintenance, Renovation, and Demolition Activities","Fugitive","Rural","MetHIGH","5 years",30,{"v":2.34E-4,"d":"2.34E-04"},{"v":0.000129,"d":"1.29E-04"},{"v":2.31E-4,"d":"2.31E-04"},{"v":0.000425,"d":"4.25E-04"},"1.13e-04 - 4.48e-04",{"v":9.46e-05,"d":"9.46E-05"}]
[10,"High-End","2_Handling Asbestos-Containing Building Materials During Maintenance, Renovation, and Demolition Activities","Handling Asbestos-Containing Building Materials During Maintenance, Renovation, and Demolition Activities","Fugitive","Rural","MetHIGH","5 years",60,{"v":5.69e-05,"d":"5.69E-05"},{"v":2.57e-05,"d":"2.57E-05"},{"v":5.71e-05,"d":"5.71E-05"},{"v":1.08E-4,"d":"1.08E-04"},"2.23e-05 - 1.13e-04",{"v":2.58E-5,"d":"2.58E-05"}]
[11,"High-End","2_Handling Asbestos-Containing Building Materials During Maintenance, Renovation, and Demolition Activities","Handling Asbestos-Containing Building Materials During Maintenance, Renovation, and Demolition Activities","Fugitive","Rural","MetHIGH","5 years",100,{"v":1.71e-05,"d":"1.71E-05"},{"v":7.1e-06,"d":"7.10E-06"},{"v":1.7E-5,"d":"1.70E-05"},{"v":3.36e-05,"d":"3.36E-05"},"6.19e-06 - 3.47e-05",{"v":8.27e-06,"d":"8.27E-06"}]
[12,"High-End","2_Handling Asbestos-Containing Building Materials During Maintenance, Renovation, and Demolition Activities","Handling Asbestos-Containing Building Materials During Maintenance, Renovation, and Demolition Activities","Fugitive","Rural","MetHIGH","5 years",1000,{"v":5.23e-07,"d":"5.23E-07"},{"v":8.08e-08,"d":"8.08E-08"},{"v":2.11E-7,"d":"2.11E-07"},{"v":1.71e-06,"d":"1.71E-06"},"4.46e-08 - 7.52e-06",{"v":1.01e-06,"d":"1.01E-06"}]
[13,"High-End","2_Handling Asbestos-Containing Building Materials During Maintenance, Renovation, and Demolition Activities","Handling Asbestos-Containing Building Materials During Maintenance, Renovation, and Demolition Activities","Fugitive","Rural","MetHIGH","5 years",2500,{"v":1.83e-08,"d":"1.83E-08"},{"v":7.64e-09,"d":"7.64E-09"},{"v":1.72e-08,"d":"1.72E-08"},{"v":3.72e-08,"d":"3.72E-08"},"7.35e-09 - 4.69e-08",{"v":1.08e-08,"d":"1.08E-08"}]
[14,"High-End","2_Handling Asbestos-Containing Building Materials During Maintenance, Renovation, and Demolition Activities","Handling Asbestos-Containing Building Materials During Maintenance, Renovation, and Demolition Activities","Fugitive","Rural","MetHIGH","5 years",5000,{"v":6.25e-09,"d":"6.25E-09"},{"v":2.93E-9,"d":"2.93E-09"},{"v":5.91e-09,"d":"5.91E-09"},{"v":1.22E-8,"d":"1.22E-08"},"2.41e-09 - 1.71e-08",{"v":3.75e-09,"d":"3.75E-09"}]
[15,"High-End","2_Handling Asbestos-Containing Building Materials During Maintenance, Renovation, and Demolition Activities","Handling Asbestos-Containing Building Materials During Maintenance, Renovation, and Demolition Activities","Fugitive","Rural","MetHIGH","5 years",10000,{"v":2.51e-09,"d":"2.51E-09"},{"v":1.12e-09,"d":"1.12E-09"},{"v":2.34e-09,"d":"2.34E-09"},{"v":5.19e-09,"d":"5.19E-09"},"9.81e-10 - 7.21e-09",{"v":1.61E-9,"d":"1.61E-09"}]
[24,"Central Tendency","1_Handling Asbestos-Containing Building Materials During Maintenance, Renovation, and Demolition Activities","Handling Asbestos-Containing Building Materials During Maintenance, Renovation, and Demolition Activities","Fugitive","Urban","MetCT","5 years",10,{"v":4.92e-06,"d":"4.92E-06"},{"v":3.04e-06,"d":"3.04E-06"},{"v":5.3e-06,"d":"5.30E-06"},{"v":6.21e-06,"d":"6.21E-06"},"2.43e-06 - 6.29e-06",{"v":1.23e-06,"d":"1.23E-06"}]
[25,"Central Tendency","1_Handling Asbestos-Containing Building Materials During Maintenance, Renovation, and Demolition Activities","Handling Asbestos-Containing Building Materials During Maintenance, Renovation, and Demolition Activities","Fugitive","Urban","MetCT","5 years",30,{"v":1.1e-06,"d":"1.10E-06"},{"v":5.49e-07,"d":"5.49E-07"},{"v":1.15E-6,"d":"1.15E-06"},{"v":1.52e-06,"d":"1.52E-06"},"3.11e-07 - 1.57e-06",{"v":3.78e-07,"d":"3.78E-07"}]
[26,"Central Tendency","1_Handling Asbestos-Containing Building Materials During Maintenance, Renovation, and Demolition Activities","Handling Asbestos-Containing Building Materials During Maintenance, Renovation, and Demolition Activities","Fugitive","Urban","MetCT","5 years",60,{"v":3.02e-07,"d":"3.02E-07"},{"v":1.33e-07,"d":"1.33E-07"},{"v":2.96E-7,"d":"2.96E-07"},{"v":4.55e-07,"d":"4.55E-07"},"6.27e-08 - 4.59e-07",{"v":1.28e-07,"d":"1.28E-07"}]
[27,"Central Tendency","1_Handling Asbestos-Containing Building Materials During Maintenance, Renovation, and Demolition Activities","Handling Asbestos-Containing Building Materials During Maintenance, Renovation, and Demolition Activities","Fugitive","Urban","MetCT","5 years",100,{"v":9.71e-08,"d":"9.71E-08"},{"v":3.99E-8,"d":"3.99E-08"},{"v":9.18e-08,"d":"9.18E-08"},{"v":1.53e-07,"d":"1.53E-07"},"1.71e-08 - 1.55e-07",{"v":4.54e-08,"d":"4.54E-08"}]
[28,"Central Tendency","1_Handling Asbestos-Containing Building Materials During Maintenance, Renovation, and Demolition Activities","Handling Asbestos-Containing Building Materials During Maintenance, Renovation, and Demolition Activities","Fugitive","Urban","MetCT","5 years",1000,{"v":3.04e-09,"d":"3.04E-09"},4.18E-10,{"v":1.32E-9,"d":"1.32E-09"},{"v":1.19e-08,"d":"1.19E-08"},"1.04e-10 - 7.14e-08",{"v":6.17E-9,"d":"6.17E-09"}]
[29,"Central Tendency","1_Handling Asbestos-Containing Building Materials During Maintenance, Renovation, and Demolition Activities","Handling Asbestos-Containing Building Materials During Maintenance, Renovation, and Demolition Activities","Fugitive","Urban","MetCT","5 years",2500,1.16E-10,{"v":4.53e-11,"d":"4.53E-11"},1.36E-10,{"v":1.84e-10,"d":"1.84E-10"},"2.78e-11 - 1.90e-10",5.17E-11]
[30,"Central Tendency","1_Handling Asbestos-Containing Building Materials During Maintenance, Renovation, and Demolition Activities","Handling Asbestos-Containing Building Materials During Maintenance, Renovation, and Demolition Activities","Fugitive","Urban","MetCT","5 years",5000,3.83E-11,{"v":1.4E-11,"d":"1.40E-11"},{"v":3.9e-11,"d":"3.90E-11"},{"v":5.89e-11,"d":"5.89E-11"},"1.18e-11 - 6.26e-11",1.64E-11]
[31,"Central Tendency","1_Handling Asbestos-Containing Building Materials During Maintenance, Renovation, and Demolition Activities","Handling Asbestos-Containing Building Materials During Maintenance, Renovation, and Demolition Activities","Fugitive","Urban","MetCT","5 years",10000,1.34E-11,{"v":4.6e-12,"d":"4.60E-12"},{"v":1.3E-11,"d":"1.30E-11"},{"v":2.12e-11,"d":"2.12E-11"},"3.47e-12 - 2.27e-11",{"v":5.77e-12,"d":"5.77E-12"}]
[24,"High-End","2_Handling Asbestos-Containing Building Materials During Maintenance, Renovation, and Demolition Activities","Handling Asbestos-Containing Building Materials During Maintenance, Renovation, and Demolition Activities","Fugitive","Urban","MetCT","5 years",10,{"v":0.000984,"d":"9.84E-04"},{"v":0.000608,"d":"6.08E-04"},{"v":1.06E-3,"d":"1.06E-03"},{"v":1.24E-3,"d":"1.24E-03"},"4.86e-04 - 1.26e-03",{"v":0.000245,"d":"2.45E-04"}]
[25,"High-End","2_Handling Asbestos-Containing Building Materials During Maintenance, Renovation, and Demolition Activities","Handling Asbestos-Containing Building Materials During Maintenance, Renovation, and Demolition Activities","Fugitive","Urban","MetCT","5 years",30,{"v":0.000219,"d":"2.19E-04"},{"v":1.1E-4,"d":"1.10E-04"},{"v":0.000229,"d":"2.29E-04"},{"v":0.000304,"d":"3.04E-04"},"6.22e-05 - 3.15e-04",{"v":7.55e-05,"d":"7.55E-05"}]
[26,"High-End","2_Handling Asbestos-Containing Building Materials During Maintenance, Renovation, and Demolition Activities","Handling Asbestos-Containing Building Materials During Maintenance, Renovation, and Demolition Activities","Fugitive","Urban","MetCT","5 years",60,{"v":6.04e-05,"d":"6.04E-05"},{"v":2.67e-05,"d":"2.67E-05"},{"v":5.92e-05,"d":"5.92E-05"},{"v":9.11e-05,"d":"9.11E-05"},"1.25e-05 - 9.18e-05",{"v":2.57e-05,"d":"2.57E-05"}]
[27,"High-End","2_Handling Asbestos-Containing Building Materials During Maintenance, Renovation, and Demolition Activities","Handling Asbestos-Containing Building Materials During Maintenance, Renovation, and Demolition Activities","Fugitive","Urban","MetCT","5 years",100,{"v":1.94e-05,"d":"1.94E-05"},{"v":7.98e-06,"d":"7.98E-06"},{"v":1.84E-5,"d":"1.84E-05"},{"v":3.06e-05,"d":"3.06E-05"},"3.41e-06 - 3.10e-05",{"v":9.07e-06,"d":"9.07E-06"}]
[28,"High-End","2_Handling Asbestos-Containing Building Materials During Maintenance, Renovation, and Demolition Activities","Handling Asbestos-Containing Building Materials During Maintenance, Renovation, and Demolition Activities","Fugitive","Urban","MetCT","5 years",1000,{"v":6.09e-07,"d":"6.09E-07"},{"v":8.35E-8,"d":"8.35E-08"},{"v":2.63e-07,"d":"2.63E-07"},{"v":2.38e-06,"d":"2.38E-06"},"2.07e-08 - 1.43e-05",{"v":1.23e-06,"d":"1.23E-06"}]
[29,"High-End","2_Handling Asbestos-Containing Building Materials During Maintenance, Renovation, and Demolition Activities","Handling Asbestos-Containing Building Materials During Maintenance, Renovation, and Demolition Activities","Fugitive","Urban","MetCT","5 years",2500,{"v":2.32e-08,"d":"2.32E-08"},{"v":9.07e-09,"d":"9.07E-09"},{"v":2.72e-08,"d":"2.72E-08"},{"v":3.68e-08,"d":"3.68E-08"},"5.55e-09 - 3.81e-08",{"v":1.03E-8,"d":"1.03E-08"}]
[30,"High-End","2_Handling Asbestos-Containing Building Materials During Maintenance, Renovation, and Demolition Activities","Handling Asbestos-Containing Building Materials During Maintenance, Renovation, and Demolition Activities","Fugitive","Urban","MetCT","5 years",5000,{"v":7.65e-09,"d":"7.65E-09"},{"v":2.79e-09,"d":"2.79E-09"},{"v":7.8e-09,"d":"7.80E-09"},{"v":1.18E-8,"d":"1.18E-08"},"2.36e-09 - 1.25e-08",{"v":3.28e-09,"d":"3.28E-09"}]
[31,"High-End","2_Handling Asbestos-Containing Building Materials During Maintenance, Renovation, and Demolition Activities","Handling Asbestos-Containing Building Materials During Maintenance, Renovation, and Demolition Activities","Fugitive","Urban","MetCT","5 years",10000,{"v":2.69E-9,"d":"2.69E-09"},{"v":9.21e-10,"d":"9.21E-10"},{"v":2.6e-09,"d":"2.60E-09"},{"v":4.23e-09,"d":"4.23E-09"},"6.94e-10 - 4.54e-09",{"v":1.15E-9,"d":"1.15E-09"}]
[24,"Central Tendency","1_Handling Asbestos-Containing Building Materials During Maintenance, Renovation, and Demolition Activities","Handling Asbestos-Containing Building Materials During Maintenance, Renovation, and Demolition Activities","Fugitive","Urban","MetHIGH","5 years",10,{"v":6.14e-06,"d":"6.14E-06"},{"v":4.17e-06,"d":"4.17E-06"},{"v":5.59e-06,"d":"5.59E-06"},{"v":1e-05,"d":"1.00E-05"},"4.10e-06 - 1.02e-05",{"v":1.9E-6,"d":"1.90E-06"}]
[25,"Central Tendency","1_Handling Asbestos-Containing Building Materials During Maintenance, Renovation, and Demolition Activities","Handling Asbestos-Containing Building Materials During Maintenance, Renovation, and Demolition Activities","Fugitive","Urban","MetHIGH","5 years",30,{"v":1.15E-6,"d":"1.15E-06"},{"v":6.46e-07,"d":"6.46E-07"},{"v":1.11E-6,"d":"1.11E-06"},{"v":2.1e-06,"d":"2.10E-06"},"5.68e-07 - 2.17e-06",{"v":4.61e-07,"d":"4.61E-07"}]
[26,"Central Tendency","1_Handling Asbestos-Containing Building Materials During Maintenance, Renovation, and Demolition Activities","Handling Asbestos-Containing Building Materials During Maintenance, Renovation, and Demolition Activities","Fugitive","Urban","MetHIGH","5 years",60,{"v":2.78e-07,"d":"2.78E-07"},{"v":1.29E-7,"d":"1.29E-07"},{"v":2.73e-07,"d":"2.73E-07"},{"v":5.31e-07,"d":"5.31E-07"},"1.12e-07 - 5.41e-07",{"v":1.25e-07,"d":"1.25E-07"}]
[27,"Central Tendency","1_Handling Asbestos-Containing Building Materials During Maintenance, Renovation, and Demolition Activities","Handling Asbestos-Containing Building Materials During Maintenance, Renovation, and Demolition Activities","Fugitive","Urban","MetHIGH","5 years",100,{"v":8.35E-8,"d":"8.35E-08"},{"v":3.54e-08,"d":"3.54E-08"},{"v":8.2e-08,"d":"8.20E-08"},{"v":1.64e-07,"d":"1.64E-07"},"3.12e-08 - 1.67e-07",{"v":3.97e-08,"d":"3.97E-08"}]
[28,"Central Tendency","1_Handling Asbestos-Containing Building Materials During Maintenance, Renovation, and Demolition Activities","Handling Asbestos-Containing Building Materials During Maintenance, Renovation, and Demolition Activities","Fugitive","Urban","MetHIGH","5 years",1000,{"v":2.54e-09,"d":"2.54E-09"},{"v":3.95e-10,"d":"3.95E-10"},{"v":1.02E-9,"d":"1.02E-09"},{"v":8.36e-09,"d":"8.36E-09"},"2.14e-10 - 3.72e-08",{"v":4.98e-09,"d":"4.98E-09"}]
[29,"Central Tendency","1_Handling Asbestos-Containing Building Materials During Maintenance, Renovation, and Demolition Activities","Handling Asbestos-Containing Building Materials During Maintenance, Renovation, and Demolition Activities","Fugitive","Urban","MetHIGH","5 years",2500,{"v":8.93e-11,"d":"8.93E-11"},{"v":3.87e-11,"d":"3.87E-11"},{"v":8.78e-11,"d":"8.78E-11"},{"v":1.76e-10,"d":"1.76E-10"},"3.46e-11 - 2.24e-10",{"v":5.04e-11,"d":"5.04E-11"}]
[30,"Central Tendency","1_Handling Asbestos-Containing Building Materials During Maintenance, Renovation, and Demolition Activities","Handling Asbestos-Containing Building Materials During Maintenance, Renovation, and Demolition Activities","Fugitive","Urban","MetHIGH","5 years",5000,{"v":3.17e-11,"d":"3.17E-11"},{"v":1.51e-11,"d":"1.51E-11"},{"v":2.99e-11,"d":"2.99E-11"},5.84E-11,"1.20e-11 - 8.25e-11",{"v":1.77e-11,"d":"1.77E-11"}]
[31,"Central Tendency","1_Handling Asbestos-Containing Building Materials During Maintenance, Renovation, and Demolition Activities","Handling Asbestos-Containing Building Materials During Maintenance, Renovation, and Demolition Activities","Fugitive","Urban","MetHIGH","5 years",10000,1.27E-11,{"v":5.89e-12,"d":"5.89E-12"},{"v":1.22e-11,"d":"1.22E-11"},{"v":2.55e-11,"d":"2.55E-11"},"4.93e-12 - 3.55e-11",{"v":7.84e-12,"d":"7.84E-12"}]
[24,"High-End","2_Handling Asbestos-Containing Building Materials During Maintenance, Renovation, and Demolition Activities","Handling Asbestos-Containing Building Materials During Maintenance, Renovation, and Demolition Activities","Fugitive","Urban","MetHIGH","5 years",10,{"v":1.23E-3,"d":"1.23E-03"},{"v":8.34E-4,"d":"8.34E-04"},{"v":0.00112,"d":"1.12E-03"},{"v":2E-3,"d":"2.00E-03"},"8.20e-04 - 2.05e-03",{"v":0.00038,"d":"3.80E-04"}]
[25,"High-End","2_Handling Asbestos-Containing Building Materials During Maintenance, Renovation, and Demolition Activities","Handling Asbestos-Containing Building Materials During Maintenance, Renovation, and Demolition Activities","Fugitive","Urban","MetHIGH","5 years",30,{"v":0.00023,"d":"2.30E-04"},{"v":0.000129,"d":"1.29E-04"},{"v":0.000221,"d":"2.21E-04"},{"v":0.000421,"d":"4.21E-04"},"1.14e-04 - 4.34e-04",{"v":9.22e-05,"d":"9.22E-05"}]
[26,"High-End","2_Handling Asbestos-Containing Building Materials During Maintenance, Renovation, and Demolition Activities","Handling Asbestos-Containing Building Materials During Maintenance, Renovation, and Demolition Activities","Fugitive","Urban","MetHIGH","5 years",60,{"v":5.56e-05,"d":"5.56E-05"},{"v":2.57e-05,"d":"2.57E-05"},{"v":5.46e-05,"d":"5.46E-05"},{"v":1.06E-4,"d":"1.06E-04"},"2.24e-05 - 1.08e-04",{"v":2.49e-05,"d":"2.49E-05"}]
[27,"High-End","2_Handling Asbestos-Containing Building Materials During Maintenance, Renovation, and Demolition Activities","Handling Asbestos-Containing Building Materials During Maintenance, Renovation, and Demolition Activities","Fugitive","Urban","MetHIGH","5 years",100,{"v":1.67e-05,"d":"1.67E-05"},{"v":7.08E-6,"d":"7.08E-06"},{"v":1.64e-05,"d":"1.64E-05"},{"v":3.29E-5,"d":"3.29E-05"},"6.24e-06 - 3.33e-05",{"v":7.95e-06,"d":"7.95E-06"}]
[28,"High-End","2_Handling Asbestos-Containing Building Materials During Maintenance, Renovation, and Demolition Activities","Handling Asbestos-Containing Building Materials During Maintenance, Renovation, and Demolition Activities","Fugitive","Urban","MetHIGH","5 years",1000,{"v":5.08e-07,"d":"5.08E-07"},{"v":7.89e-08,"d":"7.89E-08"},{"v":2.03E-7,"d":"2.03E-07"},{"v":1.67e-06,"d":"1.67E-06"},"4.27e-08 - 7.44e-06",{"v":9.96e-07,"d":"9.96E-07"}]
[29,"High-End","2_Handling Asbestos-Containing Building Materials During Maintenance, Renovation, and Demolition Activities","Handling Asbestos-Containing Building Materials During Maintenance, Renovation, and Demolition Activities","Fugitive","Urban","MetHIGH","5 years",2500,{"v":1.79e-08,"d":"1.79E-08"},{"v":7.73e-09,"d":"7.73E-09"},{"v":1.76e-08,"d":"1.76E-08"},{"v":3.52e-08,"d":"3.52E-08"},"6.91e-09 - 4.47e-08",{"v":1.01e-08,"d":"1.01E-08"}]
[30,"High-End","2_Handling Asbestos-Containing Building Materials During Maintenance, Renovation, and Demolition Activities","Handling Asbestos-Containing Building Materials During Maintenance, Renovation, and Demolition Activities","Fugitive","Urban","MetHIGH","5 years",5000,{"v":6.33e-09,"d":"6.33E-09"},{"v":3.02e-09,"d":"3.02E-09"},{"v":5.98e-09,"d":"5.98E-09"},{"v":1.17e-08,"d":"1.17E-08"},"2.41e-09 - 1.65e-08",{"v":3.54e-09,"d":"3.54E-09"}]
[31,"High-End","2_Handling Asbestos-Containing Building Materials During Maintenance, Renovation, and Demolition Activities","Handling Asbestos-Containing Building Materials During Maintenance, Renovation, and Demolition Activities","Fugitive","Urban","MetHIGH","5 years",10000,{"v":2.54e-09,"d":"2.54E-09"},{"v":1.18e-09,"d":"1.18E-09"},{"v":2.45E-9,"d":"2.45E-09"},{"v":5.1e-09,"d":"5.10E-09"},"9.85e-10 - 7.10e-09",{"v":1.57E-9,"d":"1.57E-09"}]
[8,"Central Tendency","5_Use, Repair, or Disposal of Industrial and Commercial Appliances or Machinery Containing Asbestos","Use, Repair, or Disposal of Industrial and Commercial Appliances or Machinery Containing Asbestos","Fugitive","Rural","MetCT","5 years",10,{"v":1.21e-05,"d":"1.21E-05"},{"v":9.69e-06,"d":"9.69E-06"},{"v":1.21e-05,"d":"1.21E-05"},{"v":1.58e-05,"d":"1.58E-05"},"9.66e-06 - 1.64e-05",{"v":2.09e-06,"d":"2.09E-06"}]
[9,"Central Tendency","5_Use, Repair, or Disposal of Industrial and Commercial Appliances or Machinery Containing Asbestos","Use, Repair, or Disposal of Industrial and Commercial Appliances or Machinery Containing Asbestos","Fugitive","Rural","MetCT","5 years",30,{"v":2.54e-06,"d":"2.54E-06"},{"v":1.76e-06,"d":"1.76E-06"},{"v":2.26E-6,"d":"2.26E-06"},{"v":3.73e-06,"d":"3.73E-06"},"1.74e-06 - 4.15e-06",{"v":7.6e-07,"d":"7.60E-07"}]
[10,"Central Tendency","5_Use, Repair, or Disposal of Industrial and Commercial Appliances or Machinery Containing Asbestos","Use, Repair, or Disposal of Industrial and Commercial Appliances or Machinery Containing Asbestos","Fugitive","Rural","MetCT","5 years",60,{"v":7.11e-07,"d":"7.11E-07"},{"v":4.4e-07,"d":"4.40E-07"},{"v":6.38e-07,"d":"6.38E-07"},{"v":1.12e-06,"d":"1.12E-06"},"4.31e-07 - 1.25e-06",{"v":2.57e-07,"d":"2.57E-07"}]
[11,"Central Tendency","5_Use, Repair, or Disposal of Industrial and Commercial Appliances or Machinery Containing Asbestos","Use, Repair, or Disposal of Industrial and Commercial Appliances or Machinery Containing Asbestos","Fugitive","Rural","MetCT","5 years",100,{"v":2.28E-7,"d":"2.28E-07"},{"v":1.34e-07,"d":"1.34E-07"},{"v":2.04E-7,"d":"2.04E-07"},{"v":3.78e-07,"d":"3.78E-07"},"1.31e-07 - 4.14e-07",{"v":8.93e-08,"d":"8.93E-08"}]
[12,"Central Tendency","5_Use, Repair, or Disposal of Industrial and Commercial Appliances or Machinery Containing Asbestos","Use, Repair, or Disposal of Industrial and Commercial Appliances or Machinery Containing Asbestos","Fugitive","Rural","MetCT","5 years",1000,{"v":7.53e-09,"d":"7.53E-09"},{"v":1.45E-9,"d":"1.45E-09"},{"v":3.32e-09,"d":"3.32E-09"},{"v":2.73E-8,"d":"2.73E-08"},"8.82e-10 - 1.68e-07",{"v":1.47e-08,"d":"1.47E-08"}]
[13,"Central Tendency","5_Use, Repair, or Disposal of Industrial and Commercial Appliances or Machinery Containing Asbestos","Use, Repair, or Disposal of Industrial and Commercial Appliances or Machinery Containing Asbestos","Fugitive","Rural","MetCT","5 years",2500,{"v":2.91e-10,"d":"2.91E-10"},{"v":1.85e-10,"d":"1.85E-10"},{"v":2.64e-10,"d":"2.64E-10"},{"v":4.51e-10,"d":"4.51E-10"},"1.61e-10 - 4.89e-10",{"v":9.9e-11,"d":"9.90E-11"}]
[14,"Central Tendency","5_Use, Repair, or Disposal of Industrial and Commercial Appliances or Machinery Containing Asbestos","Use, Repair, or Disposal of Industrial and Commercial Appliances or Machinery Containing Asbestos","Fugitive","Rural","MetCT","5 years",5000,{"v":9.26e-11,"d":"9.26E-11"},{"v":6.34e-11,"d":"6.34E-11"},{"v":8.61e-11,"d":"8.61E-11"},{"v":1.45e-10,"d":"1.45E-10"},"5.68e-11 - 1.52e-10",{"v":2.87e-11,"d":"2.87E-11"}]
[15,"Central Tendency","5_Use, Repair, or Disposal of Industrial and Commercial Appliances or Machinery Containing Asbestos","Use, Repair, or Disposal of Industrial and Commercial Appliances or Machinery Containing Asbestos","Fugitive","Rural","MetCT","5 years",10000,{"v":3.24e-11,"d":"3.24E-11"},{"v":2.32e-11,"d":"2.32E-11"},{"v":3.07e-11,"d":"3.07E-11"},5.09E-11,"2.10e-11 - 5.51e-11",{"v":9.84e-12,"d":"9.84E-12"}]
[8,"High-End","6_Use, Repair, or Disposal of Industrial and Commercial Appliances or Machinery Containing Asbestos","Use, Repair, or Disposal of Industrial and Commercial Appliances or Machinery Containing Asbestos","Fugitive","Rural","MetCT","5 years",10,{"v":0.0137,"d":"1.37E-02"},{"v":0.0109,"d":"1.09E-02"},{"v":0.0136,"d":"1.36E-02"},{"v":0.0178,"d":"1.78E-02"},"1.09e-02 - 1.84e-02",{"v":0.00235,"d":"2.35E-03"}]
[9,"High-End","6_Use, Repair, or Disposal of Industrial and Commercial Appliances or Machinery Containing Asbestos","Use, Repair, or Disposal of Industrial and Commercial Appliances or Machinery Containing Asbestos","Fugitive","Rural","MetCT","5 years",30,{"v":0.00286,"d":"2.86E-03"},{"v":1.98E-3,"d":"1.98E-03"},{"v":0.00254,"d":"2.54E-03"},{"v":0.0042,"d":"4.20E-03"},"1.96e-03 - 4.67e-03",{"v":0.000855,"d":"8.55E-04"}]
[10,"High-End","6_Use, Repair, or Disposal of Industrial and Commercial Appliances or Machinery Containing Asbestos","Use, Repair, or Disposal of Industrial and Commercial Appliances or Machinery Containing Asbestos","Fugitive","Rural","MetCT","5 years",60,{"v":0.0008,"d":"8.00E-04"},{"v":0.000496,"d":"4.96E-04"},{"v":0.000719,"d":"7.19E-04"},{"v":0.00127,"d":"1.27E-03"},"4.85e-04 - 1.41e-03",{"v":2.9E-4,"d":"2.90E-04"}]
[11,"High-End","6_Use, Repair, or Disposal of Industrial and Commercial Appliances or Machinery Containing Asbestos","Use, Repair, or Disposal of Industrial and Commercial Appliances or Machinery Containing Asbestos","Fugitive","Rural","MetCT","5 years",100,{"v":0.000257,"d":"2.57E-04"},{"v":0.000151,"d":"1.51E-04"},{"v":0.000229,"d":"2.29E-04"},{"v":4.26E-4,"d":"4.26E-04"},"1.48e-04 - 4.66e-04",{"v":1E-4,"d":"1.00E-04"}]
[12,"High-End","6_Use, Repair, or Disposal of Industrial and Commercial Appliances or Machinery Containing Asbestos","Use, Repair, or Disposal of Industrial and Commercial Appliances or Machinery Containing Asbestos","Fugitive","Rural","MetCT","5 years",1000,{"v":8.48e-06,"d":"8.48E-06"},{"v":1.63e-06,"d":"1.63E-06"},{"v":3.74e-06,"d":"3.74E-06"},{"v":3.08e-05,"d":"3.08E-05"},"9.93e-07 - 1.89e-04",{"v":1.65e-05,"d":"1.65E-05"}]
[13,"High-End","6_Use, Repair, or Disposal of Industrial and Commercial Appliances or Machinery Containing Asbestos","Use, Repair, or Disposal of Industrial and Commercial Appliances or Machinery Containing Asbestos","Fugitive","Rural","MetCT","5 years",2500,{"v":3.27E-7,"d":"3.27E-07"},{"v":2.08e-07,"d":"2.08E-07"},{"v":2.98e-07,"d":"2.98E-07"},{"v":5.08e-07,"d":"5.08E-07"},"1.81e-07 - 5.50e-07",{"v":1.11E-7,"d":"1.11E-07"}]
[14,"High-End","6_Use, Repair, or Disposal of Industrial and Commercial Appliances or Machinery Containing Asbestos","Use, Repair, or Disposal of Industrial and Commercial Appliances or Machinery Containing Asbestos","Fugitive","Rural","MetCT","5 years",5000,{"v":1.04E-7,"d":"1.04E-07"},{"v":7.14e-08,"d":"7.14E-08"},{"v":9.69e-08,"d":"9.69E-08"},{"v":1.64e-07,"d":"1.64E-07"},"6.39e-08 - 1.71e-07",{"v":3.23e-08,"d":"3.23E-08"}]
[15,"High-End","6_Use, Repair, or Disposal of Industrial and Commercial Appliances or Machinery Containing Asbestos","Use, Repair, or Disposal of Industrial and Commercial Appliances or Machinery Containing Asbestos","Fugitive","Rural","MetCT","5 years",10000,{"v":3.64e-08,"d":"3.64E-08"},{"v":2.62E-8,"d":"2.62E-08"},{"v":3.45e-08,"d":"3.45E-08"},{"v":5.73e-08,"d":"5.73E-08"},"2.36e-08 - 6.21e-08",{"v":1.11E-8,"d":"1.11E-08"}]
[8,"Central Tendency","5_Use, Repair, or Disposal of Industrial and Commercial Appliances or Machinery Containing Asbestos","Use, Repair, or Disposal of Industrial and Commercial Appliances or Machinery Containing Asbestos","Fugitive","Rural","MetHIGH","5 years",10,{"v":1.44e-05,"d":"1.44E-05"},{"v":9.31e-06,"d":"9.31E-06"},{"v":1.53e-05,"d":"1.53E-05"},{"v":2e-05,"d":"2.00E-05"},"8.68e-06 - 2.02e-05",{"v":3.59e-06,"d":"3.59E-06"}]
[9,"Central Tendency","5_Use, Repair, or Disposal of Industrial and Commercial Appliances or Machinery Containing Asbestos","Use, Repair, or Disposal of Industrial and Commercial Appliances or Machinery Containing Asbestos","Fugitive","Rural","MetHIGH","5 years",30,{"v":2.66e-06,"d":"2.66E-06"},{"v":1.44E-6,"d":"1.44E-06"},{"v":2.86e-06,"d":"2.86E-06"},{"v":3.96e-06,"d":"3.96E-06"},"1.24e-06 - 3.98e-06",{"v":8.44e-07,"d":"8.44E-07"}]
[10,"Central Tendency","5_Use, Repair, or Disposal of Industrial and Commercial Appliances or Machinery Containing Asbestos","Use, Repair, or Disposal of Industrial and Commercial Appliances or Machinery Containing Asbestos","Fugitive","Rural","MetHIGH","5 years",60,{"v":6.38e-07,"d":"6.38E-07"},{"v":3.14e-07,"d":"3.14E-07"},{"v":6.92E-7,"d":"6.92E-07"},{"v":9.79e-07,"d":"9.79E-07"},"2.59e-07 - 9.89e-07",{"v":2.27e-07,"d":"2.27E-07"}]
[11,"Central Tendency","5_Use, Repair, or Disposal of Industrial and Commercial Appliances or Machinery Containing Asbestos","Use, Repair, or Disposal of Industrial and Commercial Appliances or Machinery Containing Asbestos","Fugitive","Rural","MetHIGH","5 years",100,{"v":1.91E-7,"d":"1.91E-07"},{"v":8.95e-08,"d":"8.95E-08"},{"v":2.1E-7,"d":"2.10E-07"},{"v":3.02e-07,"d":"3.02E-07"},"7.32e-08 - 3.03e-07",{"v":7.16e-08,"d":"7.16E-08"}]
[12,"Central Tendency","5_Use, Repair, or Disposal of Industrial and Commercial Appliances or Machinery Containing Asbestos","Use, Repair, or Disposal of Industrial and Commercial Appliances or Machinery Containing Asbestos","Fugitive","Rural","MetHIGH","5 years",1000,{"v":5.91e-09,"d":"5.91E-09"},9.58E-10,{"v":2.49e-09,"d":"2.49E-09"},{"v":2.1e-08,"d":"2.10E-08"},"4.97e-10 - 1.04e-07",{"v":1.14E-8,"d":"1.14E-08"}]
[13,"Central Tendency","5_Use, Repair, or Disposal of Industrial and Commercial Appliances or Machinery Containing Asbestos","Use, Repair, or Disposal of Industrial and Commercial Appliances or Machinery Containing Asbestos","Fugitive","Rural","MetHIGH","5 years",2500,{"v":2.13e-10,"d":"2.13E-10"},1.08E-10,{"v":2.3e-10,"d":"2.30E-10"},3.14E-10,"9.27e-11 - 3.63e-10",{"v":7.94e-11,"d":"7.94E-11"}]
[14,"Central Tendency","5_Use, Repair, or Disposal of Industrial and Commercial Appliances or Machinery Containing Asbestos","Use, Repair, or Disposal of Industrial and Commercial Appliances or Machinery Containing Asbestos","Fugitive","Rural","MetHIGH","5 years",5000,{"v":7.51e-11,"d":"7.51E-11"},4.18E-11,{"v":7.7e-11,"d":"7.70E-11"},{"v":1.1e-10,"d":"1.10E-10"},"3.70e-11 - 1.21e-10",{"v":2.62e-11,"d":"2.62E-11"}]
[15,"Central Tendency","5_Use, Repair, or Disposal of Industrial and Commercial Appliances or Machinery Containing Asbestos","Use, Repair, or Disposal of Industrial and Commercial Appliances or Machinery Containing Asbestos","Fugitive","Rural","MetHIGH","5 years",10000,{"v":2.98e-11,"d":"2.98E-11"},{"v":1.67e-11,"d":"1.67E-11"},{"v":2.99e-11,"d":"2.99E-11"},4.34E-11,"1.48e-11 - 5.20e-11",{"v":1.07e-11,"d":"1.07E-11"}]
[8,"High-End","6_Use, Repair, or Disposal of Industrial and Commercial Appliances or Machinery Containing Asbestos","Use, Repair, or Disposal of Industrial and Commercial Appliances or Machinery Containing Asbestos","Fugitive","Rural","MetHIGH","5 years",10,{"v":0.0163,"d":"1.63E-02"},{"v":0.0105,"d":"1.05E-02"},{"v":0.0173,"d":"1.73E-02"},{"v":0.0225,"d":"2.25E-02"},"9.77e-03 - 2.27e-02",{"v":0.00404,"d":"4.04E-03"}]
[9,"High-End","6_Use, Repair, or Disposal of Industrial and Commercial Appliances or Machinery Containing Asbestos","Use, Repair, or Disposal of Industrial and Commercial Appliances or Machinery Containing Asbestos","Fugitive","Rural","MetHIGH","5 years",30,{"v":2.99E-3,"d":"2.99E-03"},{"v":0.00162,"d":"1.62E-03"},{"v":0.00322,"d":"3.22E-03"},{"v":0.00446,"d":"4.46E-03"},"1.40e-03 - 4.48e-03",{"v":9.5E-4,"d":"9.50E-04"}]
[10,"High-End","6_Use, Repair, or Disposal of Industrial and Commercial Appliances or Machinery Containing Asbestos","Use, Repair, or Disposal of Industrial and Commercial Appliances or Machinery Containing Asbestos","Fugitive","Rural","MetHIGH","5 years",60,{"v":0.000719,"d":"7.19E-04"},{"v":0.000354,"d":"3.54E-04"},{"v":0.000779,"d":"7.79E-04"},{"v":0.0011,"d":"1.10E-03"},"2.92e-04 - 1.11e-03",{"v":0.000256,"d":"2.56E-04"}]
[11,"High-End","6_Use, Repair, or Disposal of Industrial and Commercial Appliances or Machinery Containing Asbestos","Use, Repair, or Disposal of Industrial and Commercial Appliances or Machinery Containing Asbestos","Fugitive","Rural","MetHIGH","5 years",100,{"v":0.000215,"d":"2.15E-04"},{"v":1.01E-4,"d":"1.01E-04"},{"v":0.000237,"d":"2.37E-04"},{"v":0.00034,"d":"3.40E-04"},"8.25e-05 - 3.41e-04",{"v":8.07e-05,"d":"8.07E-05"}]
[12,"High-End","6_Use, Repair, or Disposal of Industrial and Commercial Appliances or Machinery Containing Asbestos","Use, Repair, or Disposal of Industrial and Commercial Appliances or Machinery Containing Asbestos","Fugitive","Rural","MetHIGH","5 years",1000,{"v":6.66e-06,"d":"6.66E-06"},{"v":1.08E-6,"d":"1.08E-06"},{"v":2.8e-06,"d":"2.80E-06"},{"v":2.37E-5,"d":"2.37E-05"},"5.59e-07 - 1.17e-04",{"v":1.28e-05,"d":"1.28E-05"}]
[13,"High-End","6_Use, Repair, or Disposal of Industrial and Commercial Appliances or Machinery Containing Asbestos","Use, Repair, or Disposal of Industrial and Commercial Appliances or Machinery Containing Asbestos","Fugitive","Rural","MetHIGH","5 years",2500,{"v":2.4e-07,"d":"2.40E-07"},{"v":1.22e-07,"d":"1.22E-07"},{"v":2.59e-07,"d":"2.59E-07"},{"v":3.54e-07,"d":"3.54E-07"},"1.04e-07 - 4.09e-07",{"v":8.94e-08,"d":"8.94E-08"}]
[14,"High-End","6_Use, Repair, or Disposal of Industrial and Commercial Appliances or Machinery Containing Asbestos","Use, Repair, or Disposal of Industrial and Commercial Appliances or Machinery Containing Asbestos","Fugitive","Rural","MetHIGH","5 years",5000,{"v":8.46e-08,"d":"8.46E-08"},{"v":4.71e-08,"d":"4.71E-08"},{"v":8.67e-08,"d":"8.67E-08"},{"v":1.23E-7,"d":"1.23E-07"},"4.17e-08 - 1.36e-07",{"v":2.95e-08,"d":"2.95E-08"}]
[15,"High-End","6_Use, Repair, or Disposal of Industrial and Commercial Appliances or Machinery Containing Asbestos","Use, Repair, or Disposal of Industrial and Commercial Appliances or Machinery Containing Asbestos","Fugitive","Rural","MetHIGH","5 years",10000,{"v":3.35e-08,"d":"3.35E-08"},{"v":1.88E-8,"d":"1.88E-08"},{"v":3.36e-08,"d":"3.36E-08"},{"v":4.89e-08,"d":"4.89E-08"},"1.67e-08 - 5.86e-08",{"v":1.2E-8,"d":"1.20E-08"}]
[24,"Central Tendency","5_Use, Repair, or Disposal of Industrial and Commercial Appliances or Machinery Containing Asbestos","Use, Repair, or Disposal of Industrial and Commercial Appliances or Machinery Containing Asbestos","Fugitive","Urban","MetCT","5 years",10,{"v":1.17E-5,"d":"1.17E-05"},{"v":9.42e-06,"d":"9.42E-06"},{"v":1.14e-05,"d":"1.14E-05"},{"v":1.51e-05,"d":"1.51E-05"},"9.30e-06 - 1.59e-05",{"v":2.04E-6,"d":"2.04E-06"}]
[25,"Central Tendency","5_Use, Repair, or Disposal of Industrial and Commercial Appliances or Machinery Containing Asbestos","Use, Repair, or Disposal of Industrial and Commercial Appliances or Machinery Containing Asbestos","Fugitive","Urban","MetCT","5 years",30,{"v":2.49e-06,"d":"2.49E-06"},{"v":1.76e-06,"d":"1.76E-06"},{"v":2.22e-06,"d":"2.22E-06"},{"v":3.66e-06,"d":"3.66E-06"},"1.72e-06 - 4.02e-06",{"v":7.38e-07,"d":"7.38E-07"}]
[26,"Central Tendency","5_Use, Repair, or Disposal of Industrial and Commercial Appliances or Machinery Containing Asbestos","Use, Repair, or Disposal of Industrial and Commercial Appliances or Machinery Containing Asbestos","Fugitive","Urban","MetCT","5 years",60,{"v":6.66e-07,"d":"6.66E-07"},{"v":4.24e-07,"d":"4.24E-07"},{"v":5.66e-07,"d":"5.66E-07"},{"v":1.08E-6,"d":"1.08E-06"},"4.03e-07 - 1.17e-06",{"v":2.45e-07,"d":"2.45E-07"}]
[27,"Central Tendency","5_Use, Repair, or Disposal of Industrial and Commercial Appliances or Machinery Containing Asbestos","Use, Repair, or Disposal of Industrial and Commercial Appliances or Machinery Containing Asbestos","Fugitive","Urban","MetCT","5 years",100,{"v":2.11E-7,"d":"2.11E-07"},{"v":1.29E-7,"d":"1.29E-07"},{"v":1.77e-07,"d":"1.77E-07"},{"v":3.59e-07,"d":"3.59E-07"},"1.16e-07 - 3.85e-07",{"v":8.53e-08,"d":"8.53E-08"}]
[28,"Central Tendency","5_Use, Repair, or Disposal of Industrial and Commercial Appliances or Machinery Containing Asbestos","Use, Repair, or Disposal of Industrial and Commercial Appliances or Machinery Containing Asbestos","Fugitive","Urban","MetCT","5 years",1000,{"v":6.67e-09,"d":"6.67E-09"},{"v":1.19E-9,"d":"1.19E-09"},{"v":2.84e-09,"d":"2.84E-09"},{"v":2.31e-08,"d":"2.31E-08"},"7.68e-10 - 1.60e-07",{"v":1.36e-08,"d":"1.36E-08"}]
[29,"Central Tendency","5_Use, Repair, or Disposal of Industrial and Commercial Appliances or Machinery Containing Asbestos","Use, Repair, or Disposal of Industrial and Commercial Appliances or Machinery Containing Asbestos","Fugitive","Urban","MetCT","5 years",2500,{"v":2.47e-10,"d":"2.47E-10"},{"v":1.59e-10,"d":"1.59E-10"},2.31E-10,{"v":4e-10,"d":"4.00E-10"},"1.49e-10 - 4.38e-10",{"v":9.01e-11,"d":"9.01E-11"}]
[30,"Central Tendency","5_Use, Repair, or Disposal of Industrial and Commercial Appliances or Machinery Containing Asbestos","Use, Repair, or Disposal of Industrial and Commercial Appliances or Machinery Containing Asbestos","Fugitive","Urban","MetCT","5 years",5000,{"v":8.33e-11,"d":"8.33E-11"},{"v":5.62e-11,"d":"5.62E-11"},{"v":7.83e-11,"d":"7.83E-11"},{"v":1.33e-10,"d":"1.33E-10"},"5.45e-11 - 1.43e-10",2.74E-11]
[31,"Central Tendency","5_Use, Repair, or Disposal of Industrial and Commercial Appliances or Machinery Containing Asbestos","Use, Repair, or Disposal of Industrial and Commercial Appliances or Machinery Containing Asbestos","Fugitive","Urban","MetCT","5 years",10000,{"v":3E-11,"d":"3.00E-11"},{"v":2.04e-11,"d":"2.04E-11"},{"v":2.9E-11,"d":"2.90E-11"},{"v":4.85e-11,"d":"4.85E-11"},"1.99e-11 - 5.28e-11",{"v":9.99e-12,"d":"9.99E-12"}]
[24,"High-End","6_Use, Repair, or Disposal of Industrial and Commercial Appliances or Machinery Containing Asbestos","Use, Repair, or Disposal of Industrial and Commercial Appliances or Machinery Containing Asbestos","Fugitive","Urban","MetCT","5 years",10,{"v":0.0132,"d":"1.32E-02"},{"v":0.0106,"d":"1.06E-02"},{"v":0.0129,"d":"1.29E-02"},{"v":0.017,"d":"1.70E-02"},"1.05e-02 - 1.79e-02",{"v":0.00229,"d":"2.29E-03"}]
[25,"High-End","6_Use, Repair, or Disposal of Industrial and Commercial Appliances or Machinery Containing Asbestos","Use, Repair, or Disposal of Industrial and Commercial Appliances or Machinery Containing Asbestos","Fugitive","Urban","MetCT","5 years",30,{"v":2.8E-3,"d":"2.80E-03"},{"v":1.98E-3,"d":"1.98E-03"},{"v":0.0025,"d":"2.50E-03"},{"v":0.00412,"d":"4.12E-03"},"1.93e-03 - 4.53e-03",{"v":0.000831,"d":"8.31E-04"}]
[26,"High-End","6_Use, Repair, or Disposal of Industrial and Commercial Appliances or Machinery Containing Asbestos","Use, Repair, or Disposal of Industrial and Commercial Appliances or Machinery Containing Asbestos","Fugitive","Urban","MetCT","5 years",60,{"v":0.00075,"d":"7.50E-04"},{"v":0.000477,"d":"4.77E-04"},{"v":6.38E-4,"d":"6.38E-04"},{"v":0.00121,"d":"1.21E-03"},"4.54e-04 - 1.32e-03",{"v":0.000275,"d":"2.75E-04"}]
[27,"High-End","6_Use, Repair, or Disposal of Industrial and Commercial Appliances or Machinery Containing Asbestos","Use, Repair, or Disposal of Industrial and Commercial Appliances or Machinery Containing Asbestos","Fugitive","Urban","MetCT","5 years",100,{"v":0.000238,"d":"2.38E-04"},{"v":1.45E-4,"d":"1.45E-04"},{"v":0.000199,"d":"1.99E-04"},{"v":0.000405,"d":"4.05E-04"},"1.31e-04 - 4.33e-04",{"v":9.61e-05,"d":"9.61E-05"}]
[28,"High-End","6_Use, Repair, or Disposal of Industrial and Commercial Appliances or Machinery Containing Asbestos","Use, Repair, or Disposal of Industrial and Commercial Appliances or Machinery Containing Asbestos","Fugitive","Urban","MetCT","5 years",1000,{"v":7.51e-06,"d":"7.51E-06"},{"v":1.34e-06,"d":"1.34E-06"},{"v":3.19E-6,"d":"3.19E-06"},{"v":2.6e-05,"d":"2.60E-05"},"8.65e-07 - 1.80e-04",{"v":1.53e-05,"d":"1.53E-05"}]
[29,"High-End","6_Use, Repair, or Disposal of Industrial and Commercial Appliances or Machinery Containing Asbestos","Use, Repair, or Disposal of Industrial and Commercial Appliances or Machinery Containing Asbestos","Fugitive","Urban","MetCT","5 years",2500,{"v":2.78e-07,"d":"2.78E-07"},{"v":1.79E-7,"d":"1.79E-07"},{"v":2.6E-7,"d":"2.60E-07"},{"v":4.5e-07,"d":"4.50E-07"},"1.68e-07 - 4.93e-07",{"v":1.01E-7,"d":"1.01E-07"}]
[30,"High-End","6_Use, Repair, or Disposal of Industrial and Commercial Appliances or Machinery Containing Asbestos","Use, Repair, or Disposal of Industrial and Commercial Appliances or Machinery Containing Asbestos","Fugitive","Urban","MetCT","5 years",5000,{"v":9.38e-08,"d":"9.38E-08"},{"v":6.32e-08,"d":"6.32E-08"},{"v":8.82e-08,"d":"8.82E-08"},{"v":1.5e-07,"d":"1.50E-07"},"6.13e-08 - 1.61e-07",{"v":3.08e-08,"d":"3.08E-08"}]
[31,"High-End","6_Use, Repair, or Disposal of Industrial and Commercial Appliances or Machinery Containing Asbestos","Use, Repair, or Disposal of Industrial and Commercial Appliances or Machinery Containing Asbestos","Fugitive","Urban","MetCT","5 years",10000,{"v":3.37e-08,"d":"3.37E-08"},{"v":2.3e-08,"d":"2.30E-08"},{"v":3.27e-08,"d":"3.27E-08"},{"v":5.46e-08,"d":"5.46E-08"},"2.24e-08 - 5.95e-08",{"v":1.12e-08,"d":"1.12E-08"}]
[24,"Central Tendency","5_Use, Repair, or Disposal of Industrial and Commercial Appliances or Machinery Containing Asbestos","Use, Repair, or Disposal of Industrial and Commercial Appliances or Machinery Containing Asbestos","Fugitive","Urban","MetHIGH","5 years",10,{"v":1.43E-5,"d":"1.43E-05"},{"v":9.22e-06,"d":"9.22E-06"},{"v":1.52E-5,"d":"1.52E-05"},{"v":1.99e-05,"d":"1.99E-05"},"8.56e-06 - 2.01e-05",{"v":3.56e-06,"d":"3.56E-06"}]
[25,"Central Tendency","5_Use, Repair, or Disposal of Industrial and Commercial Appliances or Machinery Containing Asbestos","Use, Repair, or Disposal of Industrial and Commercial Appliances or Machinery Containing Asbestos","Fugitive","Urban","MetHIGH","5 years",30,{"v":2.61E-6,"d":"2.61E-06"},{"v":1.42E-6,"d":"1.42E-06"},{"v":2.8e-06,"d":"2.80E-06"},{"v":3.92e-06,"d":"3.92E-06"},"1.23e-06 - 3.95e-06",{"v":8.29e-07,"d":"8.29E-07"}]
[26,"Central Tendency","5_Use, Repair, or Disposal of Industrial and Commercial Appliances or Machinery Containing Asbestos","Use, Repair, or Disposal of Industrial and Commercial Appliances or Machinery Containing Asbestos","Fugitive","Urban","MetHIGH","5 years",60,{"v":6.23e-07,"d":"6.23E-07"},{"v":3.07e-07,"d":"3.07E-07"},{"v":6.71e-07,"d":"6.71E-07"},{"v":9.64E-7,"d":"9.64E-07"},"2.55e-07 - 9.77e-07",{"v":2.21e-07,"d":"2.21E-07"}]
[27,"Central Tendency","5_Use, Repair, or Disposal of Industrial and Commercial Appliances or Machinery Containing Asbestos","Use, Repair, or Disposal of Industrial and Commercial Appliances or Machinery Containing Asbestos","Fugitive","Urban","MetHIGH","5 years",100,{"v":1.86E-7,"d":"1.86E-07"},{"v":8.8e-08,"d":"8.80E-08"},{"v":2.02e-07,"d":"2.02E-07"},{"v":2.96E-7,"d":"2.96E-07"},"7.21e-08 - 2.99e-07",{"v":6.97e-08,"d":"6.97E-08"}]
[28,"Central Tendency","5_Use, Repair, or Disposal of Industrial and Commercial Appliances or Machinery Containing Asbestos","Use, Repair, or Disposal of Industrial and Commercial Appliances or Machinery Containing Asbestos","Fugitive","Urban","MetHIGH","5 years",1000,{"v":5.72e-09,"d":"5.72E-09"},{"v":9.18e-10,"d":"9.18E-10"},{"v":2.37e-09,"d":"2.37E-09"},{"v":2.03E-8,"d":"2.03E-08"},"4.68e-10 - 9.92e-08",{"v":1.11E-8,"d":"1.11E-08"}]
[29,"Central Tendency","5_Use, Repair, or Disposal of Industrial and Commercial Appliances or Machinery Containing Asbestos","Use, Repair, or Disposal of Industrial and Commercial Appliances or Machinery Containing Asbestos","Fugitive","Urban","MetHIGH","5 years",2500,{"v":2.04e-10,"d":"2.04E-10"},1.02E-10,{"v":2.23e-10,"d":"2.23E-10"},{"v":3.03e-10,"d":"3.03E-10"},"8.94e-11 - 3.58e-10",{"v":7.65e-11,"d":"7.65E-11"}]
[30,"Central Tendency","5_Use, Repair, or Disposal of Industrial and Commercial Appliances or Machinery Containing Asbestos","Use, Repair, or Disposal of Industrial and Commercial Appliances or Machinery Containing Asbestos","Fugitive","Urban","MetHIGH","5 years",5000,{"v":7.39e-11,"d":"7.39E-11"},{"v":4.03e-11,"d":"4.03E-11"},{"v":7.51e-11,"d":"7.51E-11"},{"v":1.07e-10,"d":"1.07E-10"},"3.62e-11 - 1.22e-10",{"v":2.61e-11,"d":"2.61E-11"}]
[31,"Central Tendency","5_Use, Repair, or Disposal of Industrial and Commercial Appliances or Machinery Containing Asbestos","Use, Repair, or Disposal of Industrial and Commercial Appliances or Machinery Containing Asbestos","Fugitive","Urban","MetHIGH","5 years",10000,2.92E-11,{"v":1.6E-11,"d":"1.60E-11"},{"v":2.93e-11,"d":"2.93E-11"},4.22E-11,"1.43e-11 - 5.23e-11",{"v":1.07e-11,"d":"1.07E-11"}]
[24,"High-End","6_Use, Repair, or Disposal of Industrial and Commercial Appliances or Machinery Containing Asbestos","Use, Repair, or Disposal of Industrial and Commercial Appliances or Machinery Containing Asbestos","Fugitive","Urban","MetHIGH","5 years",10,{"v":0.0161,"d":"1.61E-02"},{"v":0.0104,"d":"1.04E-02"},{"v":0.0171,"d":"1.71E-02"},{"v":0.0224,"d":"2.24E-02"},"9.64e-03 - 2.26e-02",{"v":0.00401,"d":"4.01E-03"}]
[25,"High-End","6_Use, Repair, or Disposal of Industrial and Commercial Appliances or Machinery Containing Asbestos","Use, Repair, or Disposal of Industrial and Commercial Appliances or Machinery Containing Asbestos","Fugitive","Urban","MetHIGH","5 years",30,{"v":0.00294,"d":"2.94E-03"},{"v":0.00159,"d":"1.59E-03"},{"v":3.15E-3,"d":"3.15E-03"},{"v":0.00442,"d":"4.42E-03"},"1.38e-03 - 4.44e-03",{"v":0.000933,"d":"9.33E-04"}]
[26,"High-End","6_Use, Repair, or Disposal of Industrial and Commercial Appliances or Machinery Containing Asbestos","Use, Repair, or Disposal of Industrial and Commercial Appliances or Machinery Containing Asbestos","Fugitive","Urban","MetHIGH","5 years",60,{"v":0.000701,"d":"7.01E-04"},{"v":0.000345,"d":"3.45E-04"},{"v":0.000755,"d":"7.55E-04"},{"v":1.09E-3,"d":"1.09E-03"},"2.87e-04 - 1.10e-03",{"v":0.000249,"d":"2.49E-04"}]
[27,"High-End","6_Use, Repair, or Disposal of Industrial and Commercial Appliances or Machinery Containing Asbestos","Use, Repair, or Disposal of Industrial and Commercial Appliances or Machinery Containing Asbestos","Fugitive","Urban","MetHIGH","5 years",100,{"v":0.00021,"d":"2.10E-04"},{"v":9.91e-05,"d":"9.91E-05"},{"v":0.000227,"d":"2.27E-04"},{"v":0.000334,"d":"3.34E-04"},"8.12e-05 - 3.36e-04",{"v":7.85e-05,"d":"7.85E-05"}]
[28,"High-End","6_Use, Repair, or Disposal of Industrial and Commercial Appliances or Machinery Containing Asbestos","Use, Repair, or Disposal of Industrial and Commercial Appliances or Machinery Containing Asbestos","Fugitive","Urban","MetHIGH","5 years",1000,{"v":6.44e-06,"d":"6.44E-06"},{"v":1.03e-06,"d":"1.03E-06"},{"v":2.67e-06,"d":"2.67E-06"},{"v":2.28e-05,"d":"2.28E-05"},"5.27e-07 - 1.12e-04",{"v":1.25e-05,"d":"1.25E-05"}]
[29,"High-End","6_Use, Repair, or Disposal of Industrial and Commercial Appliances or Machinery Containing Asbestos","Use, Repair, or Disposal of Industrial and Commercial Appliances or Machinery Containing Asbestos","Fugitive","Urban","MetHIGH","5 years",2500,{"v":2.29E-7,"d":"2.29E-07"},{"v":1.15E-7,"d":"1.15E-07"},{"v":2.51e-07,"d":"2.51E-07"},{"v":3.42e-07,"d":"3.42E-07"},"1.01e-07 - 4.04e-07",{"v":8.62e-08,"d":"8.62E-08"}]
[30,"High-End","6_Use, Repair, or Disposal of Industrial and Commercial Appliances or Machinery Containing Asbestos","Use, Repair, or Disposal of Industrial and Commercial Appliances or Machinery Containing Asbestos","Fugitive","Urban","MetHIGH","5 years",5000,{"v":8.32e-08,"d":"8.32E-08"},{"v":4.54e-08,"d":"4.54E-08"},{"v":8.46e-08,"d":"8.46E-08"},{"v":1.2e-07,"d":"1.20E-07"},"4.08e-08 - 1.37e-07",{"v":2.94e-08,"d":"2.94E-08"}]
[31,"High-End","6_Use, Repair, or Disposal of Industrial and Commercial Appliances or Machinery Containing Asbestos","Use, Repair, or Disposal of Industrial and Commercial Appliances or Machinery Containing Asbestos","Fugitive","Urban","MetHIGH","5 years",10000,{"v":3.29e-08,"d":"3.29E-08"},{"v":1.8e-08,"d":"1.80E-08"},{"v":3.29e-08,"d":"3.29E-08"},{"v":4.75e-08,"d":"4.75E-08"},"1.61e-08 - 5.89e-08",{"v":1.21e-08,"d":"1.21E-08"}]
[8,"High-End","8_Use, Repair, or Disposal of Industrial and Commercial Appliances or Machinery Containing Asbestos","Use, Repair, or Disposal of Industrial and Commercial Appliances or Machinery Containing Asbestos","Stack","Rural","MetCT","5 years",10,{"v":8.03e-11,"d":"8.03E-11"},{"v":7.67e-11,"d":"7.67E-11"},{"v":7.87e-11,"d":"7.87E-11"},{"v":8.78e-11,"d":"8.78E-11"},"7.60e-11 - 8.88e-11",{"v":3.98e-12,"d":"3.98E-12"}]
[9,"High-End","8_Use, Repair, or Disposal of Industrial and Commercial Appliances or Machinery Containing Asbestos","Use, Repair, or Disposal of Industrial and Commercial Appliances or Machinery Containing Asbestos","Stack","Rural","MetCT","5 years",30,{"v":4.73E-9,"d":"4.73E-09"},{"v":4.01E-9,"d":"4.01E-09"},{"v":4.66E-9,"d":"4.66E-09"},{"v":5.92e-09,"d":"5.92E-09"},"3.82e-09 - 6.78e-09",7.49E-10]
[10,"High-End","8_Use, Repair, or Disposal of Industrial and Commercial Appliances or Machinery Containing Asbestos","Use, Repair, or Disposal of Industrial and Commercial Appliances or Machinery Containing Asbestos","Stack","Rural","MetCT","5 years",60,{"v":3.76e-08,"d":"3.76E-08"},{"v":2.57e-08,"d":"2.57E-08"},{"v":3.27e-08,"d":"3.27E-08"},{"v":6.3e-08,"d":"6.30E-08"},"2.22e-08 - 6.40e-08",{"v":1.32e-08,"d":"1.32E-08"}]
[11,"High-End","8_Use, Repair, or Disposal of Industrial and Commercial Appliances or Machinery Containing Asbestos","Use, Repair, or Disposal of Industrial and Commercial Appliances or Machinery Containing Asbestos","Stack","Rural","MetCT","5 years",100,{"v":6.25e-08,"d":"6.25E-08"},{"v":4.23e-08,"d":"4.23E-08"},{"v":5.39E-8,"d":"5.39E-08"},{"v":1.03E-7,"d":"1.03E-07"},"3.44e-08 - 1.14e-07",{"v":2.31e-08,"d":"2.31E-08"}]
[12,"High-End","8_Use, Repair, or Disposal of Industrial and Commercial Appliances or Machinery Containing Asbestos","Use, Repair, or Disposal of Industrial and Commercial Appliances or Machinery Containing Asbestos","Stack","Rural","MetCT","5 years",1000,{"v":7.09e-09,"d":"7.09E-09"},{"v":1.41e-09,"d":"1.41E-09"},{"v":3.54e-09,"d":"3.54E-09"},{"v":2.65e-08,"d":"2.65E-08"},"9.21e-10 - 8.66e-08",{"v":1E-8,"d":"1.00E-08"}]
[13,"High-End","8_Use, Repair, or Disposal of Industrial and Commercial Appliances or Machinery Containing Asbestos","Use, Repair, or Disposal of Industrial and Commercial Appliances or Machinery Containing Asbestos","Stack","Rural","MetCT","5 years",2500,{"v":2.15e-10,"d":"2.15E-10"},{"v":1.37e-10,"d":"1.37E-10"},{"v":1.99e-10,"d":"1.99E-10"},{"v":3.5e-10,"d":"3.50E-10"},"1.31e-10 - 3.78e-10",{"v":7.71e-11,"d":"7.71E-11"}]
[14,"High-End","8_Use, Repair, or Disposal of Industrial and Commercial Appliances or Machinery Containing Asbestos","Use, Repair, or Disposal of Industrial and Commercial Appliances or Machinery Containing Asbestos","Stack","Rural","MetCT","5 years",5000,{"v":7.11e-11,"d":"7.11E-11"},{"v":4.75e-11,"d":"4.75E-11"},{"v":6.69e-11,"d":"6.69E-11"},{"v":1.1e-10,"d":"1.10E-10"},"4.46e-11 - 1.15e-10",2.17E-11]
[15,"High-End","8_Use, Repair, or Disposal of Industrial and Commercial Appliances or Machinery Containing Asbestos","Use, Repair, or Disposal of Industrial and Commercial Appliances or Machinery Containing Asbestos","Stack","Rural","MetCT","5 years",10000,{"v":2.63e-11,"d":"2.63E-11"},{"v":1.77e-11,"d":"1.77E-11"},{"v":2.47e-11,"d":"2.47E-11"},{"v":4.13e-11,"d":"4.13E-11"},"1.68e-11 - 4.14e-11",{"v":7.68e-12,"d":"7.68E-12"}]
[8,"High-End","8_Use, Repair, or Disposal of Industrial and Commercial Appliances or Machinery Containing Asbestos","Use, Repair, or Disposal of Industrial and Commercial Appliances or Machinery Containing Asbestos","Stack","Rural","MetHIGH","5 years",10,{"v":2.49e-11,"d":"2.49E-11"},2.27E-11,{"v":2.46e-11,"d":"2.46E-11"},2.82E-11,"2.12e-11 - 2.91e-11",{"v":2.02e-12,"d":"2.02E-12"}]
[9,"High-End","8_Use, Repair, or Disposal of Industrial and Commercial Appliances or Machinery Containing Asbestos","Use, Repair, or Disposal of Industrial and Commercial Appliances or Machinery Containing Asbestos","Stack","Rural","MetHIGH","5 years",30,{"v":6.41E-9,"d":"6.41E-09"},{"v":5.15e-09,"d":"5.15E-09"},{"v":5.76E-9,"d":"5.76E-09"},{"v":9.14e-09,"d":"9.14E-09"},"4.86e-09 - 9.59e-09",{"v":1.48e-09,"d":"1.48E-09"}]
[10,"High-End","8_Use, Repair, or Disposal of Industrial and Commercial Appliances or Machinery Containing Asbestos","Use, Repair, or Disposal of Industrial and Commercial Appliances or Machinery Containing Asbestos","Stack","Rural","MetHIGH","5 years",60,{"v":6.55e-08,"d":"6.55E-08"},{"v":4.66E-8,"d":"4.66E-08"},{"v":5.93e-08,"d":"5.93E-08"},{"v":1.06E-7,"d":"1.06E-07"},"4.38e-08 - 1.11e-07",{"v":2E-8,"d":"2.00E-08"}]
[11,"High-End","8_Use, Repair, or Disposal of Industrial and Commercial Appliances or Machinery Containing Asbestos","Use, Repair, or Disposal of Industrial and Commercial Appliances or Machinery Containing Asbestos","Stack","Rural","MetHIGH","5 years",100,{"v":9.73e-08,"d":"9.73E-08"},{"v":6.21e-08,"d":"6.21E-08"},{"v":9.42e-08,"d":"9.42E-08"},{"v":1.56e-07,"d":"1.56E-07"},"5.70e-08 - 1.60e-07",{"v":2.95e-08,"d":"2.95E-08"}]
[12,"High-End","8_Use, Repair, or Disposal of Industrial and Commercial Appliances or Machinery Containing Asbestos","Use, Repair, or Disposal of Industrial and Commercial Appliances or Machinery Containing Asbestos","Stack","Rural","MetHIGH","5 years",1000,{"v":6.91e-09,"d":"6.91E-09"},{"v":9.97e-10,"d":"9.97E-10"},{"v":2.59e-09,"d":"2.59E-09"},{"v":2.81E-8,"d":"2.81E-08"},"4.94e-10 - 8.38e-08",{"v":1.23e-08,"d":"1.23E-08"}]
[13,"High-End","8_Use, Repair, or Disposal of Industrial and Commercial Appliances or Machinery Containing Asbestos","Use, Repair, or Disposal of Industrial and Commercial Appliances or Machinery Containing Asbestos","Stack","Rural","MetHIGH","5 years",2500,{"v":1.68e-10,"d":"1.68E-10"},{"v":9.02e-11,"d":"9.02E-11"},1.88E-10,{"v":2.41e-10,"d":"2.41E-10"},"7.98e-11 - 2.65e-10",{"v":5.66e-11,"d":"5.66E-11"}]
[14,"High-End","8_Use, Repair, or Disposal of Industrial and Commercial Appliances or Machinery Containing Asbestos","Use, Repair, or Disposal of Industrial and Commercial Appliances or Machinery Containing Asbestos","Stack","Rural","MetHIGH","5 years",5000,{"v":5.77e-11,"d":"5.77E-11"},{"v":3.34e-11,"d":"3.34E-11"},{"v":6.09e-11,"d":"6.09E-11"},{"v":7.99e-11,"d":"7.99E-11"},"3.08e-11 - 8.72e-11",{"v":1.8e-11,"d":"1.80E-11"}]
[15,"High-End","8_Use, Repair, or Disposal of Industrial and Commercial Appliances or Machinery Containing Asbestos","Use, Repair, or Disposal of Industrial and Commercial Appliances or Machinery Containing Asbestos","Stack","Rural","MetHIGH","5 years",10000,{"v":2.3e-11,"d":"2.30E-11"},1.36E-11,2.35E-11,{"v":3.18e-11,"d":"3.18E-11"},"1.25e-11 - 3.72e-11",{"v":7.23e-12,"d":"7.23E-12"}]
[24,"High-End","8_Use, Repair, or Disposal of Industrial and Commercial Appliances or Machinery Containing Asbestos","Use, Repair, or Disposal of Industrial and Commercial Appliances or Machinery Containing Asbestos","Stack","Urban","MetCT","5 years",10,3.13E-10,{"v":3.09e-10,"d":"3.09E-10"},{"v":3.12e-10,"d":"3.12E-10"},{"v":3.18e-10,"d":"3.18E-10"},"3.07e-10 - 3.20e-10",{"v":3.46e-12,"d":"3.46E-12"}]
[25,"High-End","8_Use, Repair, or Disposal of Industrial and Commercial Appliances or Machinery Containing Asbestos","Use, Repair, or Disposal of Industrial and Commercial Appliances or Machinery Containing Asbestos","Stack","Urban","MetCT","5 years",30,{"v":9.12e-09,"d":"9.12E-09"},{"v":8.18e-09,"d":"8.18E-09"},{"v":8.68e-09,"d":"8.68E-09"},{"v":1.1e-08,"d":"1.10E-08"},"7.96e-09 - 1.17e-08",{"v":1.04e-09,"d":"1.04E-09"}]
[26,"High-End","8_Use, Repair, or Disposal of Industrial and Commercial Appliances or Machinery Containing Asbestos","Use, Repair, or Disposal of Industrial and Commercial Appliances or Machinery Containing Asbestos","Stack","Urban","MetCT","5 years",60,{"v":4.97e-08,"d":"4.97E-08"},{"v":3.61e-08,"d":"3.61E-08"},{"v":4.22e-08,"d":"4.22E-08"},{"v":7.88e-08,"d":"7.88E-08"},"3.31e-08 - 8.24e-08",{"v":1.55E-8,"d":"1.55E-08"}]
[27,"High-End","8_Use, Repair, or Disposal of Industrial and Commercial Appliances or Machinery Containing Asbestos","Use, Repair, or Disposal of Industrial and Commercial Appliances or Machinery Containing Asbestos","Stack","Urban","MetCT","5 years",100,{"v":7.07e-08,"d":"7.07E-08"},{"v":4.99e-08,"d":"4.99E-08"},{"v":6.09e-08,"d":"6.09E-08"},{"v":1.14E-7,"d":"1.14E-07"},"4.21e-08 - 1.26e-07",{"v":2.47e-08,"d":"2.47E-08"}]
[28,"High-End","8_Use, Repair, or Disposal of Industrial and Commercial Appliances or Machinery Containing Asbestos","Use, Repair, or Disposal of Industrial and Commercial Appliances or Machinery Containing Asbestos","Stack","Urban","MetCT","5 years",1000,{"v":6.67e-09,"d":"6.67E-09"},{"v":1.3e-09,"d":"1.30E-09"},{"v":3.16e-09,"d":"3.16E-09"},{"v":2.52e-08,"d":"2.52E-08"},"8.38e-10 - 9.01e-08",{"v":1.01e-08,"d":"1.01E-08"}]
[29,"High-End","8_Use, Repair, or Disposal of Industrial and Commercial Appliances or Machinery Containing Asbestos","Use, Repair, or Disposal of Industrial and Commercial Appliances or Machinery Containing Asbestos","Stack","Urban","MetCT","5 years",2500,{"v":1.99e-10,"d":"1.99E-10"},1.28E-10,{"v":1.82e-10,"d":"1.82E-10"},{"v":3.25e-10,"d":"3.25E-10"},"1.25e-10 - 3.44e-10",{"v":7.09e-11,"d":"7.09E-11"}]
[30,"High-End","8_Use, Repair, or Disposal of Industrial and Commercial Appliances or Machinery Containing Asbestos","Use, Repair, or Disposal of Industrial and Commercial Appliances or Machinery Containing Asbestos","Stack","Urban","MetCT","5 years",5000,{"v":6.5e-11,"d":"6.50E-11"},{"v":4.4e-11,"d":"4.40E-11"},{"v":6.1e-11,"d":"6.10E-11"},{"v":9.91e-11,"d":"9.91E-11"},"4.33e-11 - 1.08e-10",{"v":2.02e-11,"d":"2.02E-11"}]
[31,"High-End","8_Use, Repair, or Disposal of Industrial and Commercial Appliances or Machinery Containing Asbestos","Use, Repair, or Disposal of Industrial and Commercial Appliances or Machinery Containing Asbestos","Stack","Urban","MetCT","5 years",10000,2.33E-11,1.62E-11,2.23E-11,3.63E-11,"1.59e-11 - 3.93e-11",{"v":7.16e-12,"d":"7.16E-12"}]
[24,"High-End","8_Use, Repair, or Disposal of Industrial and Commercial Appliances or Machinery Containing Asbestos","Use, Repair, or Disposal of Industrial and Commercial Appliances or Machinery Containing Asbestos","Stack","Urban","MetHIGH","5 years",10,{"v":1.47e-10,"d":"1.47E-10"},{"v":1.44e-10,"d":"1.44E-10"},{"v":1.47e-10,"d":"1.47E-10"},{"v":1.5E-10,"d":"1.50E-10"},"1.41e-10 - 1.51e-10",{"v":2.44e-12,"d":"2.44E-12"}]
[25,"High-End","8_Use, Repair, or Disposal of Industrial and Commercial Appliances or Machinery Containing Asbestos","Use, Repair, or Disposal of Industrial and Commercial Appliances or Machinery Containing Asbestos","Stack","Urban","MetHIGH","5 years",30,{"v":1.04E-8,"d":"1.04E-08"},{"v":8.47e-09,"d":"8.47E-09"},{"v":1.04E-8,"d":"1.04E-08"},{"v":1.29E-8,"d":"1.29E-08"},"8.04e-09 - 1.30e-08",{"v":1.67E-9,"d":"1.67E-09"}]
[26,"High-End","8_Use, Repair, or Disposal of Industrial and Commercial Appliances or Machinery Containing Asbestos","Use, Repair, or Disposal of Industrial and Commercial Appliances or Machinery Containing Asbestos","Stack","Urban","MetHIGH","5 years",60,{"v":7.53e-08,"d":"7.53E-08"},{"v":5.19e-08,"d":"5.19E-08"},{"v":7.34e-08,"d":"7.34E-08"},{"v":1.15E-7,"d":"1.15E-07"},"4.88e-08 - 1.19e-07",{"v":2.06e-08,"d":"2.06E-08"}]
[27,"High-End","8_Use, Repair, or Disposal of Industrial and Commercial Appliances or Machinery Containing Asbestos","Use, Repair, or Disposal of Industrial and Commercial Appliances or Machinery Containing Asbestos","Stack","Urban","MetHIGH","5 years",100,{"v":1.02E-7,"d":"1.02E-07"},{"v":6.43E-8,"d":"6.43E-08"},{"v":1.01E-7,"d":"1.01E-07"},{"v":1.6E-7,"d":"1.60E-07"},"5.91e-08 - 1.63e-07",{"v":3e-08,"d":"3.00E-08"}]
[28,"High-End","8_Use, Repair, or Disposal of Industrial and Commercial Appliances or Machinery Containing Asbestos","Use, Repair, or Disposal of Industrial and Commercial Appliances or Machinery Containing Asbestos","Stack","Urban","MetHIGH","5 years",1000,{"v":6.62e-09,"d":"6.62E-09"},9.58E-10,{"v":2.37e-09,"d":"2.37E-09"},{"v":2.67e-08,"d":"2.67E-08"},"4.69e-10 - 8.46e-08",{"v":1.22E-8,"d":"1.22E-08"}]
[29,"High-End","8_Use, Repair, or Disposal of Industrial and Commercial Appliances or Machinery Containing Asbestos","Use, Repair, or Disposal of Industrial and Commercial Appliances or Machinery Containing Asbestos","Stack","Urban","MetHIGH","5 years",2500,{"v":1.62e-10,"d":"1.62E-10"},{"v":8.83e-11,"d":"8.83E-11"},{"v":1.77e-10,"d":"1.77E-10"},{"v":2.36e-10,"d":"2.36E-10"},"7.90e-11 - 2.59e-10",{"v":5.38e-11,"d":"5.38E-11"}]
[30,"High-End","8_Use, Repair, or Disposal of Industrial and Commercial Appliances or Machinery Containing Asbestos","Use, Repair, or Disposal of Industrial and Commercial Appliances or Machinery Containing Asbestos","Stack","Urban","MetHIGH","5 years",5000,5.76E-11,{"v":3.37e-11,"d":"3.37E-11"},{"v":6.1e-11,"d":"6.10E-11"},{"v":7.84e-11,"d":"7.84E-11"},"3.10e-11 - 8.75e-11",{"v":1.77e-11,"d":"1.77E-11"}]
[31,"High-End","8_Use, Repair, or Disposal of Industrial and Commercial Appliances or Machinery Containing Asbestos","Use, Repair, or Disposal of Industrial and Commercial Appliances or Machinery Containing Asbestos","Stack","Urban","MetHIGH","5 years",10000,2.29E-11,1.34E-11,{"v":2.34e-11,"d":"2.34E-11"},{"v":3.15e-11,"d":"3.15E-11"},"1.24e-11 - 3.74e-11",7.25E-12]

{"sheet":"Air Annual Firefighting","index":2,"n_rows":65,"n_cols":21,"rows_kept":65}
["Run ID","Source Type","Urban/ Rural","MET","Combined lables","Distance","CONC | mean f/cc","Risk Benchmark",{"$nulls":3},"Average of CONC | mean f/cc","Column Labels"]
["HE","Fugitive Emissions","Rural","HE Met",{"$f":"_xlfn.CONCAT(A2, \" \",B2,\" \", C2,\" \", D2)","v":"HE Fugitive Emissions Rural HE Met"},10,{"v":0.000984,"d":"9.84E-04"},10,{"v":1e-06,"d":"1.00E-06"},null,null,"Row Labels",10,30,60,100,1000,2500,5000,10000,"Grand Total"]
["HE","Fugitive Emissions","Rural","HE Met","HE Fugitive Emissions Rural HE Met",30,{"v":0.000221,"d":"2.21E-04"},30,{"v":1e-06,"d":"1.00E-06"},null,null,"CT Fugitive Emissions Rural CT Met",3.36E-6,1.04E-6,3.26e-07,1.1e-07,3.6E-9,1.07e-10,2.54e-11,6.47e-12,6.0496735875e-07]
["HE","Fugitive Emissions","Rural","HE Met","HE Fugitive Emissions Rural HE Met",60,{"v":5.98e-05,"d":"5.98E-05"},60,{"v":1e-06,"d":"1.00E-06"},null,null,"CT Fugitive Emissions Rural HE Met",4.92e-06,1.1e-06,2.99e-07,9.42e-08,3.23e-09,1.03e-10,3.44e-11,1.53e-11,8.020728375E-7]
["HE","Fugitive Emissions","Rural","HE Met","HE Fugitive Emissions Rural HE Met",100,{"v":1.88E-5,"d":"1.88E-05"},100,{"v":1e-06,"d":"1.00E-06"},null,null,"CT Fugitive Emissions Urban CT Met",3.5e-06,9.85e-07,3.04e-07,1.02E-7,3.22E-9,1.02E-10,2.95e-11,8.53e-12,6.1179500375e-07]
["HE","Fugitive Emissions","Rural","HE Met","HE Fugitive Emissions Rural HE Met",1000,{"v":6.45e-07,"d":"6.45E-07"},1000,{"v":1e-06,"d":"1.00E-06"},null,null,"CT Fugitive Emissions Urban HE Met",4.93e-06,1.1e-06,2.98e-07,9.36e-08,3.19e-09,1.02E-10,3.43E-11,1.55e-11,8.0311772500000012E-7]
["HE","Fugitive Emissions","Rural","HE Met","HE Fugitive Emissions Rural HE Met",2500,{"v":2.06e-08,"d":"2.06E-08"},2500,{"v":1e-06,"d":"1.00E-06"},null,null,"HE Fugitive Emissions Rural CT Met",0.000672,0.000207,6.53e-05,2.2e-05,7.21e-07,2.14E-8,5.08e-09,1.29e-09,0.00012088109625]
["HE","Fugitive Emissions","Rural","HE Met","HE Fugitive Emissions Rural HE Met",5000,{"v":6.88e-09,"d":"6.88E-09"},5000,{"v":1e-06,"d":"1.00E-06"},null,null,"HE Fugitive Emissions Rural HE Met",0.000984,0.000221,5.98e-05,1.88E-5,6.45e-07,2.06e-08,6.88e-09,3.06e-09,1.6053444250000004E-4]
["HE","Fugitive Emissions","Rural","HE Met","HE Fugitive Emissions Rural HE Met",10000,{"v":3.06e-09,"d":"3.06E-09"},10000,{"v":1e-06,"d":"1.00E-06"},null,null,"HE Fugitive Emissions Urban CT Met",0.000699,0.000197,6.08e-05,2.05E-5,6.44E-7,2.04e-08,5.89e-09,1.71e-09,1.2224650000000002E-4]
["HE","Fugitive Emissions","Urban","HE Met","HE Fugitive Emissions Urban HE Met",10,{"v":0.000986,"d":"9.86E-04"},{"$nulls":4},"HE Fugitive Emissions Urban HE Met",0.000986,0.000221,5.95e-05,1.87e-05,6.38e-07,2.04e-08,6.86e-09,3.09e-09,1.6073354375E-4]
["HE","Fugitive Emissions","Urban","HE Met","HE Fugitive Emissions Urban HE Met",30,{"v":0.000221,"d":"2.21E-04"},{"$nulls":4},"Grand Total",0.00041971375,1.06278125E-4,3.0828374999999996E-5,1.0049974999999999E-5,3.32655e-07,1.0401749999999999E-8,3.1041999999999997E-9,1.1494750000000001E-9,7.0902191928125011E-5]
["HE","Fugitive Emissions","Urban","HE Met","HE Fugitive Emissions Urban HE Met",60,{"v":5.95e-05,"d":"5.95E-05"}]
["HE","Fugitive Emissions","Urban","HE Met","HE Fugitive Emissions Urban HE Met",100,{"v":1.87e-05,"d":"1.87E-05"}]
["HE","Fugitive Emissions","Urban","HE Met","HE Fugitive Emissions Urban HE Met",1000,{"v":6.38e-07,"d":"6.38E-07"}]
["HE","Fugitive Emissions","Urban","HE Met","HE Fugitive Emissions Urban HE Met",2500,{"v":2.04e-08,"d":"2.04E-08"}]
["HE","Fugitive Emissions","Urban","HE Met","HE Fugitive Emissions Urban HE Met",5000,{"v":6.86e-09,"d":"6.86E-09"}]
["HE","Fugitive Emissions","Urban","HE Met","HE Fugitive Emissions Urban HE Met",10000,{"v":3.09e-09,"d":"3.09E-09"}]
["HE","Fugitive Emissions","Rural","CT Met","HE Fugitive Emissions Rural CT Met",10,{"v":0.000672,"d":"6.72E-04"}]
["HE","Fugitive Emissions","Rural","CT Met","HE Fugitive Emissions Rural CT Met",30,{"v":0.000207,"d":"2.07E-04"}]
["HE","Fugitive Emissions","Rural","CT Met","HE Fugitive Emissions Rural CT Met",60,{"v":6.53e-05,"d":"6.53E-05"}]
["HE","Fugitive Emissions","Rural","CT Met","HE Fugitive Emissions Rural CT Met",100,{"v":2.2e-05,"d":"2.20E-05"}]
["HE","Fugitive Emissions","Rural","CT Met","HE Fugitive Emissions Rural CT Met",1000,{"v":7.21e-07,"d":"7.21E-07"}]
["HE","Fugitive Emissions","Rural","CT Met","HE Fugitive Emissions Rural CT Met",2500,{"v":2.14E-8,"d":"2.14E-08"}]
["HE","Fugitive Emissions","Rural","CT Met","HE Fugitive Emissions Rural CT Met",5000,{"v":5.08e-09,"d":"5.08E-09"}]
["HE","Fugitive Emissions","Rural","CT Met","HE Fugitive Emissions Rural CT Met",10000,{"v":1.29e-09,"d":"1.29E-09"}]
["HE","Fugitive Emissions","Urban","CT Met","HE Fugitive Emissions Urban CT Met",10,{"v":0.000699,"d":"6.99E-04"}]
["HE","Fugitive Emissions","Urban","CT Met","HE Fugitive Emissions Urban CT Met",30,{"v":0.000197,"d":"1.97E-04"}]
["HE","Fugitive Emissions","Urban","CT Met","HE Fugitive Emissions Urban CT Met",60,{"v":6.08e-05,"d":"6.08E-05"}]
["HE","Fugitive Emissions","Urban","CT Met","HE Fugitive Emissions Urban CT Met",100,{"v":2.05E-5,"d":"2.05E-05"}]
["HE","Fugitive Emissions","Urban","CT Met","HE Fugitive Emissions Urban CT Met",1000,{"v":6.44E-7,"d":"6.44E-07"}]
["HE","Fugitive Emissions","Urban","CT Met","HE Fugitive Emissions Urban CT Met",2500,{"v":2.04e-08,"d":"2.04E-08"}]
["HE","Fugitive Emissions","Urban","CT Met","HE Fugitive Emissions Urban CT Met",5000,{"v":5.89e-09,"d":"5.89E-09"}]
["HE","Fugitive Emissions","Urban","CT Met","HE Fugitive Emissions Urban CT Met",10000,{"v":1.71e-09,"d":"1.71E-09"}]
["CT","Fugitive Emissions","Rural","HE Met",{"$f":"_xlfn.CONCAT(A34, \" \",B34,\" \", C34,\" \", D34)","v":"CT Fugitive Emissions Rural HE Met"},10,{"v":4.92e-06,"d":"4.92E-06"}]
["CT","Fugitive Emissions","Rural","HE Met","CT Fugitive Emissions Rural HE Met",30,{"v":1.1e-06,"d":"1.10E-06"}]
["CT","Fugitive Emissions","Rural","HE Met","CT Fugitive Emissions Rural HE Met",60,{"v":2.99e-07,"d":"2.99E-07"}]
["CT","Fugitive Emissions","Rural","HE Met","CT Fugitive Emissions Rural HE Met",100,{"v":9.42e-08,"d":"9.42E-08"}]
["CT","Fugitive Emissions","Rural","HE Met","CT Fugitive Emissions Rural HE Met",1000,{"v":3.23e-09,"d":"3.23E-09"}]
["CT","Fugitive Emissions","Rural","HE Met","CT Fugitive Emissions Rural HE Met",2500,{"v":1.03e-10,"d":"1.03E-10"}]
["CT","Fugitive Emissions","Rural","HE Met","CT Fugitive Emissions Rural HE Met",5000,{"v":3.44e-11,"d":"3.44E-11"}]
["CT","Fugitive Emissions","Rural","HE Met","CT Fugitive Emissions Rural HE Met",10000,{"v":1.53e-11,"d":"1.53E-11"}]
["CT","Fugitive Emissions","Urban","HE Met","CT Fugitive Emissions Urban HE Met",10,{"v":4.93e-06,"d":"4.93E-06"}]
["CT","Fugitive Emissions","Urban","HE Met","CT Fugitive Emissions Urban HE Met",30,{"v":1.1e-06,"d":"1.10E-06"}]
["CT","Fugitive Emissions","Urban","HE Met","CT Fugitive Emissions Urban HE Met",60,{"v":2.98e-07,"d":"2.98E-07"}]
["CT","Fugitive Emissions","Urban","HE Met","CT Fugitive Emissions Urban HE Met",100,{"v":9.36e-08,"d":"9.36E-08"}]
["CT","Fugitive Emissions","Urban","HE Met","CT Fugitive Emissions Urban HE Met",1000,{"v":3.19e-09,"d":"3.19E-09"}]
["CT","Fugitive Emissions","Urban","HE Met","CT Fugitive Emissions Urban HE Met",2500,1.02E-10]
["CT","Fugitive Emissions","Urban","HE Met","CT Fugitive Emissions Urban HE Met",5000,3.43E-11]
["CT","Fugitive Emissions","Urban","HE Met","CT Fugitive Emissions Urban HE Met",10000,{"v":1.55e-11,"d":"1.55E-11"}]
["CT","Fugitive Emissions","Rural","CT Met","CT Fugitive Emissions Rural CT Met",10,{"v":3.36E-6,"d":"3.36E-06"}]
["CT","Fugitive Emissions","Rural","CT Met","CT Fugitive Emissions Rural CT Met",30,{"v":1.04E-6,"d":"1.04E-06"}]
["CT","Fugitive Emissions","Rural","CT Met","CT Fugitive Emissions Rural CT Met",60,{"v":3.26e-07,"d":"3.26E-07"}]
["CT","Fugitive Emissions","Rural","CT Met","CT Fugitive Emissions Rural CT Met",100,{"v":1.1e-07,"d":"1.10E-07"}]
["CT","Fugitive Emissions","Rural","CT Met","CT Fugitive Emissions Rural CT Met",1000,{"v":3.6E-9,"d":"3.60E-09"}]
["CT","Fugitive Emissions","Rural","CT Met","CT Fugitive Emissions Rural CT Met",2500,{"v":1.07e-10,"d":"1.07E-10"}]
["CT","Fugitive Emissions","Rural","CT Met","CT Fugitive Emissions Rural CT Met",5000,{"v":2.54e-11,"d":"2.54E-11"}]
["CT","Fugitive Emissions","Rural","CT Met","CT Fugitive Emissions Rural CT Met",10000,{"v":6.47e-12,"d":"6.47E-12"}]
["CT","Fugitive Emissions","Urban","CT Met","CT Fugitive Emissions Urban CT Met",10,{"v":3.5e-06,"d":"3.50E-06"}]
["CT","Fugitive Emissions","Urban","CT Met","CT Fugitive Emissions Urban CT Met",30,{"v":9.85e-07,"d":"9.85E-07"}]
["CT","Fugitive Emissions","Urban","CT Met","CT Fugitive Emissions Urban CT Met",60,{"v":3.04e-07,"d":"3.04E-07"}]
["CT","Fugitive Emissions","Urban","CT Met","CT Fugitive Emissions Urban CT Met",100,{"v":1.02E-7,"d":"1.02E-07"}]
["CT","Fugitive Emissions","Urban","CT Met","CT Fugitive Emissions Urban CT Met",1000,{"v":3.22E-9,"d":"3.22E-09"}]
["CT","Fugitive Emissions","Urban","CT Met","CT Fugitive Emissions Urban CT Met",2500,1.02E-10]
["CT","Fugitive Emissions","Urban","CT Met","CT Fugitive Emissions Urban CT Met",5000,{"v":2.95e-11,"d":"2.95E-11"}]
["CT","Fugitive Emissions","Urban","CT Met","CT Fugitive Emissions Urban CT Met",10000,{"v":8.53e-12,"d":"8.53E-12"}]

{"sheet":"Air Annual Demo","index":3,"n_rows":65,"n_cols":10,"rows_kept":65}
["Run ID","Source Type","Urban/Rural","MET","Combined lables","Distance","CONC | mean f/cc","Risk Benchmark",null,"Percent difference between Rural and Urban"]
["HE","Fugitive Emissions","Rural","HE Met",{"$f":"_xlfn.CONCAT(A2, \" \",B2,\" \", C2,\" \", D2)","v":"HE Fugitive Emissions Rural HE Met"},10,{"v":1.23E-3,"d":"1.23E-03"},10,{"v":1e-06,"d":"1.00E-06"},{"$f":"((G10-G2)/((G2+G10)/2))","v":{"v":0,"d":"0%"}}]
["HE","Fugitive Emissions","Rural","HE Met","HE Fugitive Emissions Rural HE Met",30,{"v":2.34E-4,"d":"2.34E-04"},30,{"v":1e-06,"d":"1.00E-06"},{"$f":"((G11-G3)/((G3+G11)/2))","v":{"v":-0.01724137931034478,"d":"-2%"}}]
["HE","Fugitive Emissions","Rural","HE Met","HE Fugitive Emissions Rural HE Met",60,{"v":5.69e-05,"d":"5.69E-05"},60,{"v":1e-06,"d":"1.00E-06"},{"$f":"((G12-G4)/((G4+G12)/2))","v":{"v":-0.023111111111111072,"d":"-2%"}}]
["HE","Fugitive Emissions","Rural","HE Met","HE Fugitive Emissions Rural HE Met",100,{"v":1.71e-05,"d":"1.71E-05"},100,{"v":1e-06,"d":"1.00E-06"},{"v":-0.023668639053254416,"d":"-2%"}]
["HE","Fugitive Emissions","Rural","HE Met","HE Fugitive Emissions Rural HE Met",1000,{"v":5.23e-07,"d":"5.23E-07"},1000,{"v":1e-06,"d":"1.00E-06"},{"v":-0.02909796314257995,"d":"-3%"}]
["HE","Fugitive Emissions","Rural","HE Met","HE Fugitive Emissions Rural HE Met",2500,{"v":1.83e-08,"d":"1.83E-08"},2500,{"v":1e-06,"d":"1.00E-06"},{"v":-0.022099447513811987,"d":"-2%"}]
["HE","Fugitive Emissions","Rural","HE Met","HE Fugitive Emissions Rural HE Met",5000,{"v":6.25e-09,"d":"6.25E-09"},5000,{"v":1e-06,"d":"1.00E-06"},{"v":0.012718600953895159,"d":"1%"}]
["HE","Fugitive Emissions","Rural","HE Met","HE Fugitive Emissions Rural HE Met",10000,{"v":2.51e-09,"d":"2.51E-09"},10000,{"v":1e-06,"d":"1.00E-06"},{"v":0.011881188118811923,"d":"1%"}]
["HE","Fugitive Emissions","Urban","HE Met","HE Fugitive Emissions Urban HE Met",10,{"v":1.23E-3,"d":"1.23E-03"}]
["HE","Fugitive Emissions","Urban","HE Met","HE Fugitive Emissions Urban HE Met",30,{"v":0.00023,"d":"2.30E-04"}]
["HE","Fugitive Emissions","Urban","HE Met","HE Fugitive Emissions Urban HE Met",60,{"v":5.56e-05,"d":"5.56E-05"}]
["HE","Fugitive Emissions","Urban","HE Met","HE Fugitive Emissions Urban HE Met",100,{"v":1.67e-05,"d":"1.67E-05"}]
["HE","Fugitive Emissions","Urban","HE Met","HE Fugitive Emissions Urban HE Met",1000,{"v":5.08e-07,"d":"5.08E-07"}]
["HE","Fugitive Emissions","Urban","HE Met","HE Fugitive Emissions Urban HE Met",2500,{"v":1.79e-08,"d":"1.79E-08"}]
["HE","Fugitive Emissions","Urban","HE Met","HE Fugitive Emissions Urban HE Met",5000,{"v":6.33e-09,"d":"6.33E-09"}]
["HE","Fugitive Emissions","Urban","HE Met","HE Fugitive Emissions Urban HE Met",10000,{"v":2.54e-09,"d":"2.54E-09"}]
["HE","Fugitive Emissions","Rural","CT Met","HE Fugitive Emissions Rural CT Met",10,{"v":0.00102,"d":"1.02E-03"},null,null,{"v":-0.035928143712574856,"d":"-4%"}]
["HE","Fugitive Emissions","Rural","CT Met","HE Fugitive Emissions Rural CT Met",30,{"v":0.000221,"d":"2.21E-04"},null,null,{"v":-0.009090909090909064,"d":"-1%"}]
["HE","Fugitive Emissions","Rural","CT Met","HE Fugitive Emissions Rural CT Met",60,{"v":6.48e-05,"d":"6.48E-05"},null,null,{"v":-0.07028753993610232,"d":"-7%"}]
["HE","Fugitive Emissions","Rural","CT Met","HE Fugitive Emissions Rural CT Met",100,{"v":2.14e-05,"d":"2.14E-05"},null,null,{"v":-0.0980392156862744,"d":"-10%"}]
["HE","Fugitive Emissions","Rural","CT Met","HE Fugitive Emissions Rural CT Met",1000,{"v":6.94e-07,"d":"6.94E-07"},null,null,{"v":-0.13046815042210289,"d":"-13%"}]
["HE","Fugitive Emissions","Rural","CT Met","HE Fugitive Emissions Rural CT Met",2500,{"v":2.89e-08,"d":"2.89E-08"},null,null,{"v":-0.2188099808061421,"d":"-22%"}]
["HE","Fugitive Emissions","Rural","CT Met","HE Fugitive Emissions Rural CT Met",5000,{"v":8.71e-09,"d":"8.71E-09"},null,null,{"v":-0.12958435207823948,"d":"-13%"}]
["HE","Fugitive Emissions","Rural","CT Met","HE Fugitive Emissions Rural CT Met",10000,{"v":2.93E-9,"d":"2.93E-09"},null,null,{"$f":"((G33-G25)/((G25+G33)/2))","v":{"v":-0.08540925266903915,"d":"-9%"}}]
["HE","Fugitive Emissions","Urban","CT Met","HE Fugitive Emissions Urban CT Met",10,{"v":0.000984,"d":"9.84E-04"}]
["HE","Fugitive Emissions","Urban","CT Met","HE Fugitive Emissions Urban CT Met",30,{"v":0.000219,"d":"2.19E-04"}]
["HE","Fugitive Emissions","Urban","CT Met","HE Fugitive Emissions Urban CT Met",60,{"v":6.04e-05,"d":"6.04E-05"}]
["HE","Fugitive Emissions","Urban","CT Met","HE Fugitive Emissions Urban CT Met",100,{"v":1.94e-05,"d":"1.94E-05"}]
["HE","Fugitive Emissions","Urban","CT Met","HE Fugitive Emissions Urban CT Met",1000,{"v":6.09e-07,"d":"6.09E-07"}]
["HE","Fugitive Emissions","Urban","CT Met","HE Fugitive Emissions Urban CT Met",2500,{"v":2.32e-08,"d":"2.32E-08"}]
["HE","Fugitive Emissions","Urban","CT Met","HE Fugitive Emissions Urban CT Met",5000,{"v":7.65e-09,"d":"7.65E-09"}]
["HE","Fugitive Emissions","Urban","CT Met","HE Fugitive Emissions Urban CT Met",10000,{"v":2.69E-9,"d":"2.69E-09"}]
["CT","Fugitive Emissions","Rural","HE Met",{"$f":"_xlfn.CONCAT(A34, \" \",B34,\" \", C34,\" \", D34)","v":"CT Fugitive Emissions Rural HE Met"},10,{"v":6.17e-06,"d":"6.17E-06"},null,null,{"v":-4.874086108854681E-3,"d":"-0%"}]
["CT","Fugitive Emissions","Rural","HE Met","CT Fugitive Emissions Rural HE Met",30,{"v":1.17E-6,"d":"1.17E-06"},null,null,{"v":-0.017241379310344848,"d":"-2%"}]
["CT","Fugitive Emissions","Rural","HE Met","CT Fugitive Emissions Rural HE Met",60,{"v":2.85e-07,"d":"2.85E-07"},null,null,{"v":-0.02486678507992913,"d":"-2%"}]
["CT","Fugitive Emissions","Rural","HE Met","CT Fugitive Emissions Rural HE Met",100,{"v":8.57e-08,"d":"8.57E-08"},null,null,{"v":-0.026004728132387783,"d":"-3%"}]
["CT","Fugitive Emissions","Rural","HE Met","CT Fugitive Emissions Rural HE Met",1000,{"v":2.61e-09,"d":"2.61E-09"},null,null,{"v":-0.02718446601941746,"d":"-3%"}]
["CT","Fugitive Emissions","Rural","HE Met","CT Fugitive Emissions Rural HE Met",2500,{"v":9.16e-11,"d":"9.16E-11"},null,null,{"v":-0.02542841348811492,"d":"-3%"}]
["CT","Fugitive Emissions","Rural","HE Met","CT Fugitive Emissions Rural HE Met",5000,{"v":3.13e-11,"d":"3.13E-11"},null,null,{"v":0.012698412698412698,"d":"1%"}]
["CT","Fugitive Emissions","Rural","HE Met","CT Fugitive Emissions Rural HE Met",10000,1.25E-11,null,null,{"v":0.01587301587301587,"d":"2%"}]
["CT","Fugitive Emissions","Urban","HE Met","CT Fugitive Emissions Urban HE Met",10,{"v":6.14e-06,"d":"6.14E-06"}]
["CT","Fugitive Emissions","Urban","HE Met","CT Fugitive Emissions Urban HE Met",30,{"v":1.15E-6,"d":"1.15E-06"}]
["CT","Fugitive Emissions","Urban","HE Met","CT Fugitive Emissions Urban HE Met",60,{"v":2.78e-07,"d":"2.78E-07"}]
["CT","Fugitive Emissions","Urban","HE Met","CT Fugitive Emissions Urban HE Met",100,{"v":8.35E-8,"d":"8.35E-08"}]
["CT","Fugitive Emissions","Urban","HE Met","CT Fugitive Emissions Urban HE Met",1000,{"v":2.54e-09,"d":"2.54E-09"}]
["CT","Fugitive Emissions","Urban","HE Met","CT Fugitive Emissions Urban HE Met",2500,{"v":8.93e-11,"d":"8.93E-11"}]
["CT","Fugitive Emissions","Urban","HE Met","CT Fugitive Emissions Urban HE Met",5000,{"v":3.17e-11,"d":"3.17E-11"}]
["CT","Fugitive Emissions","Urban","HE Met","CT Fugitive Emissions Urban HE Met",10000,1.27E-11]
["CT","Fugitive Emissions","Rural","CT Met","CT Fugitive Emissions Rural CT Met",10,{"v":5.12e-06,"d":"5.12E-06"},null,null,{"v":-0.03984063745019916,"d":"-4%"}]
["CT","Fugitive Emissions","Rural","CT Met","CT Fugitive Emissions Rural CT Met",30,{"v":1.11E-6,"d":"1.11E-06"},null,null,{"v":-0.009049773755656023,"d":"-1%"}]
["CT","Fugitive Emissions","Rural","CT Met","CT Fugitive Emissions Rural CT Met",60,{"v":3.24e-07,"d":"3.24E-07"},null,null,{"v":-0.07028753993610228,"d":"-7%"}]
["CT","Fugitive Emissions","Rural","CT Met","CT Fugitive Emissions Rural CT Met",100,{"v":1.07e-07,"d":"1.07E-07"},null,null,{"v":-0.09701126898579131,"d":"-10%"}]
["CT","Fugitive Emissions","Rural","CT Met","CT Fugitive Emissions Rural CT Met",1000,{"v":3.47e-09,"d":"3.47E-09"},null,null,{"v":-0.13210445468509982,"d":"-13%"}]
["CT","Fugitive Emissions","Rural","CT Met","CT Fugitive Emissions Rural CT Met",2500,{"v":1.45e-10,"d":"1.45E-10"},null,null,{"v":-0.22222222222222215,"d":"-22%"}]
["CT","Fugitive Emissions","Rural","CT Met","CT Fugitive Emissions Rural CT Met",5000,{"v":4.36e-11,"d":"4.36E-11"},null,null,{"v":-0.12942612942612935,"d":"-13%"}]
["CT","Fugitive Emissions","Rural","CT Met","CT Fugitive Emissions Rural CT Met",10000,1.46E-11,null,null,{"v":-0.0857142857142857,"d":"-9%"}]
["CT","Fugitive Emissions","Urban","CT Met","CT Fugitive Emissions Urban CT Met",10,{"v":4.92e-06,"d":"4.92E-06"}]
["CT","Fugitive Emissions","Urban","CT Met","CT Fugitive Emissions Urban CT Met",30,{"v":1.1e-06,"d":"1.10E-06"}]
["CT","Fugitive Emissions","Urban","CT Met","CT Fugitive Emissions Urban CT Met",60,{"v":3.02e-07,"d":"3.02E-07"}]
["CT","Fugitive Emissions","Urban","CT Met","CT Fugitive Emissions Urban CT Met",100,{"v":9.71e-08,"d":"9.71E-08"}]
["CT","Fugitive Emissions","Urban","CT Met","CT Fugitive Emissions Urban CT Met",1000,{"v":3.04e-09,"d":"3.04E-09"}]
["CT","Fugitive Emissions","Urban","CT Met","CT Fugitive Emissions Urban CT Met",2500,1.16E-10]
["CT","Fugitive Emissions","Urban","CT Met","CT Fugitive Emissions Urban CT Met",5000,3.83E-11]
["CT","Fugitive Emissions","Urban","CT Met","CT Fugitive Emissions Urban CT Met",10000,1.34E-11]

{"sheet":"Air Annual Disposal Machinery","index":4,"n_rows":97,"n_cols":10,"rows_kept":97}
["Run ID","Source Type","Urban/Rural","MET","Combined lables","Distance","CONC | mean f/cc","Risk Benchmark",null,"Percent difference between Rural and Urban"]
["HE","Fugitive Emissions","Rural","HE Met",{"$f":"_xlfn.CONCAT(A2, \" \",B2,\" \", C2,\" \", D2)","v":"HE Fugitive Emissions Rural HE Met"},10,{"v":0.0163,"d":"1.63E-02"},10,{"v":1e-06,"d":"1.00E-06"},{"$f":"((G10-G2)/((G2+G10)/2))","v":{"v":-0.012345679012345605,"d":"-1%"}}]
["HE","Fugitive Emissions","Rural","HE Met","HE Fugitive Emissions Rural HE Met",30,{"v":2.99E-3,"d":"2.99E-03"},30,{"v":1e-06,"d":"1.00E-06"},{"$f":"((G11-G3)/((G3+G11)/2))","v":{"v":-0.01686340640809448,"d":"-2%"}}]
["HE","Fugitive Emissions","Rural","HE Met","HE Fugitive Emissions Rural HE Met",60,{"v":0.000719,"d":"7.19E-04"},60,{"v":1e-06,"d":"1.00E-06"},{"$f":"((G12-G4)/((G4+G12)/2))","v":{"v":-0.025352112676056342,"d":"-3%"}}]
["HE","Fugitive Emissions","Rural","HE Met","HE Fugitive Emissions Rural HE Met",100,{"v":0.000215,"d":"2.15E-04"},100,{"v":1e-06,"d":"1.00E-06"},{"v":-0.023529411764705816,"d":"-2%"}]
["HE","Fugitive Emissions","Rural","HE Met","HE Fugitive Emissions Rural HE Met",1000,{"v":6.66e-06,"d":"6.66E-06"},1000,{"v":1e-06,"d":"1.00E-06"},{"v":-0.033587786259541924,"d":"-3%"}]
["HE","Fugitive Emissions","Rural","HE Met","HE Fugitive Emissions Rural HE Met",2500,{"v":2.4e-07,"d":"2.40E-07"},2500,{"v":1e-06,"d":"1.00E-06"},{"v":-0.046908315565031895,"d":"-5%"}]
["HE","Fugitive Emissions","Rural","HE Met","HE Fugitive Emissions Rural HE Met",5000,{"v":8.46e-08,"d":"8.46E-08"},5000,{"v":1e-06,"d":"1.00E-06"},{"v":-0.01668653158522049,"d":"-2%"}]
["HE","Fugitive Emissions","Rural","HE Met","HE Fugitive Emissions Rural HE Met",10000,{"v":3.35e-08,"d":"3.35E-08"},10000,{"v":1e-06,"d":"1.00E-06"},{"v":-0.01807228915662667,"d":"-2%"}]
["HE","Fugitive Emissions","Urban","HE Met","HE Fugitive Emissions Urban HE Met",10,{"v":0.0161,"d":"1.61E-02"}]
["HE","Fugitive Emissions","Urban","HE Met","HE Fugitive Emissions Urban HE Met",30,{"v":0.00294,"d":"2.94E-03"}]
["HE","Fugitive Emissions","Urban","HE Met","HE Fugitive Emissions Urban HE Met",60,{"v":0.000701,"d":"7.01E-04"}]
["HE","Fugitive Emissions","Urban","HE Met","HE Fugitive Emissions Urban HE Met",100,{"v":0.00021,"d":"2.10E-04"}]
["HE","Fugitive Emissions","Urban","HE Met","HE Fugitive Emissions Urban HE Met",1000,{"v":6.44e-06,"d":"6.44E-06"}]
["HE","Fugitive Emissions","Urban","HE Met","HE Fugitive Emissions Urban HE Met",2500,{"v":2.29E-7,"d":"2.29E-07"}]
["HE","Fugitive Emissions","Urban","HE Met","HE Fugitive Emissions Urban HE Met",5000,{"v":8.32e-08,"d":"8.32E-08"}]
["HE","Fugitive Emissions","Urban","HE Met","HE Fugitive Emissions Urban HE Met",10000,{"v":3.29e-08,"d":"3.29E-08"}]
["HE","Fugitive Emissions","Rural","CT Met","HE Fugitive Emissions Rural CT Met",10,{"v":0.0137,"d":"1.37E-02"},null,null,{"v":-0.03717472118959111,"d":"-4%"}]
["HE","Fugitive Emissions","Rural","CT Met","HE Fugitive Emissions Rural CT Met",30,{"v":0.00286,"d":"2.86E-03"},null,null,{"v":-0.02120141342756189,"d":"-2%"}]
["HE","Fugitive Emissions","Rural","CT Met","HE Fugitive Emissions Rural CT Met",60,{"v":0.0008,"d":"8.00E-04"},null,null,{"v":-0.06451612903225809,"d":"-6%"}]
["HE","Fugitive Emissions","Rural","CT Met","HE Fugitive Emissions Rural CT Met",100,{"v":0.000257,"d":"2.57E-04"},null,null,{"v":-0.07676767676767678,"d":"-8%"}]
["HE","Fugitive Emissions","Rural","CT Met","HE Fugitive Emissions Rural CT Met",1000,{"v":8.48e-06,"d":"8.48E-06"},null,null,{"v":-0.12132582864290181,"d":"-12%"}]
["HE","Fugitive Emissions","Rural","CT Met","HE Fugitive Emissions Rural CT Met",2500,{"v":3.27E-7,"d":"3.27E-07"},null,null,{"v":-0.16198347107438027,"d":"-16%"}]
["HE","Fugitive Emissions","Rural","CT Met","HE Fugitive Emissions Rural CT Met",5000,{"v":1.04E-7,"d":"1.04E-07"},null,null,{"v":-0.10313447927199189,"d":"-10%"}]
["HE","Fugitive Emissions","Rural","CT Met","HE Fugitive Emissions Rural CT Met",10000,{"v":3.64e-08,"d":"3.64E-08"},null,null,{"$f":"((G33-G25)/((G25+G33)/2))","v":{"v":-0.07703281027104149,"d":"-8%"}}]
["HE","Fugitive Emissions","Urban","CT Met","HE Fugitive Emissions Urban CT Met",10,{"v":0.0132,"d":"1.32E-02"}]
["HE","Fugitive Emissions","Urban","CT Met","HE Fugitive Emissions Urban CT Met",30,{"v":2.8E-3,"d":"2.80E-03"}]
["HE","Fugitive Emissions","Urban","CT Met","HE Fugitive Emissions Urban CT Met",60,{"v":0.00075,"d":"7.50E-04"}]
["HE","Fugitive Emissions","Urban","CT Met","HE Fugitive Emissions Urban CT Met",100,{"v":0.000238,"d":"2.38E-04"}]
["HE","Fugitive Emissions","Urban","CT Met","HE Fugitive Emissions Urban CT Met",1000,{"v":7.51e-06,"d":"7.51E-06"}]
["HE","Fugitive Emissions","Urban","CT Met","HE Fugitive Emissions Urban CT Met",2500,{"v":2.78e-07,"d":"2.78E-07"}]
["HE","Fugitive Emissions","Urban","CT Met","HE Fugitive Emissions Urban CT Met",5000,{"v":9.38e-08,"d":"9.38E-08"}]
["HE","Fugitive Emissions","Urban","CT Met","HE Fugitive Emissions Urban CT Met",10000,{"v":3.37e-08,"d":"3.37E-08"}]
["CT","Fugitive Emissions","Rural","HE Met",{"$f":"_xlfn.CONCAT(A34, \" \",B34,\" \", C34,\" \", D34)","v":"CT Fugitive Emissions Rural HE Met"},10,{"v":1.44e-05,"d":"1.44E-05"},null,null,{"v":-0.006968641114982512,"d":"-1%"}]
["CT","Fugitive Emissions","Rural","HE Met","CT Fugitive Emissions Rural HE Met",30,{"v":2.66e-06,"d":"2.66E-06"},null,null,{"v":-0.018975332068311174,"d":"-2%"}]
["CT","Fugitive Emissions","Rural","HE Met","CT Fugitive Emissions Rural HE Met",60,{"v":6.38e-07,"d":"6.38E-07"},null,null,{"v":-0.02379064234734332,"d":"-2%"}]
["CT","Fugitive Emissions","Rural","HE Met","CT Fugitive Emissions Rural HE Met",100,{"v":1.91E-7,"d":"1.91E-07"},null,null,{"v":-0.026525198938992068,"d":"-3%"}]
["CT","Fugitive Emissions","Rural","HE Met","CT Fugitive Emissions Rural HE Met",1000,{"v":5.91e-09,"d":"5.91E-09"},null,null,{"v":-0.03267411865864137,"d":"-3%"}]
["CT","Fugitive Emissions","Rural","HE Met","CT Fugitive Emissions Rural HE Met",2500,{"v":2.13e-10,"d":"2.13E-10"},null,null,{"v":-0.043165467625899255,"d":"-4%"}]
["CT","Fugitive Emissions","Rural","HE Met","CT Fugitive Emissions Rural HE Met",5000,{"v":7.51e-11,"d":"7.51E-11"},null,null,{"v":-0.016107382550335652,"d":"-2%"}]
["CT","Fugitive Emissions","Rural","HE Met","CT Fugitive Emissions Rural HE Met",10000,{"v":2.98e-11,"d":"2.98E-11"},null,null,{"v":-0.02033898305084756,"d":"-2%"}]
["CT","Fugitive Emissions","Urban","HE Met","CT Fugitive Emissions Urban HE Met",10,{"v":1.43E-5,"d":"1.43E-05"}]
["CT","Fugitive Emissions","Urban","HE Met","CT Fugitive Emissions Urban HE Met",30,{"v":2.61E-6,"d":"2.61E-06"}]
["CT","Fugitive Emissions","Urban","HE Met","CT Fugitive Emissions Urban HE Met",60,{"v":6.23e-07,"d":"6.23E-07"}]
["CT","Fugitive Emissions","Urban","HE Met","CT Fugitive Emissions Urban HE Met",100,{"v":1.86E-7,"d":"1.86E-07"}]
["CT","Fugitive Emissions","Urban","HE Met","CT Fugitive Emissions Urban HE Met",1000,{"v":5.72e-09,"d":"5.72E-09"}]
["CT","Fugitive Emissions","Urban","HE Met","CT Fugitive Emissions Urban HE Met",2500,{"v":2.04e-10,"d":"2.04E-10"}]
["CT","Fugitive Emissions","Urban","HE Met","CT Fugitive Emissions Urban HE Met",5000,{"v":7.39e-11,"d":"7.39E-11"}]
["CT","Fugitive Emissions","Urban","HE Met","CT Fugitive Emissions Urban HE Met",10000,2.92E-11]
["CT","Fugitive Emissions","Rural","CT Met","CT Fugitive Emissions Rural CT Met",10,{"v":1.21e-05,"d":"1.21E-05"},null,null,{"v":-0.033613445378151224,"d":"-3%"}]
["CT","Fugitive Emissions","Rural","CT Met","CT Fugitive Emissions Rural CT Met",30,{"v":2.54e-06,"d":"2.54E-06"},null,null,{"v":-0.019880715705765387,"d":"-2%"}]
["CT","Fugitive Emissions","Rural","CT Met","CT Fugitive Emissions Rural CT Met",60,{"v":7.11e-07,"d":"7.11E-07"},null,null,{"v":-0.065359477124183,"d":"-7%"}]
["CT","Fugitive Emissions","Rural","CT Met","CT Fugitive Emissions Rural CT Met",100,{"v":2.28E-7,"d":"2.28E-07"},null,null,{"v":-0.07744874715261962,"d":"-8%"}]
["CT","Fugitive Emissions","Rural","CT Met","CT Fugitive Emissions Rural CT Met",1000,{"v":7.53e-09,"d":"7.53E-09"},null,null,{"v":-0.12112676056338026,"d":"-12%"}]
["CT","Fugitive Emissions","Rural","CT Met","CT Fugitive Emissions Rural CT Met",2500,{"v":2.91e-10,"d":"2.91E-10"},null,null,{"v":-0.16356877323420074,"d":"-16%"}]
["CT","Fugitive Emissions","Rural","CT Met","CT Fugitive Emissions Rural CT Met",5000,{"v":9.26e-11,"d":"9.26E-11"},null,null,{"v":-0.10574189880613982,"d":"-11%"}]
["CT","Fugitive Emissions","Rural","CT Met","CT Fugitive Emissions Rural CT Met",10000,{"v":3.24e-11,"d":"3.24E-11"},null,null,{"v":-0.07692307692307691,"d":"-8%"}]
["CT","Fugitive Emissions","Urban","CT Met","CT Fugitive Emissions Urban CT Met",10,{"v":1.17E-5,"d":"1.17E-05"}]
["CT","Fugitive Emissions","Urban","CT Met","CT Fugitive Emissions Urban CT Met",30,{"v":2.49e-06,"d":"2.49E-06"}]
["CT","Fugitive Emissions","Urban","CT Met","CT Fugitive Emissions Urban CT Met",60,{"v":6.66e-07,"d":"6.66E-07"}]
["CT","Fugitive Emissions","Urban","CT Met","CT Fugitive Emissions Urban CT Met",100,{"v":2.11E-7,"d":"2.11E-07"}]
["CT","Fugitive Emissions","Urban","CT Met","CT Fugitive Emissions Urban CT Met",1000,{"v":6.67e-09,"d":"6.67E-09"}]
["CT","Fugitive Emissions","Urban","CT Met","CT Fugitive Emissions Urban CT Met",2500,{"v":2.47e-10,"d":"2.47E-10"}]
["CT","Fugitive Emissions","Urban","CT Met","CT Fugitive Emissions Urban CT Met",5000,{"v":8.33e-11,"d":"8.33E-11"}]
["CT","Fugitive Emissions","Urban","CT Met","CT Fugitive Emissions Urban CT Met",10000,{"v":3E-11,"d":"3.00E-11"}]
["HE","Stack Emissions","Rural","HE Met",{"$f":"_xlfn.CONCAT(A66, \" \",B66,\" \", C66,\" \", D66)","v":"HE Stack Emissions Rural HE Met"},10,{"v":2.49e-11,"d":"2.49E-11"}]
["HE","Stack Emissions","R","HE Met","HE Stack Emissions R HE Met",30,{"v":6.41E-9,"d":"6.41E-09"}]
["HE","Stack Emissions","R","HE Met","HE Stack Emissions R HE Met",60,{"v":6.55e-08,"d":"6.55E-08"}]
["HE","Stack Emissions","R","HE Met","HE Stack Emissions R HE Met",100,{"v":9.73e-08,"d":"9.73E-08"}]
["HE","Stack Emissions","R","HE Met","HE Stack Emissions R HE Met",1000,{"v":6.91e-09,"d":"6.91E-09"}]
["HE","Stack Emissions","R","HE Met","HE Stack Emissions R HE Met",2500,{"v":1.68e-10,"d":"1.68E-10"}]
["HE","Stack Emissions","R","HE Met","HE Stack Emissions R HE Met",5000,{"v":5.77e-11,"d":"5.77E-11"}]
["HE","Stack Emissions","R","HE Met","HE Stack Emissions R HE Met",10000,{"v":2.3e-11,"d":"2.30E-11"}]
["HE","Stack Emissions","Urban","HE Met","HE Stack Emissions Urban HE Met",10,{"v":1.47e-10,"d":"1.47E-10"}]
["HE","Stack Emissions","Urban","HE Met","HE Stack Emissions Urban HE Met",30,{"v":1.04E-8,"d":"1.04E-08"}]
["HE","Stack Emissions","U","HE Met","HE Stack Emissions U HE Met",60,{"v":7.53e-08,"d":"7.53E-08"}]
["HE","Stack Emissions","U","HE Met","HE Stack Emissions U HE Met",100,{"v":1.02E-7,"d":"1.02E-07"}]
["HE","Stack Emissions","U","HE Met","HE Stack Emissions U HE Met",1000,{"v":6.62e-09,"d":"6.62E-09"}]
["HE","Stack Emissions","U","HE Met","HE Stack Emissions U HE Met",2500,{"v":1.62e-10,"d":"1.62E-10"}]
["HE","Stack Emissions","U","HE Met","HE Stack Emissions U HE Met",5000,5.76E-11]
["HE","Stack Emissions","U","HE Met","HE Stack Emissions U HE Met",10000,2.29E-11]
["HE","Stack Emissions","Rural","CT Met","HE Stack Emissions Rural CT Met",10,{"v":8.03e-11,"d":"8.03E-11"}]
["HE","Stack Emissions","Rural","CT Met","HE Stack Emissions Rural CT Met",30,{"v":4.73E-9,"d":"4.73E-09"}]
["HE","Stack Emissions","R","CT Met","HE Stack Emissions R CT Met",60,{"v":3.76e-08,"d":"3.76E-08"}]
["HE","Stack Emissions","R","CT Met","HE Stack Emissions R CT Met",100,{"v":6.25e-08,"d":"6.25E-08"}]
["HE","Stack Emissions","R","CT Met","HE Stack Emissions R CT Met",1000,{"v":7.09e-09,"d":"7.09E-09"}]
["HE","Stack Emissions","R","CT Met","HE Stack Emissions R CT Met",2500,{"v":2.15e-10,"d":"2.15E-10"}]
["HE","Stack Emissions","R","CT Met","HE Stack Emissions R CT Met",5000,{"v":7.11e-11,"d":"7.11E-11"}]
["HE","Stack Emissions","R","CT Met","HE Stack Emissions R CT Met",10000,{"v":2.63e-11,"d":"2.63E-11"}]
["HE","Stack Emissions","Urban","CT Met","HE Stack Emissions Urban CT Met",10,3.13E-10]
["HE","Stack Emissions","Urban","CT Met","HE Stack Emissions Urban CT Met",30,{"v":9.12e-09,"d":"9.12E-09"}]
["HE","Stack Emissions","U","CT Met","HE Stack Emissions U CT Met",60,{"v":4.97e-08,"d":"4.97E-08"}]
["HE","Stack Emissions","U","CT Met","HE Stack Emissions U CT Met",100,{"v":7.07e-08,"d":"7.07E-08"}]
["HE","Stack Emissions","U","CT Met","HE Stack Emissions U CT Met",1000,{"v":6.67e-09,"d":"6.67E-09"}]
["HE","Stack Emissions","U","CT Met","HE Stack Emissions U CT Met",2500,{"v":1.99e-10,"d":"1.99E-10"}]
["HE","Stack Emissions","U","CT Met","HE Stack Emissions U CT Met",5000,{"v":6.5e-11,"d":"6.50E-11"}]
["HE","Stack Emissions","U","CT Met","HE Stack Emissions U CT Met",10000,2.33E-11]

{"sheet":"Deposition Annual","index":5,"n_rows":225,"n_cols":56,"rows_kept":225}
[null,"Run ID","Facility","OES","Source Type","Urban/Rural","MET","Combined Labels","Avg Period","Distance | m","DEPO | mean f/m2","DEPO |P10 f/m2","DEPO | P50 f/m2","DEPO | P95 f/m2","DEPO | Range f/m2","DEPO | std f/m2",{"$nulls":30},"Count of DEPO | mean f/m2","Column Labels"]
[8,"HE","4_Handling Asbestos-Containing Building Materials During Firefighting or Other Disaster Response Activities","Handling Asbestos-Containing Building Materials During Firefighting or Other Disaster Response Activities","Fugitive Emissions","Rural","HE Met",{"$f":"_xlfn.CONCAT(B2, \" \",E2,\" \",F2,\" \",G2)","v":"HE Fugitive Emissions Rural HE Met"},"5 years",10,{"v":10500000000,"d":"1.05E+10"},{"v":1050000000,"d":"1.05E+09"},{"v":8470000000,"d":"8.47E+09"},{"v":24200000000,"d":"2.42E+10"},"1.41e+08 - 2.54e+10",{"v":8940000000,"d":"8.94E+09"},{"$nulls":30},"Row Labels",10,30,60,100,1000,2500,5000,10000,"Grand Total"]
[9,"HE","4_Handling Asbestos-Containing Building Materials During Firefighting or Other Disaster Response Activities","Handling Asbestos-Containing Building Materials During Firefighting or Other Disaster Response Activities","Fugitive Emissions","Rural","HE Met","HE Fugitive Emissions Rural HE Met","5 years",30,{"v":6740000000,"d":"6.74E+09"},{"v":54300000,"d":"5.43E+07"},{"v":3660000000,"d":"3.66E+09"},{"v":20100000000,"d":"2.01E+10"},"8.57e+06 - 2.11e+10",{"v":7320000000,"d":"7.32E+09"},{"$nulls":30},"CT Fugitive Emissions Rural CT Met",3,3,3,3,3,3,3,3,24]
[10,"HE","4_Handling Asbestos-Containing Building Materials During Firefighting or Other Disaster Response Activities","Handling Asbestos-Containing Building Materials During Firefighting or Other Disaster Response Activities","Fugitive Emissions","Rural","HE Met","HE Fugitive Emissions Rural HE Met","5 years",60,{"v":1500000000,"d":"1.50E+09"},{"v":9520000,"d":"9.52E+06"},{"v":550000000,"d":"5.50E+08"},{"v":4510000000,"d":"4.51E+09"},"5.58e+05 - 4.85e+09",{"v":1770000000,"d":"1.77E+09"},{"$nulls":30},"CT Fugitive Emissions Rural HE Met",3,3,3,3,3,3,3,3,24]
[11,"HE","4_Handling Asbestos-Containing Building Materials During Firefighting or Other Disaster Response Activities","Handling Asbestos-Containing Building Materials During Firefighting or Other Disaster Response Activities","Fugitive Emissions","Rural","HE Met","HE Fugitive Emissions Rural HE Met","5 years",100,{"v":407000000,"d":"4.07E+08"},{"v":1480000,"d":"1.48E+06"},{"v":139000000,"d":"1.39E+08"},{"v":1250000000,"d":"1.25E+09"},"4.90e+04 - 1.37e+09",{"v":504000000,"d":"5.04E+08"},{"$nulls":30},"CT Fugitive Emissions Urban CT Met",3,3,3,3,3,3,3,3,24]
[12,"HE","4_Handling Asbestos-Containing Building Materials During Firefighting or Other Disaster Response Activities","Handling Asbestos-Containing Building Materials During Firefighting or Other Disaster Response Activities","Fugitive Emissions","Rural","HE Met","HE Fugitive Emissions Rural HE Met","5 years",1000,{"v":13600000,"d":"1.36E+07"},null,{"v":2180000,"d":"2.18E+06"},{"v":51800000,"d":"5.18E+07"},"0.00e+00 - 5.75e+08",{"v":49500000,"d":"4.95E+07"},{"$nulls":30},"CT Fugitive Emissions Urban HE Met",3,3,3,3,3,3,3,3,24]
[13,"HE","4_Handling Asbestos-Containing Building Materials During Firefighting or Other Disaster Response Activities","Handling Asbestos-Containing Building Materials During Firefighting or Other Disaster Response Activities","Fugitive Emissions","Rural","HE Met","HE Fugitive Emissions Rural HE Met","5 years",2500,{"v":467000,"d":"4.67E+05"},null,{"v":91000,"d":"9.10E+04"},{"v":1540000,"d":"1.54E+06"},"0.00e+00 - 1.69e+06",{"v":648000,"d":"6.48E+05"},{"$nulls":30},"HE Fugitive Emissions Rural CT Met",3,3,3,3,3,3,3,3,24]
[14,"HE","4_Handling Asbestos-Containing Building Materials During Firefighting or Other Disaster Response Activities","Handling Asbestos-Containing Building Materials During Firefighting or Other Disaster Response Activities","Fugitive Emissions","Rural","HE Met","HE Fugitive Emissions Rural HE Met","5 years",5000,{"v":156000,"d":"1.56E+05"},null,{"v":29500,"d":"2.95E+04"},{"v":545000,"d":"5.45E+05"},"0.00e+00 - 6.17e+05",{"v":208000,"d":"2.08E+05"},{"$nulls":30},"HE Fugitive Emissions Rural HE Met",3,3,3,3,3,3,3,3,24]
[15,"HE","4_Handling Asbestos-Containing Building Materials During Firefighting or Other Disaster Response Activities","Handling Asbestos-Containing Building Materials During Firefighting or Other Disaster Response Activities","Fugitive Emissions","Rural","HE Met","HE Fugitive Emissions Rural HE Met","5 years",10000,{"v":67900,"d":"6.79E+04"},null,{"v":5050,"d":"5.05E+03"},{"v":249000,"d":"2.49E+05"},"0.00e+00 - 3.18e+05",{"v":98200,"d":"9.82E+04"},{"$nulls":30},"HE Fugitive Emissions Urban CT Met",3,3,3,3,3,3,3,3,24]
[24,"HE","4_Handling Asbestos-Containing Building Materials During Firefighting or Other Disaster Response Activities","Handling Asbestos-Containing Building Materials During Firefighting or Other Disaster Response Activities","Fugitive Emissions","Urban","HE Met","HE Fugitive Emissions Urban HE Met","5 years",10,{"v":10500000000,"d":"1.05E+10"},{"v":1080000000,"d":"1.08E+09"},{"v":8470000000,"d":"8.47E+09"},{"v":24200000000,"d":"2.42E+10"},"1.57e+08 - 2.54e+10",{"v":8890000000,"d":"8.89E+09"},{"$nulls":30},"HE Fugitive Emissions Urban HE Met",3,3,3,3,3,3,3,3,24]
[25,"HE","4_Handling Asbestos-Containing Building Materials During Firefighting or Other Disaster Response Activities","Handling Asbestos-Containing Building Materials During Firefighting or Other Disaster Response Activities","Fugitive Emissions","Urban","HE Met","HE Fugitive Emissions Urban HE Met","5 years",30,{"v":6730000000,"d":"6.73E+09"},{"v":56900000,"d":"5.69E+07"},{"v":3660000000,"d":"3.66E+09"},{"v":20100000000,"d":"2.01E+10"},"8.63e+06 - 2.11e+10",{"v":7300000000,"d":"7.30E+09"},{"$nulls":30},"HE Stack Emissions Rural CT Met",1,1,1,1,1,1,1,1,8]
[26,"HE","4_Handling Asbestos-Containing Building Materials During Firefighting or Other Disaster Response Activities","Handling Asbestos-Containing Building Materials During Firefighting or Other Disaster Response Activities","Fugitive Emissions","Urban","HE Met","HE Fugitive Emissions Urban HE Met","5 years",60,{"v":1490000000,"d":"1.49E+09"},{"v":9730000,"d":"9.73E+06"},{"v":569000000,"d":"5.69E+08"},{"v":4510000000,"d":"4.51E+09"},"5.58e+05 - 4.85e+09",{"v":1750000000,"d":"1.75E+09"},{"$nulls":30},"HE Stack Emissions Rural HE Met",1,1,1,1,1,1,1,1,8]
[27,"HE","4_Handling Asbestos-Containing Building Materials During Firefighting or Other Disaster Response Activities","Handling Asbestos-Containing Building Materials During Firefighting or Other Disaster Response Activities","Fugitive Emissions","Urban","HE Met","HE Fugitive Emissions Urban HE Met","5 years",100,{"v":405000000,"d":"4.05E+08"},{"v":1480000,"d":"1.48E+06"},{"v":156000000,"d":"1.56E+08"},{"v":1250000000,"d":"1.25E+09"},"4.90e+04 - 1.37e+09",{"v":495000000,"d":"4.95E+08"},{"$nulls":30},"HE Stack Emissions Urban CT Met",1,1,1,1,1,1,1,1,8]
[28,"HE","4_Handling Asbestos-Containing Building Materials During Firefighting or Other Disaster Response Activities","Handling Asbestos-Containing Building Materials During Firefighting or Other Disaster Response Activities","Fugitive Emissions","Urban","HE Met","HE Fugitive Emissions Urban HE Met","5 years",1000,{"v":13400000,"d":"1.34E+07"},null,{"v":2180000,"d":"2.18E+06"},{"v":49100000,"d":"4.91E+07"},"0.00e+00 - 5.75e+08",{"v":48400000,"d":"4.84E+07"},{"$nulls":30},"HE Stack Emissions Urban HE Met",1,1,1,1,1,1,1,1,8]
[29,"HE","4_Handling Asbestos-Containing Building Materials During Firefighting or Other Disaster Response Activities","Handling Asbestos-Containing Building Materials During Firefighting or Other Disaster Response Activities","Fugitive Emissions","Urban","HE Met","HE Fugitive Emissions Urban HE Met","5 years",2500,{"v":462000,"d":"4.62E+05"},null,{"v":91000,"d":"9.10E+04"},{"v":1540000,"d":"1.54E+06"},"0.00e+00 - 1.69e+06",{"v":640000,"d":"6.40E+05"},{"$nulls":30},"Grand Total",28,28,28,28,28,28,28,28,224]
[30,"HE","4_Handling Asbestos-Containing Building Materials During Firefighting or Other Disaster Response Activities","Handling Asbestos-Containing Building Materials During Firefighting or Other Disaster Response Activities","Fugitive Emissions","Urban","HE Met","HE Fugitive Emissions Urban HE Met","5 years",5000,{"v":155000,"d":"1.55E+05"},null,{"v":29500,"d":"2.95E+04"},{"v":545000,"d":"5.45E+05"},"0.00e+00 - 6.17e+05",{"v":208000,"d":"2.08E+05"}]
[31,"HE","4_Handling Asbestos-Containing Building Materials During Firefighting or Other Disaster Response Activities","Handling Asbestos-Containing Building Materials During Firefighting or Other Disaster Response Activities","Fugitive Emissions","Urban","HE Met","HE Fugitive Emissions Urban HE Met","5 years",10000,{"v":68500,"d":"6.85E+04"},null,{"v":5050,"d":"5.05E+03"},{"v":249000,"d":"2.49E+05"},"0.00e+00 - 3.18e+05",{"v":98500,"d":"9.85E+04"}]
[8,"HE","4_Handling Asbestos-Containing Building Materials During Firefighting or Other Disaster Response Activities","Handling Asbestos-Containing Building Materials During Firefighting or Other Disaster Response Activities","Fugitive Emissions","Rural","CT Met","HE Fugitive Emissions Rural CT Met","5 years",10,{"v":4820000000,"d":"4.82E+09"},{"v":435000,"d":"4.35E+05"},{"v":2370000000,"d":"2.37E+09"},{"v":18200000000,"d":"1.82E+10"},"0.00e+00 - 2.34e+10",{"v":6800000000,"d":"6.80E+09"},{"$nulls":30},"Average of DEPO | mean f/m2","Column Labels"]
[9,"HE","4_Handling Asbestos-Containing Building Materials During Firefighting or Other Disaster Response Activities","Handling Asbestos-Containing Building Materials During Firefighting or Other Disaster Response Activities","Fugitive Emissions","Rural","CT Met","HE Fugitive Emissions Rural CT Met","5 years",30,{"v":5630000000,"d":"5.63E+09"},null,{"v":3430000000,"d":"3.43E+09"},{"v":16600000000,"d":"1.66E+10"},"0.00e+00 - 1.80e+10",{"v":6280000000,"d":"6.28E+09"},{"$nulls":30},"Row Labels",10,30,60,100,1000,2500,5000,10000,"Grand Total"]
[10,"HE","4_Handling Asbestos-Containing Building Materials During Firefighting or Other Disaster Response Activities","Handling Asbestos-Containing Building Materials During Firefighting or Other Disaster Response Activities","Fugitive Emissions","Rural","CT Met","HE Fugitive Emissions Rural CT Met","5 years",60,{"v":1640000000,"d":"1.64E+09"},null,{"v":586000000,"d":"5.86E+08"},{"v":5620000000,"d":"5.62E+09"},"0.00e+00 - 7.48e+09",{"v":2220000000,"d":"2.22E+09"},{"$nulls":29},4,"CT Fugitive Emissions Rural CT Met",{"v":75833333.33333333,"d":"7.58E+07"},{"v":46433333.333333336,"d":"4.64E+07"},{"v":11103333.333333334,"d":"1.11E+07"},{"v":3050000,"d":"3.05E+06"},{"v":87200,"d":"8.72E+04"},{"v":3086.6666666666665,"d":"3.09E+03"},{"v":898.6666666666666,"d":"8.99E+02"},{"v":291.6666666666667,"d":"2.92E+02"},{"v":17063934.625,"d":"1.71E+07"}]
[11,"HE","4_Handling Asbestos-Containing Building Materials During Firefighting or Other Disaster Response Activities","Handling Asbestos-Containing Building Materials During Firefighting or Other Disaster Response Activities","Fugitive Emissions","Rural","CT Met","HE Fugitive Emissions Rural CT Met","5 years",100,{"v":482000000,"d":"4.82E+08"},null,{"v":102000000,"d":"1.02E+08"},{"v":1770000000,"d":"1.77E+09"},"0.00e+00 - 2.58e+09",{"v":738000000,"d":"7.38E+08"},{"$nulls":29},2,"CT Fugitive Emissions Rural HE Met",{"v":134100000,"d":"1.34E+08"},{"v":50400000,"d":"5.04E+07"},{"v":10096666.666666666,"d":"1.01E+07"},{"v":2656666.6666666665,"d":"2.66E+06"},{"v":83666.66666666667,"d":"8.37E+04"},{"v":3080,"d":"3.08E+03"},{"v":1047,"d":"1.05E+03"},{"v":416.3333333333333,"d":"4.16E+02"},{"v":24667692.916666668,"d":"2.47E+07"}]
[12,"HE","4_Handling Asbestos-Containing Building Materials During Firefighting or Other Disaster Response Activities","Handling Asbestos-Containing Building Materials During Firefighting or Other Disaster Response Activities","Fugitive Emissions","Rural","CT Met","HE Fugitive Emissions Rural CT Met","5 years",1000,{"v":13700000,"d":"1.37E+07"},null,{"v":163000,"d":"1.63E+05"},{"v":55800000,"d":"5.58E+07"},"0.00e+00 - 5.85e+08",{"v":51300000,"d":"5.13E+07"},{"$nulls":29},3,"CT Fugitive Emissions Urban CT Met",{"v":81333333.33333333,"d":"8.13E+07"},{"v":43800000,"d":"4.38E+07"},{"v":10496666.666666666,"d":"1.05E+07"},{"v":2946666.6666666665,"d":"2.95E+06"},{"v":85300,"d":"8.53E+04"},{"v":3020,"d":"3.02E+03"},{"v":965.6666666666666,"d":"9.66E+02"},{"v":322.3333333333333,"d":"3.22E+02"},{"v":17333284.333333332,"d":"1.73E+07"}]
[13,"HE","4_Handling Asbestos-Containing Building Materials During Firefighting or Other Disaster Response Activities","Handling Asbestos-Containing Building Materials During Firefighting or Other Disaster Response Activities","Fugitive Emissions","Rural","CT Met","HE Fugitive Emissions Rural CT Met","5 years",2500,{"v":423000,"d":"4.23E+05"},null,null,{"v":1740000,"d":"1.74E+06"},"0.00e+00 - 3.43e+06",{"v":891000,"d":"8.91E+05"},{"$nulls":29},1,"CT Fugitive Emissions Urban HE Met",{"v":135166666.66666666,"d":"1.35E+08"},{"v":49633333.333333336,"d":"4.96E+07"},{"v":9936666.666666666,"d":"9.94E+06"},{"v":2626666.6666666665,"d":"2.63E+06"},{"v":82666.66666666667,"d":"8.27E+04"},{"v":3070,"d":"3.07E+03"},{"v":1075,"d":"1.08E+03"},{"v":427,"d":"4.27E+02"},{"v":24681321.5,"d":"2.47E+07"}]
[14,"HE","4_Handling Asbestos-Containing Building Materials During Firefighting or Other Disaster Response Activities","Handling Asbestos-Containing Building Materials During Firefighting or Other Disaster Response Activities","Fugitive Emissions","Rural","CT Met","HE Fugitive Emissions Rural CT Met","5 years",5000,{"v":98600,"d":"9.86E+04"},null,null,{"v":458000,"d":"4.58E+05"},"0.00e+00 - 9.08e+05",{"v":234000,"d":"2.34E+05"},{"$nulls":30},"HE Fugitive Emissions Rural CT Met",{"v":60440000000,"d":"6.04E+10"},{"v":33000000000,"d":"3.30E+10"},{"v":7506666666.666667,"d":"7.51E+09"},{"v":2027333333.3333333,"d":"2.03E+09"},{"v":58566666.666666664,"d":"5.86E+07"},{"v":2135666.6666666665,"d":"2.14E+06"},{"v":653866.6666666666,"d":"6.54E+05"},{"v":220300,"d":"2.20E+05"},{"v":12879447062.5,"d":"1.29E+10"}]
[15,"HE","4_Handling Asbestos-Containing Building Materials During Firefighting or Other Disaster Response Activities","Handling Asbestos-Containing Building Materials During Firefighting or Other Disaster Response Activities","Fugitive Emissions","Rural","CT Met","HE Fugitive Emissions Rural CT Met","5 years",10000,{"v":25300,"d":"2.53E+04"},null,null,{"v":129000,"d":"1.29E+05"},"0.00e+00 - 2.83e+05",{"v":71800,"d":"7.18E+04"},{"$nulls":30},"HE Fugitive Emissions Rural HE Met",{"v":102433333333.33333,"d":"1.02E+11"},{"v":35193333333.333336,"d":"3.52E+10"},{"v":6873333333.333333,"d":"6.87E+09"},{"v":1792000000,"d":"1.79E+09"},{"v":55933333.333333336,"d":"5.59E+07"},{"v":2091000,"d":"2.09E+06"},{"v":717000,"d":"7.17E+05"},{"v":276866.6666666667,"d":"2.77E+05"},{"v":18293877275,"d":"1.83E+10"}]
[24,"HE","4_Handling Asbestos-Containing Building Materials During Firefighting or Other Disaster Response Activities","Handling Asbestos-Containing Building Materials During Firefighting or Other Disaster Response Activities","Fugitive Emissions","Urban","CT Met","HE Fugitive Emissions Urban CT Met","5 years",10,{"v":6180000000,"d":"6.18E+09"},{"v":4790000,"d":"4.79E+06"},{"v":3520000000,"d":"3.52E+09"},{"v":20800000000,"d":"2.08E+10"},"2.58e+00 - 2.50e+10",{"v":7570000000,"d":"7.57E+09"},{"$nulls":30},"HE Fugitive Emissions Urban CT Met",{"v":63126666666.666664,"d":"6.31E+10"},{"v":31243333333.333332,"d":"3.12E+10"},{"v":7173333333.333333,"d":"7.17E+09"},{"v":1973333333.3333333,"d":"1.97E+09"},{"v":57600000,"d":"5.76E+07"},{"v":2100666.6666666665,"d":"2.10E+06"},{"v":692333.3333333334,"d":"6.92E+05"},{"v":237400,"d":"2.37E+05"},{"v":12947162133.333334,"d":"1.29E+10"}]
[25,"HE","4_Handling Asbestos-Containing Building Materials During Firefighting or Other Disaster Response Activities","Handling Asbestos-Containing Building Materials During Firefighting or Other Disaster Response Activities","Fugitive Emissions","Urban","CT Met","HE Fugitive Emissions Urban CT Met","5 years",30,{"v":5290000000,"d":"5.29E+09"},null,{"v":4400000000,"d":"4.40E+09"},{"v":13800000000,"d":"1.38E+10"},"0.00e+00 - 1.57e+10",{"v":5130000000,"d":"5.13E+09"},{"$nulls":30},"HE Fugitive Emissions Urban HE Met",{"v":103533333333.33333,"d":"1.04E+11"},{"v":34576666666.666664,"d":"3.46E+10"},{"v":6726666666.666667,"d":"6.73E+09"},{"v":1773333333.3333333,"d":"1.77E+09"},{"v":55200000,"d":"5.52E+07"},{"v":2086000,"d":"2.09E+06"},{"v":738333.3333333334,"d":"7.38E+05"},{"v":285000,"d":"2.85E+05"},{"v":18333538666.666668,"d":"1.83E+10"}]
[26,"HE","4_Handling Asbestos-Containing Building Materials During Firefighting or Other Disaster Response Activities","Handling Asbestos-Containing Building Materials During Firefighting or Other Disaster Response Activities","Fugitive Emissions","Urban","CT Met","HE Fugitive Emissions Urban CT Met","5 years",60,{"v":1510000000,"d":"1.51E+09"},null,{"v":968000000,"d":"9.68E+08"},{"v":4380000000,"d":"4.38E+09"},"0.00e+00 - 6.71e+09",{"v":1840000000,"d":"1.84E+09"},{"$nulls":29},8,"HE Stack Emissions Rural CT Met",{"v":56800,"d":"5.68E+04"},{"v":110000,"d":"1.10E+05"},{"v":890000,"d":"8.90E+05"},{"v":1640000,"d":"1.64E+06"},{"v":173000,"d":"1.73E+05"},{"v":4170,"d":"4.17E+03"},{"v":1210,"d":"1.21E+03"},{"v":405,"d":"4.05E+02"},{"v":359448.125,"d":"3.59E+05"}]
[27,"HE","4_Handling Asbestos-Containing Building Materials During Firefighting or Other Disaster Response Activities","Handling Asbestos-Containing Building Materials During Firefighting or Other Disaster Response Activities","Fugitive Emissions","Urban","CT Met","HE Fugitive Emissions Urban CT Met","5 years",100,{"v":452000000,"d":"4.52E+08"},null,{"v":230000000,"d":"2.30E+08"},{"v":1420000000,"d":"1.42E+09"},"0.00e+00 - 2.27e+09",{"v":616000000,"d":"6.16E+08"},{"$nulls":29},6,"HE Stack Emissions Rural HE Met",{"v":121000,"d":"1.21E+05"},{"v":178000,"d":"1.78E+05"},{"v":1850000,"d":"1.85E+06"},{"v":2750000,"d":"2.75E+06"},{"v":176000,"d":"1.76E+05"},{"v":3790,"d":"3.79E+03"},{"v":1260,"d":"1.26E+03"},{"v":483,"d":"4.83E+02"},{"v":635066.625,"d":"6.35E+05"}]
[28,"HE","4_Handling Asbestos-Containing Building Materials During Firefighting or Other Disaster Response Activities","Handling Asbestos-Containing Building Materials During Firefighting or Other Disaster Response Activities","Fugitive Emissions","Urban","CT Met","HE Fugitive Emissions Urban CT Met","5 years",1000,{"v":12800000,"d":"1.28E+07"},null,{"v":1070000,"d":"1.07E+06"},{"v":58700000,"d":"5.87E+07"},"0.00e+00 - 4.92e+08",{"v":44300000,"d":"4.43E+07"},{"$nulls":29},7,"HE Stack Emissions Urban CT Met",{"v":61800,"d":"6.18E+04"},{"v":206000,"d":"2.06E+05"},{"v":1180000,"d":"1.18E+06"},{"v":1840000,"d":"1.84E+06"},{"v":163000,"d":"1.63E+05"},{"v":4060,"d":"4.06E+03"},{"v":1270,"d":"1.27E+03"},{"v":440,"d":"4.40E+02"},{"v":432071.25,"d":"4.32E+05"}]
[29,"HE","4_Handling Asbestos-Containing Building Materials During Firefighting or Other Disaster Response Activities","Handling Asbestos-Containing Building Materials During Firefighting or Other Disaster Response Activities","Fugitive Emissions","Urban","CT Met","HE Fugitive Emissions Urban CT Met","5 years",2500,{"v":414000,"d":"4.14E+05"},null,{"v":18100,"d":"1.81E+04"},{"v":1500000,"d":"1.50E+06"},"0.00e+00 - 2.70e+06",{"v":730000,"d":"7.30E+05"},{"$nulls":29},5,"HE Stack Emissions Urban HE Met",{"v":123000,"d":"1.23E+05"},{"v":268000,"d":"2.68E+05"},{"v":2100000,"d":"2.10E+06"},{"v":2870000,"d":"2.87E+06"},{"v":170000,"d":"1.70E+05"},{"v":3800,"d":"3.80E+03"},{"v":1320,"d":"1.32E+03"},{"v":504,"d":"5.04E+02"},{"v":692078,"d":"6.92E+05"}]
[30,"HE","4_Handling Asbestos-Containing Building Materials During Firefighting or Other Disaster Response Activities","Handling Asbestos-Containing Building Materials During Firefighting or Other Disaster Response Activities","Fugitive Emissions","Urban","CT Met","HE Fugitive Emissions Urban CT Met","5 years",5000,{"v":118000,"d":"1.18E+05"},null,{"v":1050,"d":"1.05E+03"},{"v":410000,"d":"4.10E+05"},"0.00e+00 - 7.37e+05",{"v":206000,"d":"2.06E+05"},{"$nulls":30},"Grand Total",{"v":35352845092.85714,"d":"3.54E+10"},{"v":14378984357.142857,"d":"1.44E+10"},{"v":3034675714.285714,"d":"3.03E+09"},{"v":812176428.5714285,"d":"8.12E+08"},{"v":24414232.14285714,"d":"2.44E+07"},{"v":903306.7857142857,"d":"9.03E+05"},{"v":300772.10714285716,"d":"3.01E+05"},{"v":109460.85714285714,"d":"1.09E+05"},{"v":6700551170.59375,"d":"6.70E+09"}]
[31,"HE","4_Handling Asbestos-Containing Building Materials During Firefighting or Other Disaster Response Activities","Handling Asbestos-Containing Building Materials During Firefighting or Other Disaster Response Activities","Fugitive Emissions","Urban","CT Met","HE Fugitive Emissions Urban CT Met","5 years",10000,{"v":33200,"d":"3.32E+04"},null,null,{"v":137000,"d":"1.37E+05"},"0.00e+00 - 2.64e+05",{"v":69000,"d":"6.90E+04"}]
[8,"CT","3_Handling Asbestos-Containing Building Materials During Firefighting or Other Disaster Response Activities","Handling Asbestos-Containing Building Materials During Firefighting or Other Disaster Response Activities","Fugitive Emissions","Rural","HE Met","CT Fugitive Emissions Rural HE Met","5 years",10,{"v":52300000,"d":"5.23E+07"},{"v":5240000,"d":"5.24E+06"},{"v":42400000,"d":"4.24E+07"},{"v":121000000,"d":"1.21E+08"},"7.07e+05 - 1.27e+08",{"v":44700000,"d":"4.47E+07"}]
[9,"CT","3_Handling Asbestos-Containing Building Materials During Firefighting or Other Disaster Response Activities","Handling Asbestos-Containing Building Materials During Firefighting or Other Disaster Response Activities","Fugitive Emissions","Rural","HE Met","CT Fugitive Emissions Rural HE Met","5 years",30,{"v":33700000,"d":"3.37E+07"},{"v":271000,"d":"2.71E+05"},{"v":18300000,"d":"1.83E+07"},{"v":101000000,"d":"1.01E+08"},"4.28e+04 - 1.05e+08",{"v":36600000,"d":"3.66E+07"},{"$nulls":30},"Average of DEPO |P10 f/m2","Column Labels"]
[10,"CT","3_Handling Asbestos-Containing Building Materials During Firefighting or Other Disaster Response Activities","Handling Asbestos-Containing Building Materials During Firefighting or Other Disaster Response Activities","Fugitive Emissions","Rural","HE Met","CT Fugitive Emissions Rural HE Met","5 years",60,{"v":7510000,"d":"7.51E+06"},{"v":47600,"d":"4.76E+04"},{"v":2750000,"d":"2.75E+06"},{"v":22600000,"d":"2.26E+07"},"2.79e+03 - 2.42e+07",{"v":8840000,"d":"8.84E+06"},{"$nulls":30},"Row Labels",10,30,60,100,1000,2500,5000,10000,"Grand Total"]
[11,"CT","3_Handling Asbestos-Containing Building Materials During Firefighting or Other Disaster Response Activities","Handling Asbestos-Containing Building Materials During Firefighting or Other Disaster Response Activities","Fugitive Emissions","Rural","HE Met","CT Fugitive Emissions Rural HE Met","5 years",100,{"v":2040000,"d":"2.04E+06"},{"v":7400,"d":"7.40E+03"},{"v":693000,"d":"6.93E+05"},{"v":6270000,"d":"6.27E+06"},"2.45e+02 - 6.86e+06",{"v":2520000,"d":"2.52E+06"},{"$nulls":29},4,"CT Fugitive Emissions Rural CT Met",{"v":54767393.333333336,"d":"5.48E+07"},{"v":34600000,"d":"3.46E+07"},{"v":6630000,"d":"6.63E+06"},{"v":1682000,"d":"1.68E+06"},{"v":14965,"d":"1.50E+04"},{"v":1817.5,"d":"1.82E+03"},{"v":605.5,"d":"6.06E+02"},{"v":198.9,"d":"1.99E+02"},{"v":14715373.752941176,"d":"1.47E+07"}]
[12,"CT","3_Handling Asbestos-Containing Building Materials During Firefighting or Other Disaster Response Activities","Handling Asbestos-Containing Building Materials During Firefighting or Other Disaster Response Activities","Fugitive Emissions","Rural","HE Met","CT Fugitive Emissions Rural HE Met","5 years",1000,{"v":67800,"d":"6.78E+04"},null,{"v":10900,"d":"1.09E+04"},{"v":259000,"d":"2.59E+05"},"0.00e+00 - 2.87e+06",{"v":247000,"d":"2.47E+05"},{"$nulls":29},2,"CT Fugitive Emissions Rural HE Met",{"v":82646666.66666667,"d":"8.26E+07"},{"v":21057000,"d":"2.11E+07"},{"v":3559200,"d":"3.56E+06"},{"v":890133.3333333334,"d":"8.90E+05"},{"v":16090,"d":"1.61E+04"},{"v":1667,"d":"1.67E+03"},{"v":622.5,"d":"6.23E+02"},{"v":241,"d":"2.41E+02"},{"v":16224812.05,"d":"1.62E+07"}]
[13,"CT","3_Handling Asbestos-Containing Building Materials During Firefighting or Other Disaster Response Activities","Handling Asbestos-Containing Building Materials During Firefighting or Other Disaster Response Activities","Fugitive Emissions","Rural","HE Met","CT Fugitive Emissions Rural HE Met","5 years",2500,{"v":2330,"d":"2.33E+03"},null,{"v":455,"d":"4.55E+02"},{"v":7720,"d":"7.72E+03"},"0.00e+00 - 8.47e+03",{"v":3240,"d":"3.24E+03"},{"$nulls":29},3,"CT Fugitive Emissions Urban CT Met",{"v":56174666.666666664,"d":"5.62E+07"},{"v":32550000,"d":"3.26E+07"},{"v":6495000,"d":"6.50E+06"},{"v":1671000,"d":"1.67E+06"},{"v":14480,"d":"1.45E+04"},{"v":1845.5,"d":"1.85E+03"},{"v":642,"d":"6.42E+02"},{"v":218.15,"d":"2.18E+02"},{"v":14705315.95882353,"d":"1.47E+07"}]
[14,"CT","3_Handling Asbestos-Containing Building Materials During Firefighting or Other Disaster Response Activities","Handling Asbestos-Containing Building Materials During Firefighting or Other Disaster Response Activities","Fugitive Emissions","Rural","HE Met","CT Fugitive Emissions Rural HE Met","5 years",5000,{"v":778,"d":"7.78E+02"},null,{"v":147,"d":"1.47E+02"},{"v":2720,"d":"2.72E+03"},"0.00e+00 - 3.09e+03",{"v":1040,"d":"1.04E+03"},{"$nulls":29},1,"CT Fugitive Emissions Urban HE Met",{"v":83633333.33333333,"d":"8.36E+07"},{"v":20828333.333333332,"d":"2.08E+07"},{"v":3536233.3333333335,"d":"3.54E+06"},{"v":890133.3333333334,"d":"8.90E+05"},{"v":16010,"d":"1.60E+04"},{"v":1688.5,"d":"1.69E+03"},{"v":656,"d":"6.56E+02"},{"v":247,"d":"2.47E+02"},{"v":16335065.15,"d":"1.63E+07"}]
[15,"CT","3_Handling Asbestos-Containing Building Materials During Firefighting or Other Disaster Response Activities","Handling Asbestos-Containing Building Materials During Firefighting or Other Disaster Response Activities","Fugitive Emissions","Rural","HE Met","CT Fugitive Emissions Rural HE Met","5 years",10000,{"v":339,"d":"3.39E+02"},null,{"v":25.2,"d":"2.52E+01"},{"v":1250,"d":"1.25E+03"},"0.00e+00 - 1.59e+03",{"v":491,"d":"4.91E+02"},{"$nulls":30},"HE Fugitive Emissions Rural CT Met",{"v":50950145000,"d":"5.10E+10"},{"v":31265000000,"d":"3.13E+10"},{"v":6046000000,"d":"6.05E+09"},{"v":1557500000,"d":"1.56E+09"},{"v":13355000,"d":"1.34E+07"},{"v":1744500,"d":"1.74E+06"},{"v":586250,"d":"5.86E+05"},{"v":191100,"d":"1.91E+05"},{"v":13565834629.411764,"d":"1.36E+10"}]
[24,"CT","3_Handling Asbestos-Containing Building Materials During Firefighting or Other Disaster Response Activities","Handling Asbestos-Containing Building Materials During Firefighting or Other Disaster Response Activities","Fugitive Emissions","Urban","HE Met","CT Fugitive Emissions Urban HE Met","5 years",10,{"v":52500000,"d":"5.25E+07"},{"v":5400000,"d":"5.40E+06"},{"v":42400000,"d":"4.24E+07"},{"v":121000000,"d":"1.21E+08"},"7.86e+05 - 1.27e+08",{"v":44500000,"d":"4.45E+07"},{"$nulls":30},"HE Fugitive Emissions Rural HE Met",{"v":69716666666.66667,"d":"6.97E+10"},{"v":17614766666.666668,"d":"1.76E+10"},{"v":3030840000,"d":"3.03E+09"},{"v":762160000,"d":"7.62E+08"},{"v":13830000,"d":"1.38E+07"},{"v":1435500,"d":"1.44E+06"},{"v":539450,"d":"5.39E+05"},{"v":209800,"d":"2.10E+05"},{"v":13670266475,"d":"1.37E+10"}]
[25,"CT","3_Handling Asbestos-Containing Building Materials During Firefighting or Other Disaster Response Activities","Handling Asbestos-Containing Building Materials During Firefighting or Other Disaster Response Activities","Fugitive Emissions","Urban","HE Met","CT Fugitive Emissions Urban HE Met","5 years",30,{"v":33600000,"d":"3.36E+07"},{"v":285000,"d":"2.85E+05"},{"v":18300000,"d":"1.83E+07"},{"v":101000000,"d":"1.01E+08"},"4.31e+04 - 1.05e+08",{"v":36500000,"d":"3.65E+07"},{"$nulls":30},"HE Fugitive Emissions Urban CT Met",{"v":52101596666.666664,"d":"5.21E+10"},{"v":29455000000,"d":"2.95E+10"},{"v":5902000000,"d":"5.90E+09"},{"v":1543000000,"d":"1.54E+09"},{"v":13015000,"d":"1.30E+07"},{"v":1779000,"d":"1.78E+06"},{"v":626400,"d":"6.26E+05"},{"v":212650,"d":"2.13E+05"},{"v":13537415064.705883,"d":"1.35E+10"}]
[26,"CT","3_Handling Asbestos-Containing Building Materials During Firefighting or Other Disaster Response Activities","Handling Asbestos-Containing Building Materials During Firefighting or Other Disaster Response Activities","Fugitive Emissions","Urban","HE Met","CT Fugitive Emissions Urban HE Met","5 years",60,{"v":7470000,"d":"7.47E+06"},{"v":48700,"d":"4.87E+04"},{"v":2840000,"d":"2.84E+06"},{"v":22600000,"d":"2.26E+07"},"2.79e+03 - 2.42e+07",{"v":8740000,"d":"8.74E+06"},{"$nulls":30},"HE Fugitive Emissions Urban HE Met",{"v":70193333333.33333,"d":"7.02E+10"},{"v":17352300000,"d":"1.74E+10"},{"v":2995910000,"d":"3.00E+09"},{"v":756160000,"d":"7.56E+08"},{"v":13640000,"d":"1.36E+07"},{"v":1447500,"d":"1.45E+06"},{"v":562900,"d":"5.63E+05"},{"v":213900,"d":"2.14E+05"},{"v":13696241930,"d":"1.37E+10"}]
[27,"CT","3_Handling Asbestos-Containing Building Materials During Firefighting or Other Disaster Response Activities","Handling Asbestos-Containing Building Materials During Firefighting or Other Disaster Response Activities","Fugitive Emissions","Urban","HE Met","CT Fugitive Emissions Urban HE Met","5 years",100,{"v":2020000,"d":"2.02E+06"},{"v":7400,"d":"7.40E+03"},{"v":778000,"d":"7.78E+05"},{"v":6270000,"d":"6.27E+06"},"2.45e+02 - 6.86e+06",{"v":2480000,"d":"2.48E+06"},{"$nulls":29},8,"HE Stack Emissions Rural CT Met",{"v":31400,"d":"3.14E+04"},{"v":92200,"d":"9.22E+04"},{"v":588000,"d":"5.88E+05"},{"v":1050000,"d":"1.05E+06"},{"v":31300,"d":"3.13E+04"},{"v":2540,"d":"2.54E+03"},{"v":789,"d":"7.89E+02"},{"v":266,"d":"2.66E+02"},{"v":224561.875,"d":"2.25E+05"}]
[28,"CT","3_Handling Asbestos-Containing Building Materials During Firefighting or Other Disaster Response Activities","Handling Asbestos-Containing Building Materials During Firefighting or Other Disaster Response Activities","Fugitive Emissions","Urban","HE Met","CT Fugitive Emissions Urban HE Met","5 years",1000,{"v":67200,"d":"6.72E+04"},null,{"v":10900,"d":"1.09E+04"},{"v":246000,"d":"2.46E+05"},"0.00e+00 - 2.87e+06",{"v":242000,"d":"2.42E+05"},{"$nulls":29},6,"HE Stack Emissions Rural HE Met",{"v":91500,"d":"9.15E+04"},{"v":145000,"d":"1.45E+05"},{"v":1330000,"d":"1.33E+06"},{"v":1790000,"d":"1.79E+06"},{"v":23400,"d":"2.34E+04"},{"v":2020,"d":"2.02E+03"},{"v":729,"d":"7.29E+02"},{"v":281,"d":"2.81E+02"},{"v":422866.25,"d":"4.23E+05"}]
[29,"CT","3_Handling Asbestos-Containing Building Materials During Firefighting or Other Disaster Response Activities","Handling Asbestos-Containing Building Materials During Firefighting or Other Disaster Response Activities","Fugitive Emissions","Urban","HE Met","CT Fugitive Emissions Urban HE Met","5 years",2500,{"v":2310,"d":"2.31E+03"},null,{"v":455,"d":"4.55E+02"},{"v":7720,"d":"7.72E+03"},"0.00e+00 - 8.47e+03",{"v":3200,"d":"3.20E+03"},{"$nulls":29},7,"HE Stack Emissions Urban CT Met",{"v":36100,"d":"3.61E+04"},{"v":193000,"d":"1.93E+05"},{"v":833000,"d":"8.33E+05"},{"v":1230000,"d":"1.23E+06"},{"v":28300,"d":"2.83E+04"},{"v":2590,"d":"2.59E+03"},{"v":862,"d":"8.62E+02"},{"v":298,"d":"2.98E+02"},{"v":290518.75,"d":"2.91E+05"}]
[30,"CT","3_Handling Asbestos-Containing Building Materials During Firefighting or Other Disaster Response Activities","Handling Asbestos-Containing Building Materials During Firefighting or Other Disaster Response Activities","Fugitive Emissions","Urban","HE Met","CT Fugitive Emissions Urban HE Met","5 years",5000,{"v":776,"d":"7.76E+02"},null,{"v":147,"d":"1.47E+02"},{"v":2720,"d":"2.72E+03"},"0.00e+00 - 3.09e+03",{"v":1040,"d":"1.04E+03"},{"$nulls":29},5,"HE Stack Emissions Urban HE Met",{"v":94600,"d":"9.46E+04"},{"v":222000,"d":"2.22E+05"},{"v":1490000,"d":"1.49E+06"},{"v":1840000,"d":"1.84E+06"},{"v":22700,"d":"2.27E+04"},{"v":2070,"d":"2.07E+03"},{"v":772,"d":"7.72E+02"},{"v":293,"d":"2.93E+02"},{"v":459054.375,"d":"4.59E+05"}]
[31,"CT","3_Handling Asbestos-Containing Building Materials During Firefighting or Other Disaster Response Activities","Handling Asbestos-Containing Building Materials During Firefighting or Other Disaster Response Activities","Fugitive Emissions","Urban","HE Met","CT Fugitive Emissions Urban HE Met","5 years",10000,{"v":342,"d":"3.42E+02"},null,{"v":25.2,"d":"2.52E+01"},{"v":1250,"d":"1.25E+03"},"0.00e+00 - 1.59e+03",{"v":492,"d":"4.92E+02"},{"$nulls":30},"Grand Total",{"v":26061326599.285713,"d":"2.61E+10"},{"v":9441742008.333334,"d":"9.44E+09"},{"v":1751167804.1666667,"d":"1.75E+09"},{"v":448913200,"d":"4.49E+08"},{"v":5395439.5,"d":"5.40E+06"},{"v":641812.85,"d":"6.42E+05"},{"v":231910.2,"d":"2.32E+05"},{"v":82892.405,"d":"8.29E+04"},{"v":5606932989.883889,"d":"5.61E+09"}]
[8,"CT","3_Handling Asbestos-Containing Building Materials During Firefighting or Other Disaster Response Activities","Handling Asbestos-Containing Building Materials During Firefighting or Other Disaster Response Activities","Fugitive Emissions","Rural","CT Met","CT Fugitive Emissions Rural CT Met","5 years",10,{"v":24100000,"d":"2.41E+07"},{"v":2180,"d":"2.18E+03"},{"v":11800000,"d":"1.18E+07"},{"v":90900000,"d":"9.09E+07"},"0.00e+00 - 1.17e+08",{"v":34000000,"d":"3.40E+07"}]
[9,"CT","3_Handling Asbestos-Containing Building Materials During Firefighting or Other Disaster Response Activities","Handling Asbestos-Containing Building Materials During Firefighting or Other Disaster Response Activities","Fugitive Emissions","Rural","CT Met","CT Fugitive Emissions Rural CT Met","5 years",30,{"v":28200000,"d":"2.82E+07"},null,{"v":17200000,"d":"1.72E+07"},{"v":83200000,"d":"8.32E+07"},"0.00e+00 - 9.01e+07",{"v":31400000,"d":"3.14E+07"}]
[10,"CT","3_Handling Asbestos-Containing Building Materials During Firefighting or Other Disaster Response Activities","Handling Asbestos-Containing Building Materials During Firefighting or Other Disaster Response Activities","Fugitive Emissions","Rural","CT Met","CT Fugitive Emissions Rural CT Met","5 years",60,{"v":8210000,"d":"8.21E+06"},null,{"v":2930000,"d":"2.93E+06"},{"v":28100000,"d":"2.81E+07"},"0.00e+00 - 3.74e+07",{"v":11100000,"d":"1.11E+07"},{"$nulls":30},"Average of DEPO | P95 f/m2","Column Labels"]
[11,"CT","3_Handling Asbestos-Containing Building Materials During Firefighting or Other Disaster Response Activities","Handling Asbestos-Containing Building Materials During Firefighting or Other Disaster Response Activities","Fugitive Emissions","Rural","CT Met","CT Fugitive Emissions Rural CT Met","5 years",100,{"v":2410000,"d":"2.41E+06"},null,{"v":509000,"d":"5.09E+05"},{"v":8870000,"d":"8.87E+06"},"0.00e+00 - 1.29e+07",{"v":3690000,"d":"3.69E+06"},{"$nulls":30},"Row Labels",10,30,60,100,1000,2500,5000,10000,"Grand Total"]
[12,"CT","3_Handling Asbestos-Containing Building Materials During Firefighting or Other Disaster Response Activities","Handling Asbestos-Containing Building Materials During Firefighting or Other Disaster Response Activities","Fugitive Emissions","Rural","CT Met","CT Fugitive Emissions Rural CT Met","5 years",1000,{"v":68400,"d":"6.84E+04"},null,{"v":815,"d":"8.15E+02"},{"v":279000,"d":"2.79E+05"},"0.00e+00 - 2.93e+06",{"v":256000,"d":"2.56E+05"},{"$nulls":29},4,"CT Fugitive Emissions Rural CT Met",{"v":113400000,"d":"1.13E+08"},{"v":81866666.66666667,"d":"8.19E+07"},{"v":23600000,"d":"2.36E+07"},{"v":7096666.666666667,"d":"7.10E+06"},{"v":321666.6666666667,"d":"3.22E+05"},{"v":7180,"d":"7.18E+03"},{"v":1983.3333333333333,"d":"1.98E+03"},{"v":615.3333333333334,"d":"6.15E+02"},{"v":28286847.333333332,"d":"2.83E+07"}]
[13,"CT","3_Handling Asbestos-Containing Building Materials During Firefighting or Other Disaster Response Activities","Handling Asbestos-Containing Building Materials During Firefighting or Other Disaster Response Activities","Fugitive Emissions","Rural","CT Met","CT Fugitive Emissions Rural CT Met","5 years",2500,{"v":2120,"d":"2.12E+03"},null,null,{"v":8710,"d":"8.71E+03"},"0.00e+00 - 1.72e+04",{"v":4460,"d":"4.46E+03"},{"$nulls":29},2,"CT Fugitive Emissions Rural HE Met",{"v":229333333.33333334,"d":"2.29E+08"},{"v":98666666.66666667,"d":"9.87E+07"},{"v":20733333.333333332,"d":"2.07E+07"},{"v":5666666.666666667,"d":"5.67E+06"},{"v":294000,"d":"2.94E+05"},{"v":6630,"d":"6.63E+03"},{"v":2213.3333333333335,"d":"2.21E+03"},{"v":956.3333333333334,"d":"9.56E+02"},{"v":44337974.958333336,"d":"4.43E+07"}]
[14,"CT","3_Handling Asbestos-Containing Building Materials During Firefighting or Other Disaster Response Activities","Handling Asbestos-Containing Building Materials During Firefighting or Other Disaster Response Activities","Fugitive Emissions","Rural","CT Met","CT Fugitive Emissions Rural CT Met","5 years",5000,{"v":493,"d":"4.93E+02"},null,null,{"v":2290,"d":"2.29E+03"},"0.00e+00 - 4.54e+03",{"v":1170,"d":"1.17E+03"},{"$nulls":29},3,"CT Fugitive Emissions Urban CT Met",{"v":122366666.66666667,"d":"1.22E+08"},{"v":75266666.66666667,"d":"7.53E+07"},{"v":20900000,"d":"2.09E+07"},{"v":6370000,"d":"6.37E+06"},{"v":327000,"d":"3.27E+05"},{"v":6626.666666666667,"d":"6.63E+03"},{"v":1910,"d":"1.91E+03"},{"v":650.3333333333334,"d":"6.50E+02"},{"v":28154940.041666668,"d":"2.82E+07"}]
[15,"CT","3_Handling Asbestos-Containing Building Materials During Firefighting or Other Disaster Response Activities","Handling Asbestos-Containing Building Materials During Firefighting or Other Disaster Response Activities","Fugitive Emissions","Rural","CT Met","CT Fugitive Emissions Rural CT Met","5 years",10000,{"v":127,"d":"1.27E+02"},null,null,{"v":646,"d":"6.46E+02"},"0.00e+00 - 1.42e+03",{"v":359,"d":"3.59E+02"},{"$nulls":29},1,"CT Fugitive Emissions Urban HE Met",{"v":231000000,"d":"2.31E+08"},{"v":97666666.66666667,"d":"9.77E+07"},{"v":20500000,"d":"2.05E+07"},{"v":5620000,"d":"5.62E+06"},{"v":287666.6666666667,"d":"2.88E+05"},{"v":6563.333333333333,"d":"6.56E+03"},{"v":2220,"d":"2.22E+03"},{"v":962,"d":"9.62E+02"},{"v":44385509.833333336,"d":"4.44E+07"}]
[24,"CT","3_Handling Asbestos-Containing Building Materials During Firefighting or Other Disaster Response Activities","Handling Asbestos-Containing Building Materials During Firefighting or Other Disaster Response Activities","Fugitive Emissions","Urban","CT Met","CT Fugitive Emissions Urban CT Met","5 years",10,{"v":30900000,"d":"3.09E+07"},{"v":24000,"d":"2.40E+04"},{"v":17600000,"d":"1.76E+07"},{"v":104000000,"d":"1.04E+08"},"1.29e-02 - 1.25e+08",{"v":37800000,"d":"3.78E+07"},{"$nulls":30},"HE Fugitive Emissions Rural CT Met",{"v":74500000000,"d":"7.45E+10"},{"v":51496666666.666664,"d":"5.15E+10"},{"v":13923333333.333334,"d":"1.39E+10"},{"v":4099000000,"d":"4.10E+09"},{"v":205800000,"d":"2.06E+08"},{"v":4231666.666666667,"d":"4.23E+06"},{"v":1197333.3333333333,"d":"1.20E+06"},{"v":387266.6666666667,"d":"3.87E+05"},{"v":18028827033.333332,"d":"1.80E+10"}]
[25,"CT","3_Handling Asbestos-Containing Building Materials During Firefighting or Other Disaster Response Activities","Handling Asbestos-Containing Building Materials During Firefighting or Other Disaster Response Activities","Fugitive Emissions","Urban","CT Met","CT Fugitive Emissions Urban CT Met","5 years",30,{"v":26400000,"d":"2.64E+07"},null,{"v":22000000,"d":"2.20E+07"},{"v":68900000,"d":"6.89E+07"},"0.00e+00 - 7.86e+07",{"v":25600000,"d":"2.56E+07"},{"$nulls":30},"HE Fugitive Emissions Rural HE Met",{"v":165066666666.66666,"d":"1.65E+11"},{"v":58900000000,"d":"5.89E+10"},{"v":12036666666.666666,"d":"1.20E+10"},{"v":3278000000,"d":"3.28E+09"},{"v":192533333.33333334,"d":"1.93E+08"},{"v":3679333.3333333335,"d":"3.68E+06"},{"v":1196333.3333333333,"d":"1.20E+06"},{"v":498000,"d":"4.98E+05"},{"v":29934905041.666668,"d":"2.99E+10"}]
[26,"CT","3_Handling Asbestos-Containing Building Materials During Firefighting or Other Disaster Response Activities","Handling Asbestos-Containing Building Materials During Firefighting or Other Disaster Response Activities","Fugitive Emissions","Urban","CT Met","CT Fugitive Emissions Urban CT Met","5 years",60,{"v":7550000,"d":"7.55E+06"},null,{"v":4840000,"d":"4.84E+06"},{"v":21900000,"d":"2.19E+07"},"0.00e+00 - 3.35e+07",{"v":9190000,"d":"9.19E+06"},{"$nulls":30},"HE Fugitive Emissions Urban CT Met",{"v":79600000000,"d":"7.96E+10"},{"v":49060000000,"d":"4.91E+10"},{"v":13040000000,"d":"1.30E+10"},{"v":3870000000,"d":"3.87E+09"},{"v":206566666.66666666,"d":"2.07E+08"},{"v":4039333.3333333335,"d":"4.04E+06"},{"v":1191000,"d":"1.19E+06"},{"v":407133.3333333333,"d":"4.07E+05"},{"v":18222775516.666668,"d":"1.82E+10"}]
[27,"CT","3_Handling Asbestos-Containing Building Materials During Firefighting or Other Disaster Response Activities","Handling Asbestos-Containing Building Materials During Firefighting or Other Disaster Response Activities","Fugitive Emissions","Urban","CT Met","CT Fugitive Emissions Urban CT Met","5 years",100,{"v":2260000,"d":"2.26E+06"},null,{"v":1150000,"d":"1.15E+06"},{"v":7100000,"d":"7.10E+06"},"0.00e+00 - 1.14e+07",{"v":3080000,"d":"3.08E+06"},{"$nulls":30},"HE Fugitive Emissions Urban HE Met",{"v":165933333333.33334,"d":"1.66E+11"},{"v":58166666666.666664,"d":"5.82E+10"},{"v":11880000000,"d":"1.19E+10"},{"v":3250000000,"d":"3.25E+09"},{"v":189866666.66666666,"d":"1.90E+08"},{"v":3649000,"d":"3.65E+06"},{"v":1208666.6666666667,"d":"1.21E+06"},{"v":501333.3333333333,"d":"5.01E+05"},{"v":29928153208.333332,"d":"2.99E+10"}]
[28,"CT","3_Handling Asbestos-Containing Building Materials During Firefighting or Other Disaster Response Activities","Handling Asbestos-Containing Building Materials During Firefighting or Other Disaster Response Activities","Fugitive Emissions","Urban","CT Met","CT Fugitive Emissions Urban CT Met","5 years",1000,{"v":63900,"d":"6.39E+04"},null,{"v":5340,"d":"5.34E+03"},{"v":293000,"d":"2.93E+05"},"0.00e+00 - 2.46e+06",{"v":221000,"d":"2.21E+05"},{"$nulls":29},8,"HE Stack Emissions Rural CT Met",{"v":90900,"d":"9.09E+04"},{"v":128000,"d":"1.28E+05"},{"v":1490000,"d":"1.49E+06"},{"v":2820000,"d":"2.82E+06"},{"v":650000,"d":"6.50E+05"},{"v":7540,"d":"7.54E+03"},{"v":2030,"d":"2.03E+03"},{"v":655,"d":"6.55E+02"},{"v":648640.625,"d":"6.49E+05"}]
[29,"CT","3_Handling Asbestos-Containing Building Materials During Firefighting or Other Disaster Response Activities","Handling Asbestos-Containing Building Materials During Firefighting or Other Disaster Response Activities","Fugitive Emissions","Urban","CT Met","CT Fugitive Emissions Urban CT Met","5 years",2500,{"v":2070,"d":"2.07E+03"},null,{"v":90.6,"d":"9.06E+01"},{"v":7500,"d":"7.50E+03"},"0.00e+00 - 1.35e+04",{"v":3650,"d":"3.65E+03"},{"$nulls":29},6,"HE Stack Emissions Rural HE Met",{"v":151000,"d":"1.51E+05"},{"v":238000,"d":"2.38E+05"},{"v":3170000,"d":"3.17E+06"},{"v":4620000,"d":"4.62E+06"},{"v":765000,"d":"7.65E+05"},{"v":5830,"d":"5.83E+03"},{"v":1830,"d":"1.83E+03"},{"v":737,"d":"7.37E+02"},{"v":1119049.625,"d":"1.12E+06"}]
[30,"CT","3_Handling Asbestos-Containing Building Materials During Firefighting or Other Disaster Response Activities","Handling Asbestos-Containing Building Materials During Firefighting or Other Disaster Response Activities","Fugitive Emissions","Urban","CT Met","CT Fugitive Emissions Urban CT Met","5 years",5000,{"v":590,"d":"5.90E+02"},null,{"v":5.23,"d":"5.23E+00"},{"v":2050,"d":"2.05E+03"},"0.00e+00 - 3.69e+03",{"v":1030,"d":"1.03E+03"},{"$nulls":29},7,"HE Stack Emissions Urban CT Met",{"v":95400,"d":"9.54E+04"},{"v":224000,"d":"2.24E+05"},{"v":1910000,"d":"1.91E+06"},{"v":3090000,"d":"3.09E+06"},{"v":626000,"d":"6.26E+05"},{"v":7190,"d":"7.19E+03"},{"v":2060,"d":"2.06E+03"},{"v":688,"d":"6.88E+02"},{"v":744417.25,"d":"7.44E+05"}]
[31,"CT","3_Handling Asbestos-Containing Building Materials During Firefighting or Other Disaster Response Activities","Handling Asbestos-Containing Building Materials During Firefighting or Other Disaster Response Activities","Fugitive Emissions","Urban","CT Met","CT Fugitive Emissions Urban CT Met","5 years",10000,{"v":166,"d":"1.66E+02"},null,null,{"v":684,"d":"6.84E+02"},"0.00e+00 - 1.32e+03",{"v":345,"d":"3.45E+02"},{"$nulls":29},5,"HE Stack Emissions Urban HE Met",{"v":151000,"d":"1.51E+05"},{"v":327000,"d":"3.27E+05"},{"v":3400000,"d":"3.40E+06"},{"v":4720000,"d":"4.72E+06"},{"v":763000,"d":"7.63E+05"},{"v":5830,"d":"5.83E+03"},{"v":1880,"d":"1.88E+03"},{"v":753,"d":"7.53E+02"},{"v":1171182.875,"d":"1.17E+06"}]
[8,"HE","2_Handling Asbestos-Containing Building Materials During Maintenance, Renovation, and Demolition Activities","Handling Asbestos-Containing Building Materials During Maintenance, Renovation, and Demolition Activities","Fugitive Emissions","Rural","HE Met",{"$f":"_xlfn.CONCAT(B66, \" \",E66,\" \",F66,\" \",G66)","v":"HE Fugitive Emissions Rural HE Met"},"5 years",10,{"v":20800000000,"d":"2.08E+10"},{"v":14100000000,"d":"1.41E+10"},{"v":16900000000,"d":"1.69E+10"},{"v":36000000000,"d":"3.60E+10"},"1.37e+10 - 3.88e+10",{"v":8250000000,"d":"8.25E+09"},{"$nulls":30},"Grand Total",{"v":52049599582.14286,"d":"5.20E+10"},{"v":23354689892.857143,"d":"2.34E+10"},{"v":5460970357.142858,"d":"5.46E+09"},{"v":1556446785.7142856,"d":"1.56E+09"},{"v":85385535.71428572,"d":"8.54E+07"},{"v":1675192.5,"d":"1.68E+06"},{"v":514742.14285714284,"d":"5.15E+05"},{"v":192628.0357142857,"d":"1.93E+05"},{"v":10313684339.53125,"d":"1.03E+10"}]
[9,"HE","2_Handling Asbestos-Containing Building Materials During Maintenance, Renovation, and Demolition Activities","Handling Asbestos-Containing Building Materials During Maintenance, Renovation, and Demolition Activities","Fugitive Emissions","Rural","HE Met","HE Fugitive Emissions Rural HE Met","5 years",30,{"v":7240000000,"d":"7.24E+09"},{"v":3890000000,"d":"3.89E+09"},{"v":6930000000,"d":"6.93E+09"},{"v":13600000000,"d":"1.36E+10"},"3.36e+09 - 1.40e+10",{"v":3080000000,"d":"3.08E+09"}]
[10,"HE","2_Handling Asbestos-Containing Building Materials During Maintenance, Renovation, and Demolition Activities","Handling Asbestos-Containing Building Materials During Maintenance, Renovation, and Demolition Activities","Fugitive Emissions","Rural","HE Met","HE Fugitive Emissions Rural HE Met","5 years",60,{"v":1420000000,"d":"1.42E+09"},{"v":623000000,"d":"6.23E+08"},{"v":1360000000,"d":"1.36E+09"},{"v":2800000000,"d":"2.80E+09"},"5.25e+08 - 2.82e+09",{"v":675000000,"d":"6.75E+08"}]
[11,"HE","2_Handling Asbestos-Containing Building Materials During Maintenance, Renovation, and Demolition Activities","Handling Asbestos-Containing Building Materials During Maintenance, Renovation, and Demolition Activities","Fugitive Emissions","Rural","HE Met","HE Fugitive Emissions Rural HE Met","5 years",100,{"v":369000000,"d":"3.69E+08"},{"v":155000000,"d":"1.55E+08"},{"v":346000000,"d":"3.46E+08"},{"v":754000000,"d":"7.54E+08"},"1.33e+08 - 7.71e+08",{"v":187000000,"d":"1.87E+08"},{"$nulls":31},10,30,60,100,1000,2500,5000,10000]
[12,"HE","2_Handling Asbestos-Containing Building Materials During Maintenance, Renovation, and Demolition Activities","Handling Asbestos-Containing Building Materials During Maintenance, Renovation, and Demolition Activities","Fugitive Emissions","Rural","HE Met","HE Fugitive Emissions Rural HE Met","5 years",1000,{"v":11200000,"d":"1.12E+07"},{"v":1860000,"d":"1.86E+06"},{"v":4830000,"d":"4.83E+06"},{"v":37800000,"d":"3.78E+07"},"1.02e+06 - 1.63e+08",{"v":21200000,"d":"2.12E+07"},{"$nulls":29},1,"Fugitive Emissions Urban HE Met",{"v":135166666.66666666,"d":"1.35E+08"},{"v":49633333.333333336,"d":"4.96E+07"},{"v":9936666.666666666,"d":"9.94E+06"},{"v":2626666.6666666665,"d":"2.63E+06"},{"v":82666.66666666667,"d":"8.27E+04"},{"v":3070,"d":"3.07E+03"},{"v":1075,"d":"1.08E+03"},{"v":427,"d":"4.27E+02"}]
[13,"HE","2_Handling Asbestos-Containing Building Materials During Maintenance, Renovation, and Demolition Activities","Handling Asbestos-Containing Building Materials During Maintenance, Renovation, and Demolition Activities","Fugitive Emissions","Rural","HE Met","HE Fugitive Emissions Rural HE Met","5 years",2500,{"v":426000,"d":"4.26E+05"},{"v":191000,"d":"1.91E+05"},{"v":384000,"d":"3.84E+05"},{"v":908000,"d":"9.08E+05"},"1.74e+05 - 1.13e+06",{"v":265000,"d":"2.65E+05"},{"$nulls":29},2,"Fugitive Emissions Rural HE Met",{"v":134100000,"d":"1.34E+08"},{"v":50400000,"d":"5.04E+07"},{"v":10096666.666666666,"d":"1.01E+07"},{"v":2656666.6666666665,"d":"2.66E+06"},{"v":83666.66666666667,"d":"8.37E+04"},{"v":3080,"d":"3.08E+03"},{"v":1047,"d":"1.05E+03"},{"v":416.3333333333333,"d":"4.16E+02"}]
[14,"HE","2_Handling Asbestos-Containing Building Materials During Maintenance, Renovation, and Demolition Activities","Handling Asbestos-Containing Building Materials During Maintenance, Renovation, and Demolition Activities","Fugitive Emissions","Rural","HE Met","HE Fugitive Emissions Rural HE Met","5 years",5000,{"v":145000,"d":"1.45E+05"},{"v":68900,"d":"6.89E+04"},{"v":130000,"d":"1.30E+05"},{"v":294000,"d":"2.94E+05"},"5.44e+04 - 3.94e+05",{"v":89300,"d":"8.93E+04"},{"$nulls":29},3,"Fugitive Emissions Urban CT Met",{"v":81333333.33333333,"d":"8.13E+07"},{"v":43800000,"d":"4.38E+07"},{"v":10496666.666666666,"d":"1.05E+07"},{"v":2946666.6666666665,"d":"2.95E+06"},{"v":85300,"d":"8.53E+04"},{"v":3020,"d":"3.02E+03"},{"v":965.6666666666666,"d":"9.66E+02"},{"v":322.3333333333333,"d":"3.22E+02"}]
[15,"HE","2_Handling Asbestos-Containing Building Materials During Maintenance, Renovation, and Demolition Activities","Handling Asbestos-Containing Building Materials During Maintenance, Renovation, and Demolition Activities","Fugitive Emissions","Rural","HE Met","HE Fugitive Emissions Rural HE Met","5 years",10000,{"v":56700,"d":"5.67E+04"},{"v":26600,"d":"2.66E+04"},{"v":50400,"d":"5.04E+04"},{"v":125000,"d":"1.25E+05"},"2.13e+04 - 1.61e+05",{"v":37600,"d":"3.76E+04"},{"$nulls":29},4,"Fugitive Emissions Rural CT Met",{"v":75833333.33333333,"d":"7.58E+07"},{"v":46433333.333333336,"d":"4.64E+07"},{"v":11103333.333333334,"d":"1.11E+07"},{"v":3050000,"d":"3.05E+06"},{"v":87200,"d":"8.72E+04"},{"v":3086.6666666666665,"d":"3.09E+03"},{"v":898.6666666666666,"d":"8.99E+02"},{"v":291.6666666666667,"d":"2.92E+02"}]
[24,"HE","2_Handling Asbestos-Containing Building Materials During Maintenance, Renovation, and Demolition Activities","Handling Asbestos-Containing Building Materials During Maintenance, Renovation, and Demolition Activities","Fugitive Emissions","Urban","HE Met","HE Fugitive Emissions Urban HE Met","5 years",10,{"v":21100000000,"d":"2.11E+10"},{"v":14500000000,"d":"1.45E+10"},{"v":17400000000,"d":"1.74E+10"},{"v":36600000000,"d":"3.66E+10"},"1.40e+10 - 3.92e+10",{"v":8260000000,"d":"8.26E+09"},{"$nulls":29},5,"Stack Emissions Urban HE Met",{"v":123000,"d":"1.23E+05"},{"v":268000,"d":"2.68E+05"},{"v":2100000,"d":"2.10E+06"},{"v":2870000,"d":"2.87E+06"},{"v":170000,"d":"1.70E+05"},{"v":3800,"d":"3.80E+03"},{"v":1320,"d":"1.32E+03"},{"v":504,"d":"5.04E+02"}]
[25,"HE","2_Handling Asbestos-Containing Building Materials During Maintenance, Renovation, and Demolition Activities","Handling Asbestos-Containing Building Materials During Maintenance, Renovation, and Demolition Activities","Fugitive Emissions","Urban","HE Met","HE Fugitive Emissions Urban HE Met","5 years",30,{"v":7100000000,"d":"7.10E+09"},{"v":3900000000,"d":"3.90E+09"},{"v":6600000000,"d":"6.60E+09"},{"v":13400000000,"d":"1.34E+10"},"3.37e+09 - 1.35e+10",{"v":2990000000,"d":"2.99E+09"},{"$nulls":29},6,"Stack Emissions Rural HE Met",{"v":121000,"d":"1.21E+05"},{"v":178000,"d":"1.78E+05"},{"v":1850000,"d":"1.85E+06"},{"v":2750000,"d":"2.75E+06"},{"v":176000,"d":"1.76E+05"},{"v":3790,"d":"3.79E+03"},{"v":1260,"d":"1.26E+03"},{"v":483,"d":"4.83E+02"}]
[26,"HE","2_Handling Asbestos-Containing Building Materials During Maintenance, Renovation, and Demolition Activities","Handling Asbestos-Containing Building Materials During Maintenance, Renovation, and Demolition Activities","Fugitive Emissions","Urban","HE Met","HE Fugitive Emissions Urban HE Met","5 years",60,{"v":1390000000,"d":"1.39E+09"},{"v":628000000,"d":"6.28E+08"},{"v":1320000000,"d":"1.32E+09"},{"v":2730000000,"d":"2.73E+09"},"5.29e+08 - 2.78e+09",{"v":655000000,"d":"6.55E+08"},{"$nulls":29},7,"Stack Emissions Urban CT Met",{"v":61800,"d":"6.18E+04"},{"v":206000,"d":"2.06E+05"},{"v":1180000,"d":"1.18E+06"},{"v":1840000,"d":"1.84E+06"},{"v":163000,"d":"1.63E+05"},{"v":4060,"d":"4.06E+03"},{"v":1270,"d":"1.27E+03"},{"v":440,"d":"4.40E+02"}]
[27,"HE","2_Handling Asbestos-Containing Building Materials During Maintenance, Renovation, and Demolition Activities","Handling Asbestos-Containing Building Materials During Maintenance, Renovation, and Demolition Activities","Fugitive Emissions","Urban","HE Met","HE Fugitive Emissions Urban HE Met","5 years",100,{"v":365000000,"d":"3.65E+08"},{"v":157000000,"d":"1.57E+08"},{"v":338000000,"d":"3.38E+08"},{"v":740000000,"d":"7.40E+08"},"1.35e+08 - 7.60e+08",{"v":182000000,"d":"1.82E+08"},{"$nulls":29},8,"Stack Emissions Rural CT Met",{"v":56800,"d":"5.68E+04"},{"v":110000,"d":"1.10E+05"},{"v":890000,"d":"8.90E+05"},{"v":1640000,"d":"1.64E+06"},{"v":173000,"d":"1.73E+05"},{"v":4170,"d":"4.17E+03"},{"v":1210,"d":"1.21E+03"},{"v":405,"d":"4.05E+02"}]
[28,"HE","2_Handling Asbestos-Containing Building Materials During Maintenance, Renovation, and Demolition Activities","Handling Asbestos-Containing Building Materials During Maintenance, Renovation, and Demolition Activities","Fugitive Emissions","Urban","HE Met","HE Fugitive Emissions Urban HE Met","5 years",1000,{"v":11200000,"d":"1.12E+07"},{"v":1880000,"d":"1.88E+06"},{"v":4760000,"d":"4.76E+06"},{"v":37500000,"d":"3.75E+07"},"1.01e+06 - 1.65e+08",{"v":21200000,"d":"2.12E+07"}]
[29,"HE","2_Handling Asbestos-Containing Building Materials During Maintenance, Renovation, and Demolition Activities","Handling Asbestos-Containing Building Materials During Maintenance, Renovation, and Demolition Activities","Fugitive Emissions","Urban","HE Met","HE Fugitive Emissions Urban HE Met","5 years",2500,{"v":426000,"d":"4.26E+05"},{"v":195000,"d":"1.95E+05"},{"v":393000,"d":"3.93E+05"},{"v":877000,"d":"8.77E+05"},"1.64e+05 - 1.11e+06",{"v":255000,"d":"2.55E+05"}]
[30,"HE","2_Handling Asbestos-Containing Building Materials During Maintenance, Renovation, and Demolition Activities","Handling Asbestos-Containing Building Materials During Maintenance, Renovation, and Demolition Activities","Fugitive Emissions","Urban","HE Met","HE Fugitive Emissions Urban HE Met","5 years",5000,{"v":150000,"d":"1.50E+05"},{"v":75800,"d":"7.58E+04"},{"v":141000,"d":"1.41E+05"},{"v":291000,"d":"2.91E+05"},"5.53e+04 - 3.97e+05",{"v":87500,"d":"8.75E+04"}]
[31,"HE","2_Handling Asbestos-Containing Building Materials During Maintenance, Renovation, and Demolition Activities","Handling Asbestos-Containing Building Materials During Maintenance, Renovation, and Demolition Activities","Fugitive Emissions","Urban","HE Met","HE Fugitive Emissions Urban HE Met","5 years",10000,{"v":58500,"d":"5.85E+04"},{"v":27800,"d":"2.78E+04"},{"v":51600,"d":"5.16E+04"},{"v":125000,"d":"1.25E+05"},"2.17e+04 - 1.67e+05",{"v":38100,"d":"3.81E+04"}]
[8,"HE","2_Handling Asbestos-Containing Building Materials During Maintenance, Renovation, and Demolition Activities","Handling Asbestos-Containing Building Materials During Maintenance, Renovation, and Demolition Activities","Fugitive Emissions","Rural","CT Met","HE Fugitive Emissions Rural CT Met","5 years",10,{"v":11500000000,"d":"1.15E+10"},{"v":6850000000,"d":"6.85E+09"},{"v":11700000000,"d":"1.17E+10"},{"v":16300000000,"d":"1.63E+10"},"5.39e+09 - 1.74e+10",{"v":3400000000,"d":"3.40E+09"}]
[9,"HE","2_Handling Asbestos-Containing Building Materials During Maintenance, Renovation, and Demolition Activities","Handling Asbestos-Containing Building Materials During Maintenance, Renovation, and Demolition Activities","Fugitive Emissions","Rural","CT Met","HE Fugitive Emissions Rural CT Met","5 years",30,{"v":6870000000,"d":"6.87E+09"},{"v":3330000000,"d":"3.33E+09"},{"v":7660000000,"d":"7.66E+09"},{"v":9890000000,"d":"9.89E+09"},"1.60e+09 - 1.01e+10",{"v":2490000000,"d":"2.49E+09"}]
[10,"HE","2_Handling Asbestos-Containing Building Materials During Maintenance, Renovation, and Demolition Activities","Handling Asbestos-Containing Building Materials During Maintenance, Renovation, and Demolition Activities","Fugitive Emissions","Rural","CT Met","HE Fugitive Emissions Rural CT Met","5 years",60,{"v":1580000000,"d":"1.58E+09"},{"v":592000000,"d":"5.92E+08"},{"v":1470000000,"d":"1.47E+09"},{"v":2550000000,"d":"2.55E+09"},"2.27e+08 - 2.59e+09",{"v":801000000,"d":"8.01E+08"}]
[11,"HE","2_Handling Asbestos-Containing Building Materials During Maintenance, Renovation, and Demolition Activities","Handling Asbestos-Containing Building Materials During Maintenance, Renovation, and Demolition Activities","Fugitive Emissions","Rural","CT Met","HE Fugitive Emissions Rural CT Met","5 years",100,{"v":430000000,"d":"4.30E+08"},{"v":145000000,"d":"1.45E+08"},{"v":385000000,"d":"3.85E+08"},{"v":747000000,"d":"7.47E+08"},"5.16e+07 - 7.96e+08",{"v":249000000,"d":"2.49E+08"}]
[12,"HE","2_Handling Asbestos-Containing Building Materials During Maintenance, Renovation, and Demolition Activities","Handling Asbestos-Containing Building Materials During Maintenance, Renovation, and Demolition Activities","Fugitive Emissions","Rural","CT Met","HE Fugitive Emissions Rural CT Met","5 years",1000,{"v":12000000,"d":"1.20E+07"},{"v":1510000,"d":"1.51E+06"},{"v":5150000,"d":"5.15E+06"},{"v":45600000,"d":"4.56E+07"},"3.90e+05 - 3.46e+08",{"v":27000000,"d":"2.70E+07"}]
[13,"HE","2_Handling Asbestos-Containing Building Materials During Maintenance, Renovation, and Demolition Activities","Handling Asbestos-Containing Building Materials During Maintenance, Renovation, and Demolition Activities","Fugitive Emissions","Rural","CT Met","HE Fugitive Emissions Rural CT Met","5 years",2500,{"v":444000,"d":"4.44E+05"},{"v":129000,"d":"1.29E+05"},{"v":443000,"d":"4.43E+05"},{"v":755000,"d":"7.55E+05"},"1.05e+05 - 8.06e+05",{"v":219000,"d":"2.19E+05"}]
[14,"HE","2_Handling Asbestos-Containing Building Materials During Maintenance, Renovation, and Demolition Activities","Handling Asbestos-Containing Building Materials During Maintenance, Renovation, and Demolition Activities","Fugitive Emissions","Rural","CT Met","HE Fugitive Emissions Rural CT Met","5 years",5000,{"v":133000,"d":"1.33E+05"},{"v":42500,"d":"4.25E+04"},{"v":145000,"d":"1.45E+05"},{"v":214000,"d":"2.14E+05"},"3.42e+04 - 2.15e+05",{"v":60400,"d":"6.04E+04"}]
[15,"HE","2_Handling Asbestos-Containing Building Materials During Maintenance, Renovation, and Demolition Activities","Handling Asbestos-Containing Building Materials During Maintenance, Renovation, and Demolition Activities","Fugitive Emissions","Rural","CT Met","HE Fugitive Emissions Rural CT Met","5 years",10000,{"v":44600,"d":"4.46E+04"},{"v":14200,"d":"1.42E+04"},{"v":46900,"d":"4.69E+04"},{"v":68800,"d":"6.88E+04"},"9.05e+03 - 7.30e+04",{"v":21400,"d":"2.14E+04"}]
[24,"HE","2_Handling Asbestos-Containing Building Materials During Maintenance, Renovation, and Demolition Activities","Handling Asbestos-Containing Building Materials During Maintenance, Renovation, and Demolition Activities","Fugitive Emissions","Urban","CT Met","HE Fugitive Emissions Urban CT Met","5 years",10,{"v":12200000000,"d":"1.22E+10"},{"v":7300000000,"d":"7.30E+09"},{"v":12400000000,"d":"1.24E+10"},{"v":17000000000,"d":"1.70E+10"},"5.95e+09 - 1.76e+10",{"v":3500000000,"d":"3.50E+09"}]
[25,"HE","2_Handling Asbestos-Containing Building Materials During Maintenance, Renovation, and Demolition Activities","Handling Asbestos-Containing Building Materials During Maintenance, Renovation, and Demolition Activities","Fugitive Emissions","Urban","CT Met","HE Fugitive Emissions Urban CT Met","5 years",30,{"v":6440000000,"d":"6.44E+09"},{"v":3110000000,"d":"3.11E+09"},{"v":6650000000,"d":"6.65E+09"},{"v":9380000000,"d":"9.38E+09"},"1.71e+09 - 9.52e+09",{"v":2350000000,"d":"2.35E+09"}]
[26,"HE","2_Handling Asbestos-Containing Building Materials During Maintenance, Renovation, and Demolition Activities","Handling Asbestos-Containing Building Materials During Maintenance, Renovation, and Demolition Activities","Fugitive Emissions","Urban","CT Met","HE Fugitive Emissions Urban CT Met","5 years",60,{"v":1510000000,"d":"1.51E+09"},{"v":604000000,"d":"6.04E+08"},{"v":1420000000,"d":"1.42E+09"},{"v":2440000000,"d":"2.44E+09"},"2.50e+08 - 2.59e+09",{"v":746000000,"d":"7.46E+08"}]
[27,"HE","2_Handling Asbestos-Containing Building Materials During Maintenance, Renovation, and Demolition Activities","Handling Asbestos-Containing Building Materials During Maintenance, Renovation, and Demolition Activities","Fugitive Emissions","Urban","CT Met","HE Fugitive Emissions Urban CT Met","5 years",100,{"v":418000000,"d":"4.18E+08"},{"v":146000000,"d":"1.46E+08"},{"v":383000000,"d":"3.83E+08"},{"v":720000000,"d":"7.20E+08"},"5.54e+07 - 7.93e+08",{"v":233000000,"d":"2.33E+08"}]
[28,"HE","2_Handling Asbestos-Containing Building Materials During Maintenance, Renovation, and Demolition Activities","Handling Asbestos-Containing Building Materials During Maintenance, Renovation, and Demolition Activities","Fugitive Emissions","Urban","CT Met","HE Fugitive Emissions Urban CT Met","5 years",1000,{"v":12000000,"d":"1.20E+07"},{"v":1430000,"d":"1.43E+06"},{"v":5090000,"d":"5.09E+06"},{"v":46000000,"d":"4.60E+07"},"4.11e+05 - 3.44e+08",{"v":26900000,"d":"2.69E+07"}]
[29,"HE","2_Handling Asbestos-Containing Building Materials During Maintenance, Renovation, and Demolition Activities","Handling Asbestos-Containing Building Materials During Maintenance, Renovation, and Demolition Activities","Fugitive Emissions","Urban","CT Met","HE Fugitive Emissions Urban CT Met","5 years",2500,{"v":428000,"d":"4.28E+05"},{"v":128000,"d":"1.28E+05"},{"v":390000,"d":"3.90E+05"},{"v":718000,"d":"7.18E+05"},"1.07e+05 - 7.84e+05",{"v":213000,"d":"2.13E+05"}]
[30,"HE","2_Handling Asbestos-Containing Building Materials During Maintenance, Renovation, and Demolition Activities","Handling Asbestos-Containing Building Materials During Maintenance, Renovation, and Demolition Activities","Fugitive Emissions","Urban","CT Met","HE Fugitive Emissions Urban CT Met","5 years",5000,{"v":139000,"d":"1.39E+05"},{"v":42800,"d":"4.28E+04"},{"v":141000,"d":"1.41E+05"},{"v":213000,"d":"2.13E+05"},"3.50e+04 - 2.22e+05",{"v":61100,"d":"6.11E+04"}]
[31,"HE","2_Handling Asbestos-Containing Building Materials During Maintenance, Renovation, and Demolition Activities","Handling Asbestos-Containing Building Materials During Maintenance, Renovation, and Demolition Activities","Fugitive Emissions","Urban","CT Met","HE Fugitive Emissions Urban CT Met","5 years",10000,{"v":48000,"d":"4.80E+04"},{"v":14300,"d":"1.43E+04"},{"v":48400,"d":"4.84E+04"},{"v":74400,"d":"7.44E+04"},"9.11e+03 - 7.50e+04",{"v":21900,"d":"2.19E+04"}]
[8,"CT","1_Handling Asbestos-Containing Building Materials During Maintenance, Renovation, and Demolition Activities","Handling Asbestos-Containing Building Materials During Maintenance, Renovation, and Demolition Activities","Fugitive Emissions","Rural","HE Met","CT Fugitive Emissions Rural HE Met","5 years",10,{"v":104000000,"d":"1.04E+08"},{"v":70700000,"d":"7.07E+07"},{"v":84300000,"d":"8.43E+07"},{"v":180000000,"d":"1.80E+08"},"6.84e+07 - 1.94e+08",{"v":41300000,"d":"4.13E+07"}]
[9,"CT","1_Handling Asbestos-Containing Building Materials During Maintenance, Renovation, and Demolition Activities","Handling Asbestos-Containing Building Materials During Maintenance, Renovation, and Demolition Activities","Fugitive Emissions","Rural","HE Met","CT Fugitive Emissions Rural HE Met","5 years",30,{"v":36200000,"d":"3.62E+07"},{"v":19500000,"d":"1.95E+07"},{"v":34700000,"d":"3.47E+07"},{"v":68000000,"d":"6.80E+07"},"1.68e+07 - 7.00e+07",{"v":15400000,"d":"1.54E+07"}]
[10,"CT","1_Handling Asbestos-Containing Building Materials During Maintenance, Renovation, and Demolition Activities","Handling Asbestos-Containing Building Materials During Maintenance, Renovation, and Demolition Activities","Fugitive Emissions","Rural","HE Met","CT Fugitive Emissions Rural HE Met","5 years",60,{"v":7080000,"d":"7.08E+06"},{"v":3110000,"d":"3.11E+06"},{"v":6810000,"d":"6.81E+06"},{"v":14000000,"d":"1.40E+07"},"2.62e+06 - 1.41e+07",{"v":3380000,"d":"3.38E+06"}]
[11,"CT","1_Handling Asbestos-Containing Building Materials During Maintenance, Renovation, and Demolition Activities","Handling Asbestos-Containing Building Materials During Maintenance, Renovation, and Demolition Activities","Fugitive Emissions","Rural","HE Met","CT Fugitive Emissions Rural HE Met","5 years",100,{"v":1850000,"d":"1.85E+06"},{"v":773000,"d":"7.73E+05"},{"v":1730000,"d":"1.73E+06"},{"v":3770000,"d":"3.77E+06"},"6.67e+05 - 3.86e+06",{"v":933000,"d":"9.33E+05"}]
[12,"CT","1_Handling Asbestos-Containing Building Materials During Maintenance, Renovation, and Demolition Activities","Handling Asbestos-Containing Building Materials During Maintenance, Renovation, and Demolition Activities","Fugitive Emissions","Rural","HE Met","CT Fugitive Emissions Rural HE Met","5 years",1000,{"v":56200,"d":"5.62E+04"},{"v":9280,"d":"9.28E+03"},{"v":24100,"d":"2.41E+04"},{"v":189000,"d":"1.89E+05"},"5.12e+03 - 8.17e+05",{"v":106000,"d":"1.06E+05"}]
[13,"CT","1_Handling Asbestos-Containing Building Materials During Maintenance, Renovation, and Demolition Activities","Handling Asbestos-Containing Building Materials During Maintenance, Renovation, and Demolition Activities","Fugitive Emissions","Rural","HE Met","CT Fugitive Emissions Rural HE Met","5 years",2500,{"v":2130,"d":"2.13E+03"},{"v":954,"d":"9.54E+02"},{"v":1920,"d":"1.92E+03"},{"v":4540,"d":"4.54E+03"},"8.70e+02 - 5.63e+03",{"v":1330,"d":"1.33E+03"}]
[14,"CT","1_Handling Asbestos-Containing Building Materials During Maintenance, Renovation, and Demolition Activities","Handling Asbestos-Containing Building Materials During Maintenance, Renovation, and Demolition Activities","Fugitive Emissions","Rural","HE Met","CT Fugitive Emissions Rural HE Met","5 years",5000,{"v":723,"d":"7.23E+02"},{"v":345,"d":"3.45E+02"},{"v":650,"d":"6.50E+02"},{"v":1470,"d":"1.47E+03"},"2.72e+02 - 1.97e+03",{"v":447,"d":"4.47E+02"}]
[15,"CT","1_Handling Asbestos-Containing Building Materials During Maintenance, Renovation, and Demolition Activities","Handling Asbestos-Containing Building Materials During Maintenance, Renovation, and Demolition Activities","Fugitive Emissions","Rural","HE Met","CT Fugitive Emissions Rural HE Met","5 years",10000,{"v":283,"d":"2.83E+02"},{"v":133,"d":"1.33E+02"},{"v":252,"d":"2.52E+02"},{"v":623,"d":"6.23E+02"},"1.07e+02 - 8.07e+02",{"v":188,"d":"1.88E+02"}]
[24,"CT","1_Handling Asbestos-Containing Building Materials During Maintenance, Renovation, and Demolition Activities","Handling Asbestos-Containing Building Materials During Maintenance, Renovation, and Demolition Activities","Fugitive Emissions","Urban","HE Met","CT Fugitive Emissions Urban HE Met","5 years",10,{"v":105000000,"d":"1.05E+08"},{"v":72500000,"d":"7.25E+07"},{"v":87100000,"d":"8.71E+07"},{"v":183000000,"d":"1.83E+08"},"6.98e+07 - 1.96e+08",{"v":41300000,"d":"4.13E+07"}]
[25,"CT","1_Handling Asbestos-Containing Building Materials During Maintenance, Renovation, and Demolition Activities","Handling Asbestos-Containing Building Materials During Maintenance, Renovation, and Demolition Activities","Fugitive Emissions","Urban","HE Met","CT Fugitive Emissions Urban HE Met","5 years",30,{"v":35500000,"d":"3.55E+07"},{"v":19500000,"d":"1.95E+07"},{"v":33000000,"d":"3.30E+07"},{"v":67000000,"d":"6.70E+07"},"1.69e+07 - 6.75e+07",{"v":15000000,"d":"1.50E+07"}]
[26,"CT","1_Handling Asbestos-Containing Building Materials During Maintenance, Renovation, and Demolition Activities","Handling Asbestos-Containing Building Materials During Maintenance, Renovation, and Demolition Activities","Fugitive Emissions","Urban","HE Met","CT Fugitive Emissions Urban HE Met","5 years",60,{"v":6940000,"d":"6.94E+06"},{"v":3140000,"d":"3.14E+06"},{"v":6610000,"d":"6.61E+06"},{"v":13600000,"d":"1.36E+07"},"2.65e+06 - 1.39e+07",{"v":3280000,"d":"3.28E+06"}]
[27,"CT","1_Handling Asbestos-Containing Building Materials During Maintenance, Renovation, and Demolition Activities","Handling Asbestos-Containing Building Materials During Maintenance, Renovation, and Demolition Activities","Fugitive Emissions","Urban","HE Met","CT Fugitive Emissions Urban HE Met","5 years",100,{"v":1820000,"d":"1.82E+06"},{"v":783000,"d":"7.83E+05"},{"v":1690000,"d":"1.69E+06"},{"v":3700000,"d":"3.70E+06"},"6.73e+05 - 3.80e+06",{"v":909000,"d":"9.09E+05"}]
[28,"CT","1_Handling Asbestos-Containing Building Materials During Maintenance, Renovation, and Demolition Activities","Handling Asbestos-Containing Building Materials During Maintenance, Renovation, and Demolition Activities","Fugitive Emissions","Urban","HE Met","CT Fugitive Emissions Urban HE Met","5 years",1000,{"v":55800,"d":"5.58E+04"},{"v":9420,"d":"9.42E+03"},{"v":23800,"d":"2.38E+04"},{"v":188000,"d":"1.88E+05"},"5.03e+03 - 8.26e+05",{"v":106000,"d":"1.06E+05"}]
[29,"CT","1_Handling Asbestos-Containing Building Materials During Maintenance, Renovation, and Demolition Activities","Handling Asbestos-Containing Building Materials During Maintenance, Renovation, and Demolition Activities","Fugitive Emissions","Urban","HE Met","CT Fugitive Emissions Urban HE Met","5 years",2500,{"v":2130,"d":"2.13E+03"},{"v":977,"d":"9.77E+02"},{"v":1970,"d":"1.97E+03"},{"v":4390,"d":"4.39E+03"},"8.21e+02 - 5.53e+03",{"v":1270,"d":"1.27E+03"}]
[30,"CT","1_Handling Asbestos-Containing Building Materials During Maintenance, Renovation, and Demolition Activities","Handling Asbestos-Containing Building Materials During Maintenance, Renovation, and Demolition Activities","Fugitive Emissions","Urban","HE Met","CT Fugitive Emissions Urban HE Met","5 years",5000,{"v":749,"d":"7.49E+02"},{"v":379,"d":"3.79E+02"},{"v":704,"d":"7.04E+02"},{"v":1460,"d":"1.46E+03"},"2.76e+02 - 1.99e+03",{"v":437,"d":"4.37E+02"}]
[31,"CT","1_Handling Asbestos-Containing Building Materials During Maintenance, Renovation, and Demolition Activities","Handling Asbestos-Containing Building Materials During Maintenance, Renovation, and Demolition Activities","Fugitive Emissions","Urban","HE Met","CT Fugitive Emissions Urban HE Met","5 years",10000,{"v":293,"d":"2.93E+02"},{"v":139,"d":"1.39E+02"},{"v":258,"d":"2.58E+02"},{"v":626,"d":"6.26E+02"},"1.09e+02 - 8.33e+02",{"v":190,"d":"1.90E+02"}]
[8,"CT","1_Handling Asbestos-Containing Building Materials During Maintenance, Renovation, and Demolition Activities","Handling Asbestos-Containing Building Materials During Maintenance, Renovation, and Demolition Activities","Fugitive Emissions","Rural","CT Met","CT Fugitive Emissions Rural CT Met","5 years",10,{"v":57400000,"d":"5.74E+07"},{"v":34300000,"d":"3.43E+07"},{"v":58500000,"d":"5.85E+07"},{"v":81300000,"d":"8.13E+07"},"2.69e+07 - 8.71e+07",{"v":17000000,"d":"1.70E+07"}]
[9,"CT","1_Handling Asbestos-Containing Building Materials During Maintenance, Renovation, and Demolition Activities","Handling Asbestos-Containing Building Materials During Maintenance, Renovation, and Demolition Activities","Fugitive Emissions","Rural","CT Met","CT Fugitive Emissions Rural CT Met","5 years",30,{"v":34300000,"d":"3.43E+07"},{"v":16600000,"d":"1.66E+07"},{"v":38300000,"d":"3.83E+07"},{"v":49400000,"d":"4.94E+07"},"8.01e+06 - 5.05e+07",{"v":12500000,"d":"1.25E+07"}]
[10,"CT","1_Handling Asbestos-Containing Building Materials During Maintenance, Renovation, and Demolition Activities","Handling Asbestos-Containing Building Materials During Maintenance, Renovation, and Demolition Activities","Fugitive Emissions","Rural","CT Met","CT Fugitive Emissions Rural CT Met","5 years",60,{"v":7900000,"d":"7.90E+06"},{"v":2960000,"d":"2.96E+06"},{"v":7370000,"d":"7.37E+06"},{"v":12800000,"d":"1.28E+07"},"1.14e+06 - 1.30e+07",{"v":4000000,"d":"4.00E+06"}]
[11,"CT","1_Handling Asbestos-Containing Building Materials During Maintenance, Renovation, and Demolition Activities","Handling Asbestos-Containing Building Materials During Maintenance, Renovation, and Demolition Activities","Fugitive Emissions","Rural","CT Met","CT Fugitive Emissions Rural CT Met","5 years",100,{"v":2150000,"d":"2.15E+06"},{"v":724000,"d":"7.24E+05"},{"v":1920000,"d":"1.92E+06"},{"v":3730000,"d":"3.73E+06"},"2.58e+05 - 3.98e+06",{"v":1250000,"d":"1.25E+06"}]
[12,"CT","1_Handling Asbestos-Containing Building Materials During Maintenance, Renovation, and Demolition Activities","Handling Asbestos-Containing Building Materials During Maintenance, Renovation, and Demolition Activities","Fugitive Emissions","Rural","CT Met","CT Fugitive Emissions Rural CT Met","5 years",1000,{"v":60200,"d":"6.02E+04"},{"v":7530,"d":"7.53E+03"},{"v":25700,"d":"2.57E+04"},{"v":228000,"d":"2.28E+05"},"1.95e+03 - 1.73e+06",{"v":135000,"d":"1.35E+05"}]
[13,"CT","1_Handling Asbestos-Containing Building Materials During Maintenance, Renovation, and Demolition Activities","Handling Asbestos-Containing Building Materials During Maintenance, Renovation, and Demolition Activities","Fugitive Emissions","Rural","CT Met","CT Fugitive Emissions Rural CT Met","5 years",2500,{"v":2220,"d":"2.22E+03"},{"v":645,"d":"6.45E+02"},{"v":2210,"d":"2.21E+03"},{"v":3780,"d":"3.78E+03"},"5.24e+02 - 4.03e+03",{"v":1100,"d":"1.10E+03"}]
[14,"CT","1_Handling Asbestos-Containing Building Materials During Maintenance, Renovation, and Demolition Activities","Handling Asbestos-Containing Building Materials During Maintenance, Renovation, and Demolition Activities","Fugitive Emissions","Rural","CT Met","CT Fugitive Emissions Rural CT Met","5 years",5000,{"v":663,"d":"6.63E+02"},{"v":212,"d":"2.12E+02"},{"v":725,"d":"7.25E+02"},{"v":1070,"d":"1.07E+03"},"1.71e+02 - 1.07e+03",{"v":302,"d":"3.02E+02"}]
[15,"CT","1_Handling Asbestos-Containing Building Materials During Maintenance, Renovation, and Demolition Activities","Handling Asbestos-Containing Building Materials During Maintenance, Renovation, and Demolition Activities","Fugitive Emissions","Rural","CT Met","CT Fugitive Emissions Rural CT Met","5 years",10000,{"v":223,"d":"2.23E+02"},{"v":70.8,"d":"7.08E+01"},{"v":235,"d":"2.35E+02"},{"v":344,"d":"3.44E+02"},"4.52e+01 - 3.65e+02",{"v":107,"d":"1.07E+02"}]
[24,"CT","1_Handling Asbestos-Containing Building Materials During Maintenance, Renovation, and Demolition Activities","Handling Asbestos-Containing Building Materials During Maintenance, Renovation, and Demolition Activities","Fugitive Emissions","Urban","CT Met","CT Fugitive Emissions Urban CT Met","5 years",10,{"v":61100000,"d":"6.11E+07"},{"v":36500000,"d":"3.65E+07"},{"v":62100000,"d":"6.21E+07"},{"v":85100000,"d":"8.51E+07"},"2.98e+07 - 8.81e+07",{"v":17500000,"d":"1.75E+07"}]
[25,"CT","1_Handling Asbestos-Containing Building Materials During Maintenance, Renovation, and Demolition Activities","Handling Asbestos-Containing Building Materials During Maintenance, Renovation, and Demolition Activities","Fugitive Emissions","Urban","CT Met","CT Fugitive Emissions Urban CT Met","5 years",30,{"v":32200000,"d":"3.22E+07"},{"v":15600000,"d":"1.56E+07"},{"v":33200000,"d":"3.32E+07"},{"v":46900000,"d":"4.69E+07"},"8.56e+06 - 4.76e+07",{"v":11800000,"d":"1.18E+07"}]
[26,"CT","1_Handling Asbestos-Containing Building Materials During Maintenance, Renovation, and Demolition Activities","Handling Asbestos-Containing Building Materials During Maintenance, Renovation, and Demolition Activities","Fugitive Emissions","Urban","CT Met","CT Fugitive Emissions Urban CT Met","5 years",60,{"v":7540000,"d":"7.54E+06"},{"v":3020000,"d":"3.02E+06"},{"v":7120000,"d":"7.12E+06"},{"v":12200000,"d":"1.22E+07"},"1.25e+06 - 1.30e+07",{"v":3730000,"d":"3.73E+06"}]
[27,"CT","1_Handling Asbestos-Containing Building Materials During Maintenance, Renovation, and Demolition Activities","Handling Asbestos-Containing Building Materials During Maintenance, Renovation, and Demolition Activities","Fugitive Emissions","Urban","CT Met","CT Fugitive Emissions Urban CT Met","5 years",100,{"v":2090000,"d":"2.09E+06"},{"v":732000,"d":"7.32E+05"},{"v":1910000,"d":"1.91E+06"},{"v":3600000,"d":"3.60E+06"},"2.77e+05 - 3.97e+06",{"v":1170000,"d":"1.17E+06"}]
[28,"CT","1_Handling Asbestos-Containing Building Materials During Maintenance, Renovation, and Demolition Activities","Handling Asbestos-Containing Building Materials During Maintenance, Renovation, and Demolition Activities","Fugitive Emissions","Urban","CT Met","CT Fugitive Emissions Urban CT Met","5 years",1000,{"v":60000,"d":"6.00E+04"},{"v":7160,"d":"7.16E+03"},{"v":25400,"d":"2.54E+04"},{"v":230000,"d":"2.30E+05"},"2.05e+03 - 1.72e+06",{"v":135000,"d":"1.35E+05"}]
[29,"CT","1_Handling Asbestos-Containing Building Materials During Maintenance, Renovation, and Demolition Activities","Handling Asbestos-Containing Building Materials During Maintenance, Renovation, and Demolition Activities","Fugitive Emissions","Urban","CT Met","CT Fugitive Emissions Urban CT Met","5 years",2500,{"v":2140,"d":"2.14E+03"},{"v":641,"d":"6.41E+02"},{"v":1950,"d":"1.95E+03"},{"v":3590,"d":"3.59E+03"},"5.36e+02 - 3.92e+03",{"v":1060,"d":"1.06E+03"}]
[30,"CT","1_Handling Asbestos-Containing Building Materials During Maintenance, Renovation, and Demolition Activities","Handling Asbestos-Containing Building Materials During Maintenance, Renovation, and Demolition Activities","Fugitive Emissions","Urban","CT Met","CT Fugitive Emissions Urban CT Met","5 years",5000,{"v":697,"d":"6.97E+02"},{"v":214,"d":"2.14E+02"},{"v":704,"d":"7.04E+02"},{"v":1060,"d":"1.06E+03"},"1.75e+02 - 1.11e+03",{"v":305,"d":"3.05E+02"}]
[31,"CT","1_Handling Asbestos-Containing Building Materials During Maintenance, Renovation, and Demolition Activities","Handling Asbestos-Containing Building Materials During Maintenance, Renovation, and Demolition Activities","Fugitive Emissions","Urban","CT Met","CT Fugitive Emissions Urban CT Met","5 years",10000,{"v":240,"d":"2.40E+02"},{"v":71.3,"d":"7.13E+01"},{"v":242,"d":"2.42E+02"},{"v":372,"d":"3.72E+02"},"4.56e+01 - 3.75e+02",{"v":109,"d":"1.09E+02"}]
[8,"HE","6_Use, Repair, or Disposal of Industrial and Commercial Appliances or Machinery Containing Asbestos","Use, Repair, or Disposal of Industrial and Commercial Appliances or Machinery Containing Asbestos","Fugitive Emissions","Rural","HE Met",{"$f":"_xlfn.CONCAT(B130, \" \",E130,\" \",F130,\" \",G130)","v":"HE Fugitive Emissions Rural HE Met"},"5 years",10,{"v":276000000000,"d":"2.76E+11"},{"v":194000000000,"d":"1.94E+11"},{"v":249000000000,"d":"2.49E+11"},{"v":435000000000,"d":"4.35E+11"},"1.81e+11 - 4.57e+11",{"v":87400000000,"d":"8.74E+10"}]
[9,"HE","6_Use, Repair, or Disposal of Industrial and Commercial Appliances or Machinery Containing Asbestos","Use, Repair, or Disposal of Industrial and Commercial Appliances or Machinery Containing Asbestos","Fugitive Emissions","Rural","HE Met","HE Fugitive Emissions Rural HE Met","5 years",30,{"v":91600000000,"d":"9.16E+10"},{"v":48900000000,"d":"4.89E+10"},{"v":97100000000,"d":"9.71E+10"},{"v":143000000000,"d":"1.43E+11"},"4.11e+10 - 1.44e+11",{"v":30500000000,"d":"3.05E+10"}]
[10,"HE","6_Use, Repair, or Disposal of Industrial and Commercial Appliances or Machinery Containing Asbestos","Use, Repair, or Disposal of Industrial and Commercial Appliances or Machinery Containing Asbestos","Fugitive Emissions","Rural","HE Met","HE Fugitive Emissions Rural HE Met","5 years",60,{"v":17700000000,"d":"1.77E+10"},{"v":8460000000,"d":"8.46E+09"},{"v":18800000000,"d":"1.88E+10"},{"v":28800000000,"d":"2.88E+10"},"6.72e+09 - 2.94e+10",{"v":6680000000,"d":"6.68E+09"}]
[11,"HE","6_Use, Repair, or Disposal of Industrial and Commercial Appliances or Machinery Containing Asbestos","Use, Repair, or Disposal of Industrial and Commercial Appliances or Machinery Containing Asbestos","Fugitive Emissions","Rural","HE Met","HE Fugitive Emissions Rural HE Met","5 years",100,{"v":4600000000,"d":"4.60E+09"},{"v":2130000000,"d":"2.13E+09"},{"v":4830000000,"d":"4.83E+09"},{"v":7830000000,"d":"7.83E+09"},"1.66e+09 - 7.96e+09",{"v":1850000000,"d":"1.85E+09"}]
[12,"HE","6_Use, Repair, or Disposal of Industrial and Commercial Appliances or Machinery Containing Asbestos","Use, Repair, or Disposal of Industrial and Commercial Appliances or Machinery Containing Asbestos","Fugitive Emissions","Rural","HE Met","HE Fugitive Emissions Rural HE Met","5 years",1000,{"v":143000000,"d":"1.43E+08"},{"v":25800000,"d":"2.58E+07"},{"v":62400000,"d":"6.24E+07"},{"v":488000000,"d":"4.88E+08"},"1.26e+07 - 2.19e+09",{"v":265000000,"d":"2.65E+08"}]
[13,"HE","6_Use, Repair, or Disposal of Industrial and Commercial Appliances or Machinery Containing Asbestos","Use, Repair, or Disposal of Industrial and Commercial Appliances or Machinery Containing Asbestos","Fugitive Emissions","Rural","HE Met","HE Fugitive Emissions Rural HE Met","5 years",2500,{"v":5380000,"d":"5.38E+06"},{"v":2680000,"d":"2.68E+06"},{"v":5530000,"d":"5.53E+06"},{"v":8590000,"d":"8.59E+06"},"2.38e+06 - 1.03e+07",{"v":2100000,"d":"2.10E+06"}]
[14,"HE","6_Use, Repair, or Disposal of Industrial and Commercial Appliances or Machinery Containing Asbestos","Use, Repair, or Disposal of Industrial and Commercial Appliances or Machinery Containing Asbestos","Fugitive Emissions","Rural","HE Met","HE Fugitive Emissions Rural HE Met","5 years",5000,{"v":1850000,"d":"1.85E+06"},{"v":1010000,"d":"1.01E+06"},{"v":1920000,"d":"1.92E+06"},{"v":2750000,"d":"2.75E+06"},"9.46e+05 - 3.39e+06",{"v":653000,"d":"6.53E+05"}]
[15,"HE","6_Use, Repair, or Disposal of Industrial and Commercial Appliances or Machinery Containing Asbestos","Use, Repair, or Disposal of Industrial and Commercial Appliances or Machinery Containing Asbestos","Fugitive Emissions","Rural","HE Met","HE Fugitive Emissions Rural HE Met","5 years",10000,{"v":706000,"d":"7.06E+05"},{"v":393000,"d":"3.93E+05"},{"v":708000,"d":"7.08E+05"},{"v":1120000,"d":"1.12E+06"},"3.51e+05 - 1.45e+06",{"v":275000,"d":"2.75E+05"}]
[24,"HE","6_Use, Repair, or Disposal of Industrial and Commercial Appliances or Machinery Containing Asbestos","Use, Repair, or Disposal of Industrial and Commercial Appliances or Machinery Containing Asbestos","Fugitive Emissions","Urban","HE Met","HE Fugitive Emissions Urban HE Met","5 years",10,{"v":279000000000,"d":"2.79E+11"},{"v":195000000000,"d":"1.95E+11"},{"v":253000000000,"d":"2.53E+11"},{"v":437000000000,"d":"4.37E+11"},"1.83e+11 - 4.58e+11",{"v":87000000000,"d":"8.70E+10"}]
[25,"HE","6_Use, Repair, or Disposal of Industrial and Commercial Appliances or Machinery Containing Asbestos","Use, Repair, or Disposal of Industrial and Commercial Appliances or Machinery Containing Asbestos","Fugitive Emissions","Urban","HE Met","HE Fugitive Emissions Urban HE Met","5 years",30,{"v":89900000000,"d":"8.99E+10"},{"v":48100000000,"d":"4.81E+10"},{"v":95100000000,"d":"9.51E+10"},{"v":141000000000,"d":"1.41E+11"},"4.06e+10 - 1.43e+11",{"v":29900000000,"d":"2.99E+10"}]
[26,"HE","6_Use, Repair, or Disposal of Industrial and Commercial Appliances or Machinery Containing Asbestos","Use, Repair, or Disposal of Industrial and Commercial Appliances or Machinery Containing Asbestos","Fugitive Emissions","Urban","HE Met","HE Fugitive Emissions Urban HE Met","5 years",60,{"v":17300000000,"d":"1.73E+10"},{"v":8350000000,"d":"8.35E+09"},{"v":18400000000,"d":"1.84E+10"},{"v":28400000000,"d":"2.84E+10"},"6.68e+09 - 2.92e+10",{"v":6560000000,"d":"6.56E+09"}]
[27,"HE","6_Use, Repair, or Disposal of Industrial and Commercial Appliances or Machinery Containing Asbestos","Use, Repair, or Disposal of Industrial and Commercial Appliances or Machinery Containing Asbestos","Fugitive Emissions","Urban","HE Met","HE Fugitive Emissions Urban HE Met","5 years",100,{"v":4550000000,"d":"4.55E+09"},{"v":2110000000,"d":"2.11E+09"},{"v":4770000000,"d":"4.77E+09"},{"v":7760000000,"d":"7.76E+09"},"1.66e+09 - 7.92e+09",{"v":1820000000,"d":"1.82E+09"}]
[28,"HE","6_Use, Repair, or Disposal of Industrial and Commercial Appliances or Machinery Containing Asbestos","Use, Repair, or Disposal of Industrial and Commercial Appliances or Machinery Containing Asbestos","Fugitive Emissions","Urban","HE Met","HE Fugitive Emissions Urban HE Met","5 years",1000,{"v":141000000,"d":"1.41E+08"},{"v":25400000,"d":"2.54E+07"},{"v":61300000,"d":"6.13E+07"},{"v":483000000,"d":"4.83E+08"},"1.22e+07 - 2.15e+09",{"v":263000000,"d":"2.63E+08"}]
[29,"HE","6_Use, Repair, or Disposal of Industrial and Commercial Appliances or Machinery Containing Asbestos","Use, Repair, or Disposal of Industrial and Commercial Appliances or Machinery Containing Asbestos","Fugitive Emissions","Urban","HE Met","HE Fugitive Emissions Urban HE Met","5 years",2500,{"v":5370000,"d":"5.37E+06"},{"v":2700000,"d":"2.70E+06"},{"v":5510000,"d":"5.51E+06"},{"v":8530000,"d":"8.53E+06"},"2.40e+06 - 1.03e+07",{"v":2080000,"d":"2.08E+06"}]
[30,"HE","6_Use, Repair, or Disposal of Industrial and Commercial Appliances or Machinery Containing Asbestos","Use, Repair, or Disposal of Industrial and Commercial Appliances or Machinery Containing Asbestos","Fugitive Emissions","Urban","HE Met","HE Fugitive Emissions Urban HE Met","5 years",5000,{"v":1910000,"d":"1.91E+06"},{"v":1050000,"d":"1.05E+06"},{"v":1990000,"d":"1.99E+06"},{"v":2790000,"d":"2.79E+06"},"9.67e+05 - 3.45e+06",{"v":670000,"d":"6.70E+05"}]
[31,"HE","6_Use, Repair, or Disposal of Industrial and Commercial Appliances or Machinery Containing Asbestos","Use, Repair, or Disposal of Industrial and Commercial Appliances or Machinery Containing Asbestos","Fugitive Emissions","Urban","HE Met","HE Fugitive Emissions Urban HE Met","5 years",10000,{"v":728000,"d":"7.28E+05"},{"v":400000,"d":"4.00E+05"},{"v":734000,"d":"7.34E+05"},{"v":1130000,"d":"1.13E+06"},"3.61e+05 - 1.47e+06",{"v":281000,"d":"2.81E+05"}]
[8,"HE","6_Use, Repair, or Disposal of Industrial and Commercial Appliances or Machinery Containing Asbestos","Use, Repair, or Disposal of Industrial and Commercial Appliances or Machinery Containing Asbestos","Fugitive Emissions","Rural","CT Met","HE Fugitive Emissions Rural CT Met","5 years",10,{"v":165000000000,"d":"1.65E+11"},{"v":146000000000,"d":"1.46E+11"},{"v":167000000000,"d":"1.67E+11"},{"v":189000000000,"d":"1.89E+11"},"1.45e+11 - 1.90e+11",{"v":16800000000,"d":"1.68E+10"}]
[9,"HE","6_Use, Repair, or Disposal of Industrial and Commercial Appliances or Machinery Containing Asbestos","Use, Repair, or Disposal of Industrial and Commercial Appliances or Machinery Containing Asbestos","Fugitive Emissions","Rural","CT Met","HE Fugitive Emissions Rural CT Met","5 years",30,{"v":86500000000,"d":"8.65E+10"},{"v":59200000000,"d":"5.92E+10"},{"v":77200000000,"d":"7.72E+10"},{"v":128000000000,"d":"1.28E+11"},"5.75e+10 - 1.42e+11",{"v":26500000000,"d":"2.65E+10"}]
[10,"HE","6_Use, Repair, or Disposal of Industrial and Commercial Appliances or Machinery Containing Asbestos","Use, Repair, or Disposal of Industrial and Commercial Appliances or Machinery Containing Asbestos","Fugitive Emissions","Rural","CT Met","HE Fugitive Emissions Rural CT Met","5 years",60,{"v":19300000000,"d":"1.93E+10"},{"v":11500000000,"d":"1.15E+10"},{"v":16300000000,"d":"1.63E+10"},{"v":33600000000,"d":"3.36E+10"},"9.26e+09 - 3.60e+10",{"v":8290000000,"d":"8.29E+09"}]
[11,"HE","6_Use, Repair, or Disposal of Industrial and Commercial Appliances or Machinery Containing Asbestos","Use, Repair, or Disposal of Industrial and Commercial Appliances or Machinery Containing Asbestos","Fugitive Emissions","Rural","CT Met","HE Fugitive Emissions Rural CT Met","5 years",100,{"v":5170000000,"d":"5.17E+09"},{"v":2970000000,"d":"2.97E+09"},{"v":4300000000,"d":"4.30E+09"},{"v":9780000000,"d":"9.78E+09"},"2.04e+09 - 1.01e+10",{"v":2510000000,"d":"2.51E+09"}]
[12,"HE","6_Use, Repair, or Disposal of Industrial and Commercial Appliances or Machinery Containing Asbestos","Use, Repair, or Disposal of Industrial and Commercial Appliances or Machinery Containing Asbestos","Fugitive Emissions","Rural","CT Met","HE Fugitive Emissions Rural CT Met","5 years",1000,{"v":150000000,"d":"1.50E+08"},{"v":25200000,"d":"2.52E+07"},{"v":61800000,"d":"6.18E+07"},{"v":516000000,"d":"5.16E+08"},"1.42e+07 - 4.12e+09",{"v":324000000,"d":"3.24E+08"}]
[13,"HE","6_Use, Repair, or Disposal of Industrial and Commercial Appliances or Machinery Containing Asbestos","Use, Repair, or Disposal of Industrial and Commercial Appliances or Machinery Containing Asbestos","Fugitive Emissions","Rural","CT Met","HE Fugitive Emissions Rural CT Met","5 years",2500,{"v":5540000,"d":"5.54E+06"},{"v":3360000,"d":"3.36E+06"},{"v":4800000,"d":"4.80E+06"},{"v":10200000,"d":"1.02E+07"},"2.89e+06 - 1.05e+07",{"v":2360000,"d":"2.36E+06"}]
[14,"HE","6_Use, Repair, or Disposal of Industrial and Commercial Appliances or Machinery Containing Asbestos","Use, Repair, or Disposal of Industrial and Commercial Appliances or Machinery Containing Asbestos","Fugitive Emissions","Rural","CT Met","HE Fugitive Emissions Rural CT Met","5 years",5000,{"v":1730000,"d":"1.73E+06"},{"v":1130000,"d":"1.13E+06"},{"v":1580000,"d":"1.58E+06"},{"v":2920000,"d":"2.92E+06"},"9.70e+05 - 3.17e+06",{"v":650000,"d":"6.50E+05"}]
[15,"HE","6_Use, Repair, or Disposal of Industrial and Commercial Appliances or Machinery Containing Asbestos","Use, Repair, or Disposal of Industrial and Commercial Appliances or Machinery Containing Asbestos","Fugitive Emissions","Rural","CT Met","HE Fugitive Emissions Rural CT Met","5 years",10000,{"v":591000,"d":"5.91E+05"},{"v":368000,"d":"3.68E+05"},{"v":564000,"d":"5.64E+05"},{"v":964000,"d":"9.64E+05"},"3.02e+05 - 1.12e+06",{"v":226000,"d":"2.26E+05"}]
[24,"HE","6_Use, Repair, or Disposal of Industrial and Commercial Appliances or Machinery Containing Asbestos","Use, Repair, or Disposal of Industrial and Commercial Appliances or Machinery Containing Asbestos","Fugitive Emissions","Urban","CT Met","HE Fugitive Emissions Urban CT Met","5 years",10,{"v":171000000000,"d":"1.71E+11"},{"v":149000000000,"d":"1.49E+11"},{"v":173000000000,"d":"1.73E+11"},{"v":201000000000,"d":"2.01E+11"},"1.47e+11 - 2.03e+11",{"v":19800000000,"d":"1.98E+10"}]
[25,"HE","6_Use, Repair, or Disposal of Industrial and Commercial Appliances or Machinery Containing Asbestos","Use, Repair, or Disposal of Industrial and Commercial Appliances or Machinery Containing Asbestos","Fugitive Emissions","Urban","CT Met","HE Fugitive Emissions Urban CT Met","5 years",30,{"v":82000000000,"d":"8.20E+10"},{"v":55800000000,"d":"5.58E+10"},{"v":71000000000,"d":"7.10E+10"},{"v":124000000000,"d":"1.24E+11"},"5.45e+10 - 1.35e+11",{"v":25900000000,"d":"2.59E+10"}]
[26,"HE","6_Use, Repair, or Disposal of Industrial and Commercial Appliances or Machinery Containing Asbestos","Use, Repair, or Disposal of Industrial and Commercial Appliances or Machinery Containing Asbestos","Fugitive Emissions","Urban","CT Met","HE Fugitive Emissions Urban CT Met","5 years",60,{"v":18500000000,"d":"1.85E+10"},{"v":11200000000,"d":"1.12E+10"},{"v":15500000000,"d":"1.55E+10"},{"v":32300000000,"d":"3.23E+10"},"9.25e+09 - 3.38e+10",{"v":7830000000,"d":"7.83E+09"}]
[27,"HE","6_Use, Repair, or Disposal of Industrial and Commercial Appliances or Machinery Containing Asbestos","Use, Repair, or Disposal of Industrial and Commercial Appliances or Machinery Containing Asbestos","Fugitive Emissions","Urban","CT Met","HE Fugitive Emissions Urban CT Met","5 years",100,{"v":5050000000,"d":"5.05E+09"},{"v":2940000000,"d":"2.94E+09"},{"v":4170000000,"d":"4.17E+09"},{"v":9470000000,"d":"9.47E+09"},"2.16e+09 - 9.62e+09",{"v":2400000000,"d":"2.40E+09"}]
[28,"HE","6_Use, Repair, or Disposal of Industrial and Commercial Appliances or Machinery Containing Asbestos","Use, Repair, or Disposal of Industrial and Commercial Appliances or Machinery Containing Asbestos","Fugitive Emissions","Urban","CT Met","HE Fugitive Emissions Urban CT Met","5 years",1000,{"v":148000000,"d":"1.48E+08"},{"v":24600000,"d":"2.46E+07"},{"v":60600000,"d":"6.06E+07"},{"v":515000000,"d":"5.15E+08"},"1.30e+07 - 4.04e+09",{"v":319000000,"d":"3.19E+08"}]
[29,"HE","6_Use, Repair, or Disposal of Industrial and Commercial Appliances or Machinery Containing Asbestos","Use, Repair, or Disposal of Industrial and Commercial Appliances or Machinery Containing Asbestos","Fugitive Emissions","Urban","CT Met","HE Fugitive Emissions Urban CT Met","5 years",2500,{"v":5460000,"d":"5.46E+06"},{"v":3430000,"d":"3.43E+06"},{"v":4680000,"d":"4.68E+06"},{"v":9900000,"d":"9.90E+06"},"2.83e+06 - 1.01e+07",{"v":2260000,"d":"2.26E+06"}]
[30,"HE","6_Use, Repair, or Disposal of Industrial and Commercial Appliances or Machinery Containing Asbestos","Use, Repair, or Disposal of Industrial and Commercial Appliances or Machinery Containing Asbestos","Fugitive Emissions","Urban","CT Met","HE Fugitive Emissions Urban CT Met","5 years",5000,{"v":1820000,"d":"1.82E+06"},{"v":1210000,"d":"1.21E+06"},{"v":1620000,"d":"1.62E+06"},{"v":2950000,"d":"2.95E+06"},"1.09e+06 - 3.25e+06",{"v":646000,"d":"6.46E+05"}]
[31,"HE","6_Use, Repair, or Disposal of Industrial and Commercial Appliances or Machinery Containing Asbestos","Use, Repair, or Disposal of Industrial and Commercial Appliances or Machinery Containing Asbestos","Fugitive Emissions","Urban","CT Met","HE Fugitive Emissions Urban CT Met","5 years",10000,{"v":631000,"d":"6.31E+05"},{"v":411000,"d":"4.11E+05"},{"v":591000,"d":"5.91E+05"},{"v":1010000,"d":"1.01E+06"},"3.40e+05 - 1.17e+06",{"v":233000,"d":"2.33E+05"}]
[8,"CT","5_Use, Repair, or Disposal of Industrial and Commercial Appliances or Machinery Containing Asbestos","Use, Repair, or Disposal of Industrial and Commercial Appliances or Machinery Containing Asbestos","Fugitive Emissions","Rural","HE Met","CT Fugitive Emissions Rural HE Met","5 years",10,{"v":246000000,"d":"2.46E+08"},{"v":172000000,"d":"1.72E+08"},{"v":221000000,"d":"2.21E+08"},{"v":387000000,"d":"3.87E+08"},"1.61e+08 - 4.06e+08",{"v":77600000,"d":"7.76E+07"}]
[9,"CT","5_Use, Repair, or Disposal of Industrial and Commercial Appliances or Machinery Containing Asbestos","Use, Repair, or Disposal of Industrial and Commercial Appliances or Machinery Containing Asbestos","Fugitive Emissions","Rural","HE Met","CT Fugitive Emissions Rural HE Met","5 years",30,{"v":81300000,"d":"8.13E+07"},{"v":43400000,"d":"4.34E+07"},{"v":86200000,"d":"8.62E+07"},{"v":127000000,"d":"1.27E+08"},"3.65e+07 - 1.28e+08",{"v":27100000,"d":"2.71E+07"}]
[10,"CT","5_Use, Repair, or Disposal of Industrial and Commercial Appliances or Machinery Containing Asbestos","Use, Repair, or Disposal of Industrial and Commercial Appliances or Machinery Containing Asbestos","Fugitive Emissions","Rural","HE Met","CT Fugitive Emissions Rural HE Met","5 years",60,{"v":15700000,"d":"1.57E+07"},{"v":7520000,"d":"7.52E+06"},{"v":16700000,"d":"1.67E+07"},{"v":25600000,"d":"2.56E+07"},"5.97e+06 - 2.61e+07",{"v":5930000,"d":"5.93E+06"}]
[11,"CT","5_Use, Repair, or Disposal of Industrial and Commercial Appliances or Machinery Containing Asbestos","Use, Repair, or Disposal of Industrial and Commercial Appliances or Machinery Containing Asbestos","Fugitive Emissions","Rural","HE Met","CT Fugitive Emissions Rural HE Met","5 years",100,{"v":4080000,"d":"4.08E+06"},{"v":1890000,"d":"1.89E+06"},{"v":4290000,"d":"4.29E+06"},{"v":6960000,"d":"6.96E+06"},"1.47e+06 - 7.07e+06",{"v":1640000,"d":"1.64E+06"}]
[12,"CT","5_Use, Repair, or Disposal of Industrial and Commercial Appliances or Machinery Containing Asbestos","Use, Repair, or Disposal of Industrial and Commercial Appliances or Machinery Containing Asbestos","Fugitive Emissions","Rural","HE Met","CT Fugitive Emissions Rural HE Met","5 years",1000,{"v":127000,"d":"1.27E+05"},{"v":22900,"d":"2.29E+04"},{"v":55400,"d":"5.54E+04"},{"v":434000,"d":"4.34E+05"},"1.12e+04 - 1.95e+06",{"v":235000,"d":"2.35E+05"}]
[13,"CT","5_Use, Repair, or Disposal of Industrial and Commercial Appliances or Machinery Containing Asbestos","Use, Repair, or Disposal of Industrial and Commercial Appliances or Machinery Containing Asbestos","Fugitive Emissions","Rural","HE Met","CT Fugitive Emissions Rural HE Met","5 years",2500,{"v":4780,"d":"4.78E+03"},{"v":2380,"d":"2.38E+03"},{"v":4910,"d":"4.91E+03"},{"v":7630,"d":"7.63E+03"},"2.11e+03 - 9.11e+03",{"v":1860,"d":"1.86E+03"}]
[14,"CT","5_Use, Repair, or Disposal of Industrial and Commercial Appliances or Machinery Containing Asbestos","Use, Repair, or Disposal of Industrial and Commercial Appliances or Machinery Containing Asbestos","Fugitive Emissions","Rural","HE Met","CT Fugitive Emissions Rural HE Met","5 years",5000,{"v":1640,"d":"1.64E+03"},{"v":900,"d":"9.00E+02"},{"v":1700,"d":"1.70E+03"},{"v":2450,"d":"2.45E+03"},"8.40e+02 - 3.01e+03",{"v":580,"d":"5.80E+02"}]
[15,"CT","5_Use, Repair, or Disposal of Industrial and Commercial Appliances or Machinery Containing Asbestos","Use, Repair, or Disposal of Industrial and Commercial Appliances or Machinery Containing Asbestos","Fugitive Emissions","Rural","HE Met","CT Fugitive Emissions Rural HE Met","5 years",10000,{"v":627,"d":"6.27E+02"},{"v":349,"d":"3.49E+02"},{"v":628,"d":"6.28E+02"},{"v":996,"d":"9.96E+02"},"3.12e+02 - 1.29e+03",{"v":244,"d":"2.44E+02"}]
[24,"CT","5_Use, Repair, or Disposal of Industrial and Commercial Appliances or Machinery Containing Asbestos","Use, Repair, or Disposal of Industrial and Commercial Appliances or Machinery Containing Asbestos","Fugitive Emissions","Urban","HE Met","CT Fugitive Emissions Urban HE Met","5 years",10,{"v":248000000,"d":"2.48E+08"},{"v":173000000,"d":"1.73E+08"},{"v":225000000,"d":"2.25E+08"},{"v":389000000,"d":"3.89E+08"},"1.62e+08 - 4.07e+08",{"v":77300000,"d":"7.73E+07"}]
[25,"CT","5_Use, Repair, or Disposal of Industrial and Commercial Appliances or Machinery Containing Asbestos","Use, Repair, or Disposal of Industrial and Commercial Appliances or Machinery Containing Asbestos","Fugitive Emissions","Urban","HE Met","CT Fugitive Emissions Urban HE Met","5 years",30,{"v":79800000,"d":"7.98E+07"},{"v":42700000,"d":"4.27E+07"},{"v":84500000,"d":"8.45E+07"},{"v":125000000,"d":"1.25E+08"},"3.61e+07 - 1.27e+08",{"v":26600000,"d":"2.66E+07"}]
[26,"CT","5_Use, Repair, or Disposal of Industrial and Commercial Appliances or Machinery Containing Asbestos","Use, Repair, or Disposal of Industrial and Commercial Appliances or Machinery Containing Asbestos","Fugitive Emissions","Urban","HE Met","CT Fugitive Emissions Urban HE Met","5 years",60,{"v":15400000,"d":"1.54E+07"},{"v":7420000,"d":"7.42E+06"},{"v":16300000,"d":"1.63E+07"},{"v":25300000,"d":"2.53E+07"},"5.93e+06 - 2.59e+07",{"v":5820000,"d":"5.82E+06"}]
[27,"CT","5_Use, Repair, or Disposal of Industrial and Commercial Appliances or Machinery Containing Asbestos","Use, Repair, or Disposal of Industrial and Commercial Appliances or Machinery Containing Asbestos","Fugitive Emissions","Urban","HE Met","CT Fugitive Emissions Urban HE Met","5 years",100,{"v":4040000,"d":"4.04E+06"},{"v":1880000,"d":"1.88E+06"},{"v":4230000,"d":"4.23E+06"},{"v":6890000,"d":"6.89E+06"},"1.47e+06 - 7.03e+06",{"v":1620000,"d":"1.62E+06"}]
[28,"CT","5_Use, Repair, or Disposal of Industrial and Commercial Appliances or Machinery Containing Asbestos","Use, Repair, or Disposal of Industrial and Commercial Appliances or Machinery Containing Asbestos","Fugitive Emissions","Urban","HE Met","CT Fugitive Emissions Urban HE Met","5 years",1000,{"v":125000,"d":"1.25E+05"},{"v":22600,"d":"2.26E+04"},{"v":54400,"d":"5.44E+04"},{"v":429000,"d":"4.29E+05"},"1.08e+04 - 1.91e+06",{"v":234000,"d":"2.34E+05"}]
[29,"CT","5_Use, Repair, or Disposal of Industrial and Commercial Appliances or Machinery Containing Asbestos","Use, Repair, or Disposal of Industrial and Commercial Appliances or Machinery Containing Asbestos","Fugitive Emissions","Urban","HE Met","CT Fugitive Emissions Urban HE Met","5 years",2500,{"v":4770,"d":"4.77E+03"},{"v":2400,"d":"2.40E+03"},{"v":4890,"d":"4.89E+03"},{"v":7580,"d":"7.58E+03"},"2.13e+03 - 9.13e+03",{"v":1850,"d":"1.85E+03"}]
[30,"CT","5_Use, Repair, or Disposal of Industrial and Commercial Appliances or Machinery Containing Asbestos","Use, Repair, or Disposal of Industrial and Commercial Appliances or Machinery Containing Asbestos","Fugitive Emissions","Urban","HE Met","CT Fugitive Emissions Urban HE Met","5 years",5000,{"v":1700,"d":"1.70E+03"},{"v":933,"d":"9.33E+02"},{"v":1760,"d":"1.76E+03"},{"v":2480,"d":"2.48E+03"},"8.59e+02 - 3.06e+03",{"v":595,"d":"5.95E+02"}]
[31,"CT","5_Use, Repair, or Disposal of Industrial and Commercial Appliances or Machinery Containing Asbestos","Use, Repair, or Disposal of Industrial and Commercial Appliances or Machinery Containing Asbestos","Fugitive Emissions","Urban","HE Met","CT Fugitive Emissions Urban HE Met","5 years",10000,{"v":646,"d":"6.46E+02"},{"v":355,"d":"3.55E+02"},{"v":652,"d":"6.52E+02"},{"v":1010,"d":"1.01E+03"},"3.21e+02 - 1.31e+03",{"v":249,"d":"2.49E+02"}]
[8,"CT","5_Use, Repair, or Disposal of Industrial and Commercial Appliances or Machinery Containing Asbestos","Use, Repair, or Disposal of Industrial and Commercial Appliances or Machinery Containing Asbestos","Fugitive Emissions","Rural","CT Met","CT Fugitive Emissions Rural CT Met","5 years",10,{"v":146000000,"d":"1.46E+08"},{"v":130000000,"d":"1.30E+08"},{"v":148000000,"d":"1.48E+08"},{"v":168000000,"d":"1.68E+08"},"1.29e+08 - 1.69e+08",{"v":14900000,"d":"1.49E+07"}]
[9,"CT","5_Use, Repair, or Disposal of Industrial and Commercial Appliances or Machinery Containing Asbestos","Use, Repair, or Disposal of Industrial and Commercial Appliances or Machinery Containing Asbestos","Fugitive Emissions","Rural","CT Met","CT Fugitive Emissions Rural CT Met","5 years",30,{"v":76800000,"d":"7.68E+07"},{"v":52600000,"d":"5.26E+07"},{"v":68600000,"d":"6.86E+07"},{"v":113000000,"d":"1.13E+08"},"5.11e+07 - 1.26e+08",{"v":23600000,"d":"2.36E+07"}]
[10,"CT","5_Use, Repair, or Disposal of Industrial and Commercial Appliances or Machinery Containing Asbestos","Use, Repair, or Disposal of Industrial and Commercial Appliances or Machinery Containing Asbestos","Fugitive Emissions","Rural","CT Met","CT Fugitive Emissions Rural CT Met","5 years",60,{"v":17200000,"d":"1.72E+07"},{"v":10300000,"d":"1.03E+07"},{"v":14500000,"d":"1.45E+07"},{"v":29900000,"d":"2.99E+07"},"8.23e+06 - 3.19e+07",{"v":7360000,"d":"7.36E+06"}]
[11,"CT","5_Use, Repair, or Disposal of Industrial and Commercial Appliances or Machinery Containing Asbestos","Use, Repair, or Disposal of Industrial and Commercial Appliances or Machinery Containing Asbestos","Fugitive Emissions","Rural","CT Met","CT Fugitive Emissions Rural CT Met","5 years",100,{"v":4590000,"d":"4.59E+06"},{"v":2640000,"d":"2.64E+06"},{"v":3820000,"d":"3.82E+06"},{"v":8690000,"d":"8.69E+06"},"1.81e+06 - 8.96e+06",{"v":2230000,"d":"2.23E+06"}]
[12,"CT","5_Use, Repair, or Disposal of Industrial and Commercial Appliances or Machinery Containing Asbestos","Use, Repair, or Disposal of Industrial and Commercial Appliances or Machinery Containing Asbestos","Fugitive Emissions","Rural","CT Met","CT Fugitive Emissions Rural CT Met","5 years",1000,{"v":133000,"d":"1.33E+05"},{"v":22400,"d":"2.24E+04"},{"v":54900,"d":"5.49E+04"},{"v":458000,"d":"4.58E+05"},"1.26e+04 - 3.66e+06",{"v":287000,"d":"2.87E+05"}]
[13,"CT","5_Use, Repair, or Disposal of Industrial and Commercial Appliances or Machinery Containing Asbestos","Use, Repair, or Disposal of Industrial and Commercial Appliances or Machinery Containing Asbestos","Fugitive Emissions","Rural","CT Met","CT Fugitive Emissions Rural CT Met","5 years",2500,{"v":4920,"d":"4.92E+03"},{"v":2990,"d":"2.99E+03"},{"v":4260,"d":"4.26E+03"},{"v":9050,"d":"9.05E+03"},"2.57e+03 - 9.31e+03",{"v":2090,"d":"2.09E+03"}]
[14,"CT","5_Use, Repair, or Disposal of Industrial and Commercial Appliances or Machinery Containing Asbestos","Use, Repair, or Disposal of Industrial and Commercial Appliances or Machinery Containing Asbestos","Fugitive Emissions","Rural","CT Met","CT Fugitive Emissions Rural CT Met","5 years",5000,{"v":1540,"d":"1.54E+03"},{"v":999,"d":"9.99E+02"},{"v":1400,"d":"1.40E+03"},{"v":2590,"d":"2.59E+03"},"8.61e+02 - 2.82e+03",{"v":577,"d":"5.77E+02"}]
[15,"CT","5_Use, Repair, or Disposal of Industrial and Commercial Appliances or Machinery Containing Asbestos","Use, Repair, or Disposal of Industrial and Commercial Appliances or Machinery Containing Asbestos","Fugitive Emissions","Rural","CT Met","CT Fugitive Emissions Rural CT Met","5 years",10000,{"v":525,"d":"5.25E+02"},{"v":327,"d":"3.27E+02"},{"v":501,"d":"5.01E+02"},{"v":856,"d":"8.56E+02"},"2.68e+02 - 9.97e+02",{"v":201,"d":"2.01E+02"}]
[24,"CT","5_Use, Repair, or Disposal of Industrial and Commercial Appliances or Machinery Containing Asbestos","Use, Repair, or Disposal of Industrial and Commercial Appliances or Machinery Containing Asbestos","Fugitive Emissions","Urban","CT Met","CT Fugitive Emissions Urban CT Met","5 years",10,{"v":152000000,"d":"1.52E+08"},{"v":132000000,"d":"1.32E+08"},{"v":154000000,"d":"1.54E+08"},{"v":178000000,"d":"1.78E+08"},"1.30e+08 - 1.80e+08",{"v":17600000,"d":"1.76E+07"}]
[25,"CT","5_Use, Repair, or Disposal of Industrial and Commercial Appliances or Machinery Containing Asbestos","Use, Repair, or Disposal of Industrial and Commercial Appliances or Machinery Containing Asbestos","Fugitive Emissions","Urban","CT Met","CT Fugitive Emissions Urban CT Met","5 years",30,{"v":72800000,"d":"7.28E+07"},{"v":49500000,"d":"4.95E+07"},{"v":63100000,"d":"6.31E+07"},{"v":110000000,"d":"1.10E+08"},"4.84e+07 - 1.20e+08",{"v":23000000,"d":"2.30E+07"}]
[26,"CT","5_Use, Repair, or Disposal of Industrial and Commercial Appliances or Machinery Containing Asbestos","Use, Repair, or Disposal of Industrial and Commercial Appliances or Machinery Containing Asbestos","Fugitive Emissions","Urban","CT Met","CT Fugitive Emissions Urban CT Met","5 years",60,{"v":16400000,"d":"1.64E+07"},{"v":9970000,"d":"9.97E+06"},{"v":13800000,"d":"1.38E+07"},{"v":28600000,"d":"2.86E+07"},"8.22e+06 - 3.00e+07",{"v":6950000,"d":"6.95E+06"}]
[27,"CT","5_Use, Repair, or Disposal of Industrial and Commercial Appliances or Machinery Containing Asbestos","Use, Repair, or Disposal of Industrial and Commercial Appliances or Machinery Containing Asbestos","Fugitive Emissions","Urban","CT Met","CT Fugitive Emissions Urban CT Met","5 years",100,{"v":4490000,"d":"4.49E+06"},{"v":2610000,"d":"2.61E+06"},{"v":3700000,"d":"3.70E+06"},{"v":8410000,"d":"8.41E+06"},"1.92e+06 - 8.54e+06",{"v":2130000,"d":"2.13E+06"}]
[28,"CT","5_Use, Repair, or Disposal of Industrial and Commercial Appliances or Machinery Containing Asbestos","Use, Repair, or Disposal of Industrial and Commercial Appliances or Machinery Containing Asbestos","Fugitive Emissions","Urban","CT Met","CT Fugitive Emissions Urban CT Met","5 years",1000,{"v":132000,"d":"1.32E+05"},{"v":21800,"d":"2.18E+04"},{"v":53800,"d":"5.38E+04"},{"v":458000,"d":"4.58E+05"},"1.16e+04 - 3.59e+06",{"v":284000,"d":"2.84E+05"}]
[29,"CT","5_Use, Repair, or Disposal of Industrial and Commercial Appliances or Machinery Containing Asbestos","Use, Repair, or Disposal of Industrial and Commercial Appliances or Machinery Containing Asbestos","Fugitive Emissions","Urban","CT Met","CT Fugitive Emissions Urban CT Met","5 years",2500,{"v":4850,"d":"4.85E+03"},{"v":3050,"d":"3.05E+03"},{"v":4160,"d":"4.16E+03"},{"v":8790,"d":"8.79E+03"},"2.51e+03 - 9.01e+03",{"v":2010,"d":"2.01E+03"}]
[30,"CT","5_Use, Repair, or Disposal of Industrial and Commercial Appliances or Machinery Containing Asbestos","Use, Repair, or Disposal of Industrial and Commercial Appliances or Machinery Containing Asbestos","Fugitive Emissions","Urban","CT Met","CT Fugitive Emissions Urban CT Met","5 years",5000,{"v":1610,"d":"1.61E+03"},{"v":1070,"d":"1.07E+03"},{"v":1440,"d":"1.44E+03"},{"v":2620,"d":"2.62E+03"},"9.65e+02 - 2.89e+03",{"v":573,"d":"5.73E+02"}]
[31,"CT","5_Use, Repair, or Disposal of Industrial and Commercial Appliances or Machinery Containing Asbestos","Use, Repair, or Disposal of Industrial and Commercial Appliances or Machinery Containing Asbestos","Fugitive Emissions","Urban","CT Met","CT Fugitive Emissions Urban CT Met","5 years",10000,{"v":561,"d":"5.61E+02"},{"v":365,"d":"3.65E+02"},{"v":525,"d":"5.25E+02"},{"v":895,"d":"8.95E+02"},"3.02e+02 - 1.04e+03",{"v":207,"d":"2.07E+02"}]
[8,"HE","8_Use, Repair, or Disposal of Industrial and Commercial Appliances or Machinery Containing Asbestos","Use, Repair, or Disposal of Industrial and Commercial Appliances or Machinery Containing Asbestos","Stack Emissions","Rural","HE Met",{"$f":"_xlfn.CONCAT(B194, \" \",E194,\" \",F194,\" \",G194)","v":"HE Stack Emissions Rural HE Met"},"5 years",10,{"v":121000,"d":"1.21E+05"},{"v":91500,"d":"9.15E+04"},{"v":126000,"d":"1.26E+05"},{"v":151000,"d":"1.51E+05"},"7.85e+04 - 1.56e+05",{"v":23300,"d":"2.33E+04"}]
[9,"HE","8_Use, Repair, or Disposal of Industrial and Commercial Appliances or Machinery Containing Asbestos","Use, Repair, or Disposal of Industrial and Commercial Appliances or Machinery Containing Asbestos","Stack Emissions","Rural","HE Met","HE Stack Emissions Rural HE Met","5 years",30,{"v":178000,"d":"1.78E+05"},{"v":145000,"d":"1.45E+05"},{"v":166000,"d":"1.66E+05"},{"v":238000,"d":"2.38E+05"},"1.43e+05 - 2.56e+05",{"v":36300,"d":"3.63E+04"}]
[10,"HE","8_Use, Repair, or Disposal of Industrial and Commercial Appliances or Machinery Containing Asbestos","Use, Repair, or Disposal of Industrial and Commercial Appliances or Machinery Containing Asbestos","Stack Emissions","Rural","HE Met","HE Stack Emissions Rural HE Met","5 years",60,{"v":1850000,"d":"1.85E+06"},{"v":1330000,"d":"1.33E+06"},{"v":1540000,"d":"1.54E+06"},{"v":3170000,"d":"3.17E+06"},"1.24e+06 - 3.36e+06",{"v":663000,"d":"6.63E+05"}]
[11,"HE","8_Use, Repair, or Disposal of Industrial and Commercial Appliances or Machinery Containing Asbestos","Use, Repair, or Disposal of Industrial and Commercial Appliances or Machinery Containing Asbestos","Stack Emissions","Rural","HE Met","HE Stack Emissions Rural HE Met","5 years",100,{"v":2750000,"d":"2.75E+06"},{"v":1790000,"d":"1.79E+06"},{"v":2570000,"d":"2.57E+06"},{"v":4620000,"d":"4.62E+06"},"1.63e+06 - 4.74e+06",{"v":910000,"d":"9.10E+05"}]
[12,"HE","8_Use, Repair, or Disposal of Industrial and Commercial Appliances or Machinery Containing Asbestos","Use, Repair, or Disposal of Industrial and Commercial Appliances or Machinery Containing Asbestos","Stack Emissions","Rural","HE Met","HE Stack Emissions Rural HE Met","5 years",1000,{"v":176000,"d":"1.76E+05"},{"v":23400,"d":"2.34E+04"},{"v":61600,"d":"6.16E+04"},{"v":765000,"d":"7.65E+05"},"1.13e+04 - 2.48e+06",{"v":334000,"d":"3.34E+05"}]
[13,"HE","8_Use, Repair, or Disposal of Industrial and Commercial Appliances or Machinery Containing Asbestos","Use, Repair, or Disposal of Industrial and Commercial Appliances or Machinery Containing Asbestos","Stack Emissions","Rural","HE Met","HE Stack Emissions Rural HE Met","5 years",2500,{"v":3790,"d":"3.79E+03"},{"v":2020,"d":"2.02E+03"},{"v":3920,"d":"3.92E+03"},{"v":5830,"d":"5.83E+03"},"1.80e+03 - 6.49e+03",{"v":1310,"d":"1.31E+03"}]
[14,"HE","8_Use, Repair, or Disposal of Industrial and Commercial Appliances or Machinery Containing Asbestos","Use, Repair, or Disposal of Industrial and Commercial Appliances or Machinery Containing Asbestos","Stack Emissions","Rural","HE Met","HE Stack Emissions Rural HE Met","5 years",5000,{"v":1260,"d":"1.26E+03"},{"v":729,"d":"7.29E+02"},{"v":1310,"d":"1.31E+03"},{"v":1830,"d":"1.83E+03"},"6.85e+02 - 2.12e+03",{"v":396,"d":"3.96E+02"}]
[15,"HE","8_Use, Repair, or Disposal of Industrial and Commercial Appliances or Machinery Containing Asbestos","Use, Repair, or Disposal of Industrial and Commercial Appliances or Machinery Containing Asbestos","Stack Emissions","Rural","HE Met","HE Stack Emissions Rural HE Met","5 years",10000,{"v":483,"d":"4.83E+02"},{"v":281,"d":"2.81E+02"},{"v":489,"d":"4.89E+02"},{"v":737,"d":"7.37E+02"},"2.65e+02 - 9.00e+02",{"v":164,"d":"1.64E+02"}]
[24,"HE","8_Use, Repair, or Disposal of Industrial and Commercial Appliances or Machinery Containing Asbestos","Use, Repair, or Disposal of Industrial and Commercial Appliances or Machinery Containing Asbestos","Stack Emissions","Urban","HE Met","HE Stack Emissions Urban HE Met","5 years",10,{"v":123000,"d":"1.23E+05"},{"v":94600,"d":"9.46E+04"},{"v":128000,"d":"1.28E+05"},{"v":151000,"d":"1.51E+05"},"8.26e+04 - 1.57e+05",{"v":22200,"d":"2.22E+04"}]
[25,"HE","8_Use, Repair, or Disposal of Industrial and Commercial Appliances or Machinery Containing Asbestos","Use, Repair, or Disposal of Industrial and Commercial Appliances or Machinery Containing Asbestos","Stack Emissions","Urban","HE Met","HE Stack Emissions Urban HE Met","5 years",30,{"v":268000,"d":"2.68E+05"},{"v":222000,"d":"2.22E+05"},{"v":264000,"d":"2.64E+05"},{"v":327000,"d":"3.27E+05"},"2.21e+05 - 3.35e+05",{"v":38600,"d":"3.86E+04"}]
[26,"HE","8_Use, Repair, or Disposal of Industrial and Commercial Appliances or Machinery Containing Asbestos","Use, Repair, or Disposal of Industrial and Commercial Appliances or Machinery Containing Asbestos","Stack Emissions","Urban","HE Met","HE Stack Emissions Urban HE Met","5 years",60,{"v":2100000,"d":"2.10E+06"},{"v":1490000,"d":"1.49E+06"},{"v":1900000,"d":"1.90E+06"},{"v":3400000,"d":"3.40E+06"},"1.39e+06 - 3.56e+06",{"v":659000,"d":"6.59E+05"}]
[27,"HE","8_Use, Repair, or Disposal of Industrial and Commercial Appliances or Machinery Containing Asbestos","Use, Repair, or Disposal of Industrial and Commercial Appliances or Machinery Containing Asbestos","Stack Emissions","Urban","HE Met","HE Stack Emissions Urban HE Met","5 years",100,{"v":2870000,"d":"2.87E+06"},{"v":1840000,"d":"1.84E+06"},{"v":2730000,"d":"2.73E+06"},{"v":4720000,"d":"4.72E+06"},"1.68e+06 - 4.82e+06",{"v":914000,"d":"9.14E+05"}]
[28,"HE","8_Use, Repair, or Disposal of Industrial and Commercial Appliances or Machinery Containing Asbestos","Use, Repair, or Disposal of Industrial and Commercial Appliances or Machinery Containing Asbestos","Stack Emissions","Urban","HE Met","HE Stack Emissions Urban HE Met","5 years",1000,{"v":170000,"d":"1.70E+05"},{"v":22700,"d":"2.27E+04"},{"v":56200,"d":"5.62E+04"},{"v":763000,"d":"7.63E+05"},"1.09e+04 - 2.49e+06",{"v":331000,"d":"3.31E+05"}]
[29,"HE","8_Use, Repair, or Disposal of Industrial and Commercial Appliances or Machinery Containing Asbestos","Use, Repair, or Disposal of Industrial and Commercial Appliances or Machinery Containing Asbestos","Stack Emissions","Urban","HE Met","HE Stack Emissions Urban HE Met","5 years",2500,{"v":3800,"d":"3.80E+03"},{"v":2070,"d":"2.07E+03"},{"v":3910,"d":"3.91E+03"},{"v":5830,"d":"5.83E+03"},"1.86e+03 - 6.50e+03",{"v":1290,"d":"1.29E+03"}]
[30,"HE","8_Use, Repair, or Disposal of Industrial and Commercial Appliances or Machinery Containing Asbestos","Use, Repair, or Disposal of Industrial and Commercial Appliances or Machinery Containing Asbestos","Stack Emissions","Urban","HE Met","HE Stack Emissions Urban HE Met","5 years",5000,{"v":1320,"d":"1.32E+03"},{"v":772,"d":"7.72E+02"},{"v":1390,"d":"1.39E+03"},{"v":1880,"d":"1.88E+03"},"7.21e+02 - 2.18e+03",{"v":406,"d":"4.06E+02"}]
[31,"HE","8_Use, Repair, or Disposal of Industrial and Commercial Appliances or Machinery Containing Asbestos","Use, Repair, or Disposal of Industrial and Commercial Appliances or Machinery Containing Asbestos","Stack Emissions","Urban","HE Met","HE Stack Emissions Urban HE Met","5 years",10000,{"v":504,"d":"5.04E+02"},{"v":293,"d":"2.93E+02"},{"v":507,"d":"5.07E+02"},{"v":753,"d":"7.53E+02"},"2.75e+02 - 9.19e+02",{"v":168,"d":"1.68E+02"}]
[8,"HE","8_Use, Repair, or Disposal of Industrial and Commercial Appliances or Machinery Containing Asbestos","Use, Repair, or Disposal of Industrial and Commercial Appliances or Machinery Containing Asbestos","Stack Emissions","Rural","CT Met","HE Stack Emissions Rural CT Met","5 years",10,{"v":56800,"d":"5.68E+04"},{"v":31400,"d":"3.14E+04"},{"v":53900,"d":"5.39E+04"},{"v":90900,"d":"9.09E+04"},"2.08e+04 - 9.21e+04",{"v":22300,"d":"2.23E+04"}]
[9,"HE","8_Use, Repair, or Disposal of Industrial and Commercial Appliances or Machinery Containing Asbestos","Use, Repair, or Disposal of Industrial and Commercial Appliances or Machinery Containing Asbestos","Stack Emissions","Rural","CT Met","HE Stack Emissions Rural CT Met","5 years",30,{"v":110000,"d":"1.10E+05"},{"v":92200,"d":"9.22E+04"},{"v":110000,"d":"1.10E+05"},{"v":128000,"d":"1.28E+05"},"8.98e+04 - 1.33e+05",{"v":12000,"d":"1.20E+04"}]
[10,"HE","8_Use, Repair, or Disposal of Industrial and Commercial Appliances or Machinery Containing Asbestos","Use, Repair, or Disposal of Industrial and Commercial Appliances or Machinery Containing Asbestos","Stack Emissions","Rural","CT Met","HE Stack Emissions Rural CT Met","5 years",60,{"v":890000,"d":"8.90E+05"},{"v":588000,"d":"5.88E+05"},{"v":777000,"d":"7.77E+05"},{"v":1490000,"d":"1.49E+06"},"5.21e+05 - 1.57e+06",{"v":323000,"d":"3.23E+05"}]
[11,"HE","8_Use, Repair, or Disposal of Industrial and Commercial Appliances or Machinery Containing Asbestos","Use, Repair, or Disposal of Industrial and Commercial Appliances or Machinery Containing Asbestos","Stack Emissions","Rural","CT Met","HE Stack Emissions Rural CT Met","5 years",100,{"v":1640000,"d":"1.64E+06"},{"v":1050000,"d":"1.05E+06"},{"v":1410000,"d":"1.41E+06"},{"v":2820000,"d":"2.82E+06"},"8.56e+05 - 2.99e+06",{"v":647000,"d":"6.47E+05"}]
[12,"HE","8_Use, Repair, or Disposal of Industrial and Commercial Appliances or Machinery Containing Asbestos","Use, Repair, or Disposal of Industrial and Commercial Appliances or Machinery Containing Asbestos","Stack Emissions","Rural","CT Met","HE Stack Emissions Rural CT Met","5 years",1000,{"v":173000,"d":"1.73E+05"},{"v":31300,"d":"3.13E+04"},{"v":80100,"d":"8.01E+04"},{"v":650000,"d":"6.50E+05"},"1.97e+04 - 2.39e+06",{"v":263000,"d":"2.63E+05"}]
[13,"HE","8_Use, Repair, or Disposal of Industrial and Commercial Appliances or Machinery Containing Asbestos","Use, Repair, or Disposal of Industrial and Commercial Appliances or Machinery Containing Asbestos","Stack Emissions","Rural","CT Met","HE Stack Emissions Rural CT Met","5 years",2500,{"v":4170,"d":"4.17E+03"},{"v":2540,"d":"2.54E+03"},{"v":3660,"d":"3.66E+03"},{"v":7540,"d":"7.54E+03"},"2.24e+03 - 7.60e+03",{"v":1710,"d":"1.71E+03"}]
[14,"HE","8_Use, Repair, or Disposal of Industrial and Commercial Appliances or Machinery Containing Asbestos","Use, Repair, or Disposal of Industrial and Commercial Appliances or Machinery Containing Asbestos","Stack Emissions","Rural","CT Met","HE Stack Emissions Rural CT Met","5 years",5000,{"v":1210,"d":"1.21E+03"},{"v":789,"d":"7.89E+02"},{"v":1100,"d":"1.10E+03"},{"v":2030,"d":"2.03E+03"},"7.05e+02 - 2.14e+03",{"v":438,"d":"4.38E+02"}]
[15,"HE","8_Use, Repair, or Disposal of Industrial and Commercial Appliances or Machinery Containing Asbestos","Use, Repair, or Disposal of Industrial and Commercial Appliances or Machinery Containing Asbestos","Stack Emissions","Rural","CT Met","HE Stack Emissions Rural CT Met","5 years",10000,{"v":405,"d":"4.05E+02"},{"v":266,"d":"2.66E+02"},{"v":382,"d":"3.82E+02"},{"v":655,"d":"6.55E+02"},"2.26e+02 - 7.35e+02",{"v":145,"d":"1.45E+02"}]
[24,"HE","8_Use, Repair, or Disposal of Industrial and Commercial Appliances or Machinery Containing Asbestos","Use, Repair, or Disposal of Industrial and Commercial Appliances or Machinery Containing Asbestos","Stack Emissions","Urban","CT Met","HE Stack Emissions Urban CT Met","5 years",10,{"v":61800,"d":"6.18E+04"},{"v":36100,"d":"3.61E+04"},{"v":60600,"d":"6.06E+04"},{"v":95400,"d":"9.54E+04"},"2.70e+04 - 9.66e+04",{"v":21400,"d":"2.14E+04"}]
[25,"HE","8_Use, Repair, or Disposal of Industrial and Commercial Appliances or Machinery Containing Asbestos","Use, Repair, or Disposal of Industrial and Commercial Appliances or Machinery Containing Asbestos","Stack Emissions","Urban","CT Met","HE Stack Emissions Urban CT Met","5 years",30,{"v":206000,"d":"2.06E+05"},{"v":193000,"d":"1.93E+05"},{"v":205000,"d":"2.05E+05"},{"v":224000,"d":"2.24E+05"},"1.91e+05 - 2.38e+05",{"v":12200,"d":"1.22E+04"}]
[26,"HE","8_Use, Repair, or Disposal of Industrial and Commercial Appliances or Machinery Containing Asbestos","Use, Repair, or Disposal of Industrial and Commercial Appliances or Machinery Containing Asbestos","Stack Emissions","Urban","CT Met","HE Stack Emissions Urban CT Met","5 years",60,{"v":1180000,"d":"1.18E+06"},{"v":833000,"d":"8.33E+05"},{"v":1010000,"d":"1.01E+06"},{"v":1910000,"d":"1.91E+06"},"7.74e+05 - 1.93e+06",{"v":376000,"d":"3.76E+05"}]
[27,"HE","8_Use, Repair, or Disposal of Industrial and Commercial Appliances or Machinery Containing Asbestos","Use, Repair, or Disposal of Industrial and Commercial Appliances or Machinery Containing Asbestos","Stack Emissions","Urban","CT Met","HE Stack Emissions Urban CT Met","5 years",100,{"v":1840000,"d":"1.84E+06"},{"v":1230000,"d":"1.23E+06"},{"v":1560000,"d":"1.56E+06"},{"v":3090000,"d":"3.09E+06"},"1.04e+06 - 3.29e+06",{"v":688000,"d":"6.88E+05"}]
[28,"HE","8_Use, Repair, or Disposal of Industrial and Commercial Appliances or Machinery Containing Asbestos","Use, Repair, or Disposal of Industrial and Commercial Appliances or Machinery Containing Asbestos","Stack Emissions","Urban","CT Met","HE Stack Emissions Urban CT Met","5 years",1000,{"v":163000,"d":"1.63E+05"},{"v":28300,"d":"2.83E+04"},{"v":73300,"d":"7.33E+04"},{"v":626000,"d":"6.26E+05"},"1.83e+04 - 2.47e+06",{"v":263000,"d":"2.63E+05"}]
[29,"HE","8_Use, Repair, or Disposal of Industrial and Commercial Appliances or Machinery Containing Asbestos","Use, Repair, or Disposal of Industrial and Commercial Appliances or Machinery Containing Asbestos","Stack Emissions","Urban","CT Met","HE Stack Emissions Urban CT Met","5 years",2500,{"v":4060,"d":"4.06E+03"},{"v":2590,"d":"2.59E+03"},{"v":3540,"d":"3.54E+03"},{"v":7190,"d":"7.19E+03"},"2.22e+03 - 7.23e+03",{"v":1600,"d":"1.60E+03"}]
[30,"HE","8_Use, Repair, or Disposal of Industrial and Commercial Appliances or Machinery Containing Asbestos","Use, Repair, or Disposal of Industrial and Commercial Appliances or Machinery Containing Asbestos","Stack Emissions","Urban","CT Met","HE Stack Emissions Urban CT Met","5 years",5000,{"v":1270,"d":"1.27E+03"},{"v":862,"d":"8.62E+02"},{"v":1150,"d":"1.15E+03"},{"v":2060,"d":"2.06E+03"},"7.92e+02 - 2.18e+03",{"v":428,"d":"4.28E+02"}]
[31,"HE","8_Use, Repair, or Disposal of Industrial and Commercial Appliances or Machinery Containing Asbestos","Use, Repair, or Disposal of Industrial and Commercial Appliances or Machinery Containing Asbestos","Stack Emissions","Urban","CT Met","HE Stack Emissions Urban CT Met","5 years",10000,{"v":440,"d":"4.40E+02"},{"v":298,"d":"2.98E+02"},{"v":410,"d":"4.10E+02"},{"v":688,"d":"6.88E+02"},"2.58e+02 - 7.77e+02",{"v":149,"d":"1.49E+02"}]